Dept/Family,Entity,Expense Type,Expense Area,Supplier,Payment Date,Amount,SME,UNSPCC Code,UNSPCC Description
"Ministry of Housing, Communities and Local Government",Homes England,FENCE MAINTENANCE,Programmes,BARTON GRANGE LANDSCAPES,09/10/2020,1749,L,72101500,Building maintenance and repair services
"Ministry of Housing, Communities and Local Government",Homes England,LANDSCAPE MAINT-BUILT ESTATE,Programmes,BARTON GRANGE LANDSCAPES,13/10/2020,771.16,L,72101500,Building maintenance and repair services
"Ministry of Housing, Communities and Local Government",Homes England,LANDSCAPE MAINT-BUILT ESTATE,Programmes,BARTON GRANGE LANDSCAPES,29/10/2020,1059.6,L,72101500,Building maintenance and repair services
"Ministry of Housing, Communities and Local Government",Homes England,LEGAL FEES (ADMIN ONLY),Finance & Corporate Services,HM LAND REGISTRY,12/10/2020,369.00,G,80131500,Lease and rental of property or building
"Ministry of Housing, Communities and Local Government",Homes England,Help To Buy Additions,"North East, Yorkshire & the Humber",ROTHERHAM METROPOLITAN BOROUGH COUNCIL,08/10/2020,"32,600.00",G,,Grants
"Ministry of Housing, Communities and Local Government",Homes England,Help To Buy Additions,"North East, Yorkshire & the Humber",ROTHERHAM METROPOLITAN BOROUGH COUNCIL,22/10/2020,"47,600.00",G,,Grants
"Ministry of Housing, Communities and Local Government",Homes England,Help To Buy Additions,"North East, Yorkshire & the Humber",ROTHERHAM METROPOLITAN BOROUGH COUNCIL,29/10/2020,"32,600.00",G,,Grants
"Ministry of Housing, Communities and Local Government",Homes England,CAPITAL GRANTS TO LOCAL AUTHORITIES,"North East, Yorkshire & the Humber",NEWCASTLE CITY COUNCIL,28/10/2020,"127,142.00",G,,Grants
"Ministry of Housing, Communities and Local Government",Homes England,CAPITAL GRANTS TO LOCAL AUTHORITIES,"North East, Yorkshire & the Humber",NORTH TYNESIDE COUNCIL,28/10/2020,"13,724.00",G,,Grants
"Ministry of Housing, Communities and Local Government",Homes England,CAPITAL GRANTS TO LOCAL AUTHORITIES,Midlands,WOLVERHAMPTON CITY COUNCIL,30/10/2020,"383,750.00",G,,Grants
"Ministry of Housing, Communities and Local Government",Homes England,CAPITAL GRANTS TO LOCAL AUTHORITIES,"North East, Yorkshire & the Humber",HARTLEPOOL BOROUGH COUNCIL,19/10/2020,"9,250.00",G,,Grants
"Ministry of Housing, Communities and Local Government",Homes England,CAPITAL GRANTS TO LOCAL AUTHORITIES,"North East, Yorkshire & the Humber",MIDDLEBROUGH COUNCIL,20/10/2020,"13,200.00",G,,Grants
"Ministry of Housing, Communities and Local Government",Homes England,CAPITAL GRANTS TO LOCAL AUTHORITIES,"North East, Yorkshire & the Humber",NORTHUMBERLAND COUNTY COUNCIL,08/10/2020,"7,500.00",G,,Grants
"Ministry of Housing, Communities and Local Government",Homes England,CAPITAL GRANTS TO LOCAL AUTHORITIES,"North East, Yorkshire & the Humber",NORTHUMBERLAND COUNTY COUNCIL,12/10/2020,"22,500.00",G,,Grants
"Ministry of Housing, Communities and Local Government",Homes England,CAPITAL GRANTS TO LOCAL AUTHORITIES,"North East, Yorkshire & the Humber",NORTHUMBERLAND COUNTY COUNCIL,13/10/2020,"4,750.00",G,,Grants
"Ministry of Housing, Communities and Local Government",Homes England,CAPITAL GRANTS TO LOCAL AUTHORITIES,"North East, Yorkshire & the Humber",EAST RIDING OF YORKSHIRE COUNCIL,09/10/2020,"10,500.00",G,,Grants
"Ministry of Housing, Communities and Local Government",Homes England,CAPITAL GRANTS TO LOCAL AUTHORITIES,"North East, Yorkshire & the Humber",EAST RIDING OF YORKSHIRE COUNCIL,14/10/2020,"12,000.00",G,,Grants
"Ministry of Housing, Communities and Local Government",Homes England,CAPITAL GRANTS TO LOCAL AUTHORITIES,"North East, Yorkshire & the Humber",EAST RIDING OF YORKSHIRE COUNCIL,16/10/2020,"12,000.00",G,,Grants
"Ministry of Housing, Communities and Local Government",Homes England,CAPITAL GRANTS TO LOCAL AUTHORITIES,"North East, Yorkshire & the Humber",EAST RIDING OF YORKSHIRE COUNCIL,16/10/2020,"14,000.00",G,,Grants
"Ministry of Housing, Communities and Local Government",Homes England,CAPITAL GRANTS TO LOCAL AUTHORITIES,"North East, Yorkshire & the Humber",CITY OF YORK COUNCIL,26/10/2020,"17,000.00",G,,Grants
"Ministry of Housing, Communities and Local Government",Homes England,CAPITAL GRANTS TO LOCAL AUTHORITIES,"North East, Yorkshire & the Humber",CITY OF YORK COUNCIL,26/10/2020,17000,G,,Grants
"Ministry of Housing, Communities and Local Government",Homes England,CAPITAL GRANTS TO LOCAL AUTHORITIES,"North East, Yorkshire & the Humber",CITY OF YORK COUNCIL,30/10/2020,17000,G,,Grants
"Ministry of Housing, Communities and Local Government",Homes England,CAPITAL GRANTS TO LOCAL AUTHORITIES,"North East, Yorkshire & the Humber",CITY OF YORK COUNCIL,30/10/2020,17000,G,,Grants
"Ministry of Housing, Communities and Local Government",Homes England,CAPITAL GRANTS TO LOCAL AUTHORITIES,"North East, Yorkshire & the Humber",CITY OF YORK COUNCIL,30/10/2020,"17,000.00",G,,Grants
"Ministry of Housing, Communities and Local Government",Homes England,CAPITAL GRANTS TO LOCAL AUTHORITIES,"North East, Yorkshire & the Humber",CITY OF YORK COUNCIL,30/10/2020,"14,875.00",G,,Grants
"Ministry of Housing, Communities and Local Government",Homes England,CAPITAL GRANTS TO LOCAL AUTHORITIES,North East And Yorkshire,CITY OF YORK COUNCIL,,"17,000.00",G,,Grants
"Ministry of Housing, Communities and Local Government",Homes England,CAPITAL GRANTS TO LOCAL AUTHORITIES,Programmes,NORTH SOMERSET COUNCIL,22/10/2020,1666819.01,G,,Grants
"Ministry of Housing, Communities and Local Government",Homes England,CAPITAL GRANTS TO LOCAL AUTHORITIES,Programmes,NORTH SOMERSET COUNCIL,28/10/2020,122518.87,G,,Grants
"Ministry of Housing, Communities and Local Government",Homes England,SERVICE CHARGES,Finance & Corporate Services,COVENTRY CITY COUNCIL,01/10/2020,13735,G,80131500,Lease and rental of property or building
"Ministry of Housing, Communities and Local Government",Homes England,PROJECT MANAGEMENT,Midlands,BOURNVILLE VILLAGE DEVELOPMENTS LTD,02/10/2020,"4,395.02",G,,Grants
"Ministry of Housing, Communities and Local Government",Homes England,ESTATE GENERAL MAINTENANCE,Programmes,IDVERDE LIMITED,26/10/2020,498.91,L,72101500,Building maintenance and repair services
"Ministry of Housing, Communities and Local Government",Homes England,ESTATE GENERAL MAINTENANCE,Programmes,IDVERDE LIMITED,28/10/2020,862.45,L,72101500,Building maintenance and repair services
"Ministry of Housing, Communities and Local Government",Homes England,LANDSCAPE MAINT-BUILT ESTATE,South East,LOWTHER FORESTRY GROUP,06/10/2020,283.10,S,72101500,Building maintenance and repair services
"Ministry of Housing, Communities and Local Government",Homes England,LANDSCAPE MAINT-BUILT ESTATE,South East,LOWTHER FORESTRY GROUP,06/10/2020,288.83,S,72101500,Building maintenance and repair services
"Ministry of Housing, Communities and Local Government",Homes England,LANDSCAPE MAINT-BUILT ESTATE,South East,LOWTHER FORESTRY GROUP,06/10/2020,520.60,S,72101500,Building maintenance and repair services
"Ministry of Housing, Communities and Local Government",Homes England,LANDSCAPE MAINT-BUILT ESTATE,South East,LOWTHER FORESTRY GROUP,06/10/2020,960.05,S,72101500,Building maintenance and repair services
"Ministry of Housing, Communities and Local Government",Homes England,LANDSCAPE MAINT-BUILT ESTATE,Programmes,LOWTHER FORESTRY GROUP,06/10/2020,1210,S,72101500,Building maintenance and repair services
"Ministry of Housing, Communities and Local Government",Homes England,LANDSCAPE MAINT-BUILT ESTATE,Programmes,LOWTHER FORESTRY GROUP,06/10/2020,1121.04,S,72101500,Building maintenance and repair services
"Ministry of Housing, Communities and Local Government",Homes England,LANDSCAPE MAINT-BUILT ESTATE,North East And Yorkshire,LOWTHER FORESTRY GROUP,06/10/2020,250,S,72101500,Building maintenance and repair services
"Ministry of Housing, Communities and Local Government",Homes England,LANDSCAPE MAINT-BUILT ESTATE,North East And Yorkshire,LOWTHER FORESTRY GROUP,06/10/2020,250.00,S,72101500,Building maintenance and repair services
"Ministry of Housing, Communities and Local Government",Homes England,LANDSCAPE MAINT-BUILT ESTATE,North East And Yorkshire,LOWTHER FORESTRY GROUP,06/10/2020,1200,S,72101500,Building maintenance and repair services
"Ministry of Housing, Communities and Local Government",Homes England,ESTATE GENERAL MAINTENANCE,North East And Yorkshire,LOWTHER FORESTRY GROUP,06/10/2020,345,S,72101500,Building maintenance and repair services
"Ministry of Housing, Communities and Local Government",Homes England,LANDSCAPE MAINT-BUILT ESTATE,North East And Yorkshire,LOWTHER FORESTRY GROUP,09/10/2020,306.67,S,72101500,Building maintenance and repair services
"Ministry of Housing, Communities and Local Government",Homes England,FENCE MAINTENANCE,Programmes,LOWTHER FORESTRY GROUP,09/10/2020,"1,367.76",S,72101500,Building maintenance and repair services
"Ministry of Housing, Communities and Local Government",Homes England,FENCE MAINTENANCE,Programmes,LOWTHER FORESTRY GROUP,09/10/2020,667.75,S,72101500,Building maintenance and repair services
"Ministry of Housing, Communities and Local Government",Homes England,LANDSCAPE MAINT-BUILT ESTATE,North West,LOWTHER FORESTRY GROUP,13/10/2020,467.56,S,72101500,Building maintenance and repair services
"Ministry of Housing, Communities and Local Government",Homes England,ESTATE GENERAL MAINTENANCE,Programmes,LOWTHER FORESTRY GROUP,14/10/2020,"1,300.00",S,72101500,Building maintenance and repair services
"Ministry of Housing, Communities and Local Government",Homes England,ESTATE GENERAL MAINTENANCE,Programmes,LOWTHER FORESTRY GROUP,14/10/2020,540.00,S,72101500,Building maintenance and repair services
"Ministry of Housing, Communities and Local Government",Homes England,ESTATE GENERAL MAINTENANCE,Programmes,LOWTHER FORESTRY GROUP,15/10/2020,299.64,S,72101500,Building maintenance and repair services
"Ministry of Housing, Communities and Local Government",Homes England,ESTATE GENERAL MAINTENANCE,Programmes,LOWTHER FORESTRY GROUP,15/10/2020,357.87,S,72101500,Building maintenance and repair services
"Ministry of Housing, Communities and Local Government",Homes England,ESTATE GENERAL MAINTENANCE,Programmes,LOWTHER FORESTRY GROUP,15/10/2020,497.81,S,72101500,Building maintenance and repair services
"Ministry of Housing, Communities and Local Government",Homes England,ESTATE GENERAL MAINTENANCE,Programmes,LOWTHER FORESTRY GROUP,15/10/2020,974.09,S,72101500,Building maintenance and repair services
"Ministry of Housing, Communities and Local Government",Homes England,ESTATE GENERAL MAINTENANCE,Programmes,LOWTHER FORESTRY GROUP,15/10/2020,"1,200.00",S,72101500,Building maintenance and repair services
"Ministry of Housing, Communities and Local Government",Homes England,ESTATE GENERAL MAINTENANCE,Programmes,LOWTHER FORESTRY GROUP,16/10/2020,665.00,S,72101500,Building maintenance and repair services
"Ministry of Housing, Communities and Local Government",Homes England,LANDSCAPE MAINT-BUILT ESTATE,North West,LOWTHER FORESTRY GROUP,16/10/2020,"1,064.00",S,72101500,Building maintenance and repair services
"Ministry of Housing, Communities and Local Government",Homes England,ESTATE GENERAL MAINTENANCE,Programmes,LOWTHER FORESTRY GROUP,16/10/2020,1287.48,S,72101500,Building maintenance and repair services
"Ministry of Housing, Communities and Local Government",Homes England,PROPERTY MAINTENANCE,North West,LOWTHER FORESTRY GROUP,16/10/2020,375,S,72101500,Building maintenance and repair services
"Ministry of Housing, Communities and Local Government",Homes England,LANDSCAPE MAINT-BUILT ESTATE,North West,LOWTHER FORESTRY GROUP,16/10/2020,467.56,S,72101500,Building maintenance and repair services
"Ministry of Housing, Communities and Local Government",Homes England,DRAINS & SEWERS,Programmes,LOWTHER FORESTRY GROUP,23/10/2020,850.00,S,72101500,Building maintenance and repair services
"Ministry of Housing, Communities and Local Government",Homes England,ESTATE GENERAL MAINTENANCE,Programmes,LOWTHER FORESTRY GROUP,27/10/2020,1089.18,S,72101500,Building maintenance and repair services
"Ministry of Housing, Communities and Local Government",Homes England,IRON-MOUNTAIN ARCHIVE STORAGE ,Finance & Corporate Services,IRON MOUNTAIN (UK) LTD,06/10/2020,"5,988.94",L,78131800,Specialized warehousing and storage
"Ministry of Housing, Communities and Local Government",Homes England,IRON-MOUNTAIN ARCHIVE STORAGE ,Finance & Corporate Services,IRON MOUNTAIN (UK) LTD,14/10/2020,"5,373.23",L,78131800,Specialized warehousing and storage
"Ministry of Housing, Communities and Local Government",Homes England,IRON-MOUNTAIN ARCHIVE STORAGE ,Finance & Corporate Services,IRON MOUNTAIN (UK) LTD,14/10/2020,"3,974.42",L,78131800,Specialized warehousing and storage
"Ministry of Housing, Communities and Local Government",Homes England,POSTAGE/COURIERS,Finance & Corporate Services,MK LONDON LINK,02/10/2020,"2,921.10",S,78102200,Postal and small parcel and courier services
"Ministry of Housing, Communities and Local Government",Homes England,LANDSCAPE MAINT-BUILT ESTATE,South West,GROUND CONTROL LIMITED,05/10/2020,409.79,L,72101500,Building maintenance and repair services
"Ministry of Housing, Communities and Local Government",Homes England,ESTATE GENERAL MAINTENANCE,North East And Yorkshire,GROUND CONTROL LIMITED,26/10/2020,875.00,L,72101500,Building maintenance and repair services
"Ministry of Housing, Communities and Local Government",Homes England,CAPITAL GRANTS TO LOCAL AUTHORITIES,Midlands,NORTH KESTEVEN DISTRICT COUNCIL,21/10/2020,"177,865.00",G,,Grants
"Ministry of Housing, Communities and Local Government",Homes England,CAPITAL GRANTS TO LOCAL AUTHORITIES,North East And Yorkshire,HARROGATE BOROUGH COUNCIL,20/10/2020,"13,750.00",G,,Grants
"Ministry of Housing, Communities and Local Government",Homes England,CAPITAL GRANTS TO LOCAL AUTHORITIES,Programmes,CHESHIRE WEST & CHESTER COUNCIL,30/10/2020,"1,202,843.93",G,,Grants
"Ministry of Housing, Communities and Local Government",Homes England,CAPITAL GRANTS TO LOCAL AUTHORITIES,Programmes,CORNWALL COUNCIL,27/10/2020,"126,183.41",G,,Grants
"Ministry of Housing, Communities and Local Government",Homes England,CAPITAL GRANTS TO LOCAL AUTHORITIES,Programmes,CUMBRIA COUNTY COUNCIL,26/10/2020,"141,021.63",G,,Grants
"Ministry of Housing, Communities and Local Government",Homes England,CAPITAL GRANTS TO LOCAL AUTHORITIES,Programmes,CUMBRIA COUNTY COUNCIL,26/10/2020,"98,930.22",G,,Grants
"Ministry of Housing, Communities and Local Government",Homes England,CAPITAL GRANTS TO LOCAL AUTHORITIES,Programmes,MEDWAY COUNCIL,27/10/2020,"204,600.77",G,,Grants
"Ministry of Housing, Communities and Local Government",Homes England,CAPITAL GRANTS TO LOCAL AUTHORITIES,Programmes,DEVON COUNTY COUNCIL,19/10/2020,"17,596.73",G,,Grants
"Ministry of Housing, Communities and Local Government",Homes England,CAPITAL GRANTS TO LOCAL AUTHORITIES,Programmes,HAMPSHIRE COUNTY COUNCIL,21/10/2020,"1,043,393.56",G,,Grants
"Ministry of Housing, Communities and Local Government",Homes England,CAPITAL GRANTS TO LOCAL AUTHORITIES,Programmes,READING BOROUGH COUNCIL,19/10/2020,"150,000.00",G,,Grants
"Ministry of Housing, Communities and Local Government",Homes England,CAPITAL GRANTS TO LOCAL AUTHORITIES,Programmes,CAMBRIDGE CITY COUNCIL,28/10/2020,"1,040,321.09",G,,Grants
"Ministry of Housing, Communities and Local Government",Homes England,CAPITAL GRANTS TO LOCAL AUTHORITIES,East & South East,BABERGH DISTRICT COUNCIL,23/10/2020,"420,000.00",G,,Grants
"Ministry of Housing, Communities and Local Government",Homes England,CAPITAL GRANTS TO LOCAL AUTHORITIES,Midlands,RUGBY BOROUGH COUNCIL,12/10/2020,"44,940.00",G,,Grants
"Ministry of Housing, Communities and Local Government",Homes England,CAPITAL GRANTS TO LOCAL AUTHORITIES,Midlands,RUGBY BOROUGH COUNCIL,12/10/2020,"44,940.00",G,,Grants
"Ministry of Housing, Communities and Local Government",Homes England,CAPITAL GRANTS TO LOCAL AUTHORITIES,Midlands,RUGBY BOROUGH COUNCIL,13/10/2020,"14,980.00",G,,Grants
"Ministry of Housing, Communities and Local Government",Homes England,CAPITAL GRANTS TO LOCAL AUTHORITIES,Midlands,RUGBY BOROUGH COUNCIL,13/10/2020,"14,980.00",G,,Grants
"Ministry of Housing, Communities and Local Government",Homes England,CAPITAL GRANTS TO RPs (NOT LA),North West,FIRST CHOICE HOMES OLDHAM LIMITED,26/10/2020,"9,000.00",,,Grants
"Ministry of Housing, Communities and Local Government",Homes England,CAPITAL GRANTS TO RPs (NOT LA),North West,FIRST CHOICE HOMES OLDHAM LIMITED,26/10/2020,"9,000.00",,,Grants
"Ministry of Housing, Communities and Local Government",Homes England,CAPITAL GRANTS TO RPs (NOT LA),South West,GLOUCESTER CITY HOMES,29/10/2020,"38,000.00",,,Grants
"Ministry of Housing, Communities and Local Government",Homes England,CAPITAL GRANTS TO RPs (NOT LA),East & South East,SAGE HOUSING LIMITED,23/10/2020,"199,605.00",,,Grants
"Ministry of Housing, Communities and Local Government",Homes England,CAPITAL GRANTS TO RPs (NOT LA),South West,SAGE HOUSING LIMITED,29/10/2020,"12,375.00",,,Grants
"Ministry of Housing, Communities and Local Government",Homes England,CAPITAL GRANTS TO RPs (NOT LA),South West,SAGE HOUSING LIMITED,29/10/2020,"19,010.00",,,Grants
"Ministry of Housing, Communities and Local Government",Homes England,CAPITAL GRANTS TO RPs (NOT LA),"North East, Yorkshire & the Humber",KEELMAN HOMES,14/10/2020,"8,250.00",,,Grants
"Ministry of Housing, Communities and Local Government",Homes England,CAPITAL GRANTS TO RPs (NOT LA),"North East, Yorkshire & the Humber",KEELMAN HOMES,23/10/2020,"22,500.00",,,Grants
"Ministry of Housing, Communities and Local Government",Homes England,REVENUE GRANTS TO RPs,"North East, Yorkshire & the Humber",ACTION HOUSING AND SUPPORT,30/10/2020,"22,464.00",,,Grants
"Ministry of Housing, Communities and Local Government",Homes England,CAPITAL GRANTS TO RPs (NOT LA),"North East, Yorkshire & the Humber",HUMANKIND CHARITY,09/10/2020,"8,309.00",,,Grants
"Ministry of Housing, Communities and Local Government",Homes England,CAPITAL GRANTS TO RPs (NOT LA),"North East, Yorkshire & the Humber",HUMANKIND CHARITY,09/10/2020,"8,950.00",,,Grants
"Ministry of Housing, Communities and Local Government",Homes England,REVENUE GRANTS TO RPs,Midlands,THE GUINNESS PARTNERSHIP LIMITED,23/10/2020,"43,125.00",,,Grants
"Ministry of Housing, Communities and Local Government",Homes England,CAPITAL GRANTS TO RPs (NOT LA),South West,THE GUINNESS PARTNERSHIP LIMITED,30/10/2020,"6,250.00",,,Grants
"Ministry of Housing, Communities and Local Government",Homes England,CAPITAL GRANTS TO RPs (NOT LA),South West,THE GUINNESS PARTNERSHIP LIMITED,30/10/2020,"18,750.00",,,Grants
"Ministry of Housing, Communities and Local Government",Homes England,CAPITAL GRANTS TO RPs (NOT LA),South West,THE GUINNESS PARTNERSHIP LIMITED,30/10/2020,"45,000.00",,,Grants
"Ministry of Housing, Communities and Local Government",Homes England,CAPITAL GRANTS TO RPs (NOT LA),North East And Yorkshire,J & M RESIDENTIAL LETTINGS LIMITED,08/10/2020,"9,000.00",,,Grants
"Ministry of Housing, Communities and Local Government",Homes England,CAPITAL GRANTS TO RPs (NOT LA),North East And Yorkshire,J & M RESIDENTIAL LETTINGS LIMITED,30/10/2020,"15,000.00",,,Grants
"Ministry of Housing, Communities and Local Government",Homes England,CAPITAL GRANTS TO RPs (NOT LA),North East And Yorkshire,J & M RESIDENTIAL LETTINGS LIMITED,,"8,000.00",,,Grants
"Ministry of Housing, Communities and Local Government",Homes England,CAPITAL GRANTS TO RPs (NOT LA),North East And Yorkshire,J & M RESIDENTIAL LETTINGS LIMITED,,"15,900.00",,,Grants
"Ministry of Housing, Communities and Local Government",Homes England,CAPITAL GRANTS TO RPs (NOT LA),North East And Yorkshire,HIGHSTONE HOUSING ASSOCIATION,23/10/2020,"67,500.00",,,Grants
"Ministry of Housing, Communities and Local Government",Homes England,CAPITAL GRANTS TO RPs (NOT LA),North East And Yorkshire,DEPAUL HOUSING SERVICES,,"77,970.00",,,Grants
"Ministry of Housing, Communities and Local Government",Homes England,CAPITAL GRANTS TO RPs (NOT LA),South West,DEVON AND CORNWALL HOUSING LIMITED,19/10/2020,"78,400.00",L,,Grants
"Ministry of Housing, Communities and Local Government",Homes England,CAPITAL GRANTS TO RPs (NOT LA),South West,DEVON AND CORNWALL HOUSING LIMITED,22/10/2020,"56,000.00",L,,Grants
"Ministry of Housing, Communities and Local Government",Homes England,CAPITAL GRANTS TO RPs (NOT LA),South West,DEVON AND CORNWALL HOUSING LIMITED,23/10/2020,"49,000.00",L,,Grants
"Ministry of Housing, Communities and Local Government",Homes England,CAPITAL GRANTS TO RPs (NOT LA),South West,DEVON AND CORNWALL HOUSING LIMITED,28/10/2020,"111,000.00",L,,Grants
"Ministry of Housing, Communities and Local Government",Homes England,CAPITAL GRANTS TO RPs (NOT LA),South West,DEVON AND CORNWALL HOUSING LIMITED,30/10/2020,"123,200.00",L,,Grants
"Ministry of Housing, Communities and Local Government",Homes England,CAPITAL GRANTS TO RPs (NOT LA),South West,DEVON AND CORNWALL HOUSING LIMITED,,"13,500.00",L,,Grants
"Ministry of Housing, Communities and Local Government",Homes England,CAPITAL GRANTS TO RPs (NOT LA),South West,DEVON AND CORNWALL HOUSING LIMITED,,"166,500.00",L,,Grants
"Ministry of Housing, Communities and Local Government",Homes England,REVENUE GRANTS TO RPs,Midlands,FORTIS LIVING LIMITED,23/10/2020,"80,260.00",L,,Grants
"Ministry of Housing, Communities and Local Government",Homes England,CAPITAL GRANTS TO RPs (NOT LA),North East And Yorkshire,KARBON HOMES,23/10/2020,"9,000.00",L,,Grants
"Ministry of Housing, Communities and Local Government",Homes England,CAPITAL GRANTS TO RPs (NOT LA),North East And Yorkshire,KARBON HOMES,23/10/2020,"9,000.00",L,,Grants
"Ministry of Housing, Communities and Local Government",Homes England,CAPITAL GRANTS TO RPs (NOT LA),North East And Yorkshire,KARBON HOMES,23/10/2020,"9,000.00",L,,Grants
"Ministry of Housing, Communities and Local Government",Homes England,Help To Buy Additions,North East And Yorkshire,KARBON HOMES,27/10/2020,"29,999.00",L,,Grants
"Ministry of Housing, Communities and Local Government",Homes England,Help To Buy Additions,North East And Yorkshire,KARBON HOMES,27/10/2020,"31,999.00",L,,Grants
"Ministry of Housing, Communities and Local Government",Homes England,REVENUE GRANTS TO RPs,Midlands,OPTIVO,21/10/2020,"82,900.00",,,Grants
"Ministry of Housing, Communities and Local Government",Homes England,CAPITAL GRANTS TO RPs (NOT LA),North East And Yorkshire,BERNICIA GROUP,26/10/2020,"96,250.00",,,Grants
"Ministry of Housing, Communities and Local Government",Homes England,CAPITAL GRANTS TO RPs (NOT LA),Midlands,CITIZEN HOUSING GROUP LTD,09/10/2020,"11,000.00",,,Grants
"Ministry of Housing, Communities and Local Government",Homes England,CAPITAL GRANTS TO RPs (NOT LA),Midlands,CITIZEN HOUSING GROUP LTD,09/10/2020,11000,,,Grants
"Ministry of Housing, Communities and Local Government",Homes England,CAPITAL GRANTS TO RPs (NOT LA),Midlands,CITIZEN HOUSING GROUP LTD,20/10/2020,1275,,,Grants
"Ministry of Housing, Communities and Local Government",Homes England,CAPITAL GRANTS TO RPs (NOT LA),Midlands,CITIZEN HOUSING GROUP LTD,21/10/2020,5502,,,Grants
"Ministry of Housing, Communities and Local Government",Homes England,CAPITAL GRANTS TO RPs (NOT LA),Midlands,CITIZEN HOUSING GROUP LTD,21/10/2020,21334,,,Grants
"Ministry of Housing, Communities and Local Government",Homes England,CAPITAL GRANTS TO RPs (NOT LA),Midlands,CITIZEN HOUSING GROUP LTD,21/10/2020,7111,,,Grants
"Ministry of Housing, Communities and Local Government",Homes England,CAPITAL GRANTS TO RPs (NOT LA),Midlands,CITIZEN HOUSING GROUP LTD,21/10/2020,"7,111.00",,,Grants
"Ministry of Housing, Communities and Local Government",Homes England,CAPITAL GRANTS TO RPs (NOT LA),Midlands,CITIZEN HOUSING GROUP LTD,21/10/2020,"6,840.00",,,Grants
"Ministry of Housing, Communities and Local Government",Homes England,CAPITAL GRANTS TO RPs (NOT LA),Midlands,CITIZEN HOUSING GROUP LTD,,"54,000.00",,,Grants
"Ministry of Housing, Communities and Local Government",Homes England,MISC PROFESSIONAL FEES,Programmes,AMION CONSULTING LTD,19/10/2020,"5,000.00",S,81121500,Economic analysis
"Ministry of Housing, Communities and Local Government",Homes England,PROPERTY SERVICES,Programmes,AMION CONSULTING LTD,27/10/2020,3030,S,81121500,Economic analysis
"Ministry of Housing, Communities and Local Government",Homes England,CONTRACT WORKS,South West,ALUN GRIFFITHS (CONTRACTORS) LTD,29/10/2020,"42,554.86",L,72141000,Highway and road construction services
"Ministry of Housing, Communities and Local Government",Homes England,OTHER PROFESSIONAL FEES,Programmes,ALLEN DADSWELL CONSTRUCTION CONSULTANTS,08/10/2020,1300,M,80131800,Real estate management services
"Ministry of Housing, Communities and Local Government",Homes England,MISC PROFESSIONAL FEES,Programmes,ATKINS LTD,08/10/2020,"2,760.00",L,80131800,Real estate management services
"Ministry of Housing, Communities and Local Government",Homes England,MISC PROFESSIONAL FEES,Programmes,ATKINS LTD,14/10/2020,"14,113.00",L,80131800,Real estate management services
"Ministry of Housing, Communities and Local Government",Homes England,PROJECT MANAGEMENT,North West,ATKINS LTD,22/10/2020,"13,000.00",L,80131800,Real estate management services
"Ministry of Housing, Communities and Local Government",Homes England,OTHER PROFESSIONAL FEES,Programmes,ATKINS LTD,26/10/2020,"17,500.00",L,80131800,Real estate management services
"Ministry of Housing, Communities and Local Government",Homes England,PROPERTY SERVICES,South West,SOUTHERN ELECTRIC,16/10/2020,"1,032.76",L,83101800,Electric utilities
"Ministry of Housing, Communities and Local Government",Homes England,CAR LEASING - HIRE CHARGES,Programmes,LEASEPLAN UK LIMITED,22/10/2020,"1,714.46",L,25101500,Passenger motor vehicles
"Ministry of Housing, Communities and Local Government",Homes England,CAR LEASING - HIRE CHARGES,Programmes,LEASEPLAN UK LIMITED,22/10/2020,"2,303.95",L,25101500,Passenger motor vehicles
"Ministry of Housing, Communities and Local Government",Homes England,MISC PROFESSIONAL FEES,Midlands,ELIZABETH AINGE,09/10/2020,250.00,S,81112103,World wide web WWW site design services�
"Ministry of Housing, Communities and Local Government",Homes England,STAFF WELFARE,Finance & Corporate Services,AMBER SCREEN AND DISPLAY,07/10/2020,"1,739.51",S,72102900,Facility maintenance and repair services
"Ministry of Housing, Communities and Local Government",Homes England,Fix & Fit - Additions,Finance & Corporate Services,AMBER SCREEN AND DISPLAY,23/10/2020,"8,624.00",S,72102900,Facility maintenance and repair services
"Ministry of Housing, Communities and Local Government",Homes England,Fix & Fit - Additions,Finance & Corporate Services,AMBER SCREEN AND DISPLAY,30/10/2020,"4,358.00",S,72102900,Facility maintenance and repair services
"Ministry of Housing, Communities and Local Government",Homes England,CONTRACT WORKS,North West,AE YATES LTD,28/10/2020,"174,719.40",M,72141500,Land preparation services
"Ministry of Housing, Communities and Local Government",Homes England,MISC PROFESSIONAL FEES (ADMIN ONLY),Economic Assets Hub,AUTOMATION LOGIC LIMITED,21/10/2020,"61,952.50",S,80101500,Business and corporate management consultation services�
"Ministry of Housing, Communities and Local Government",Homes England,CAR LEASING - HIRE CHARGES,Programmes,ARVAL UK LIMITED,02/10/2020,325,L,25101500,Passenger motor vehicles
"Ministry of Housing, Communities and Local Government",Homes England,CAR LEASING - OTHER COSTS,North East And Yorkshire,ARVAL UK LIMITED,02/10/2020,699.64,L,25101500,Passenger motor vehicles
"Ministry of Housing, Communities and Local Government",Homes England,CAR LEASING - HIRE CHARGES,Programmes,ARVAL UK LIMITED,08/10/2020,1404.22,L,25101500,Passenger motor vehicles
"Ministry of Housing, Communities and Local Government",Homes England,CAR LEASING - HIRE CHARGES,Programmes,ARVAL UK LIMITED,08/10/2020,"1,979.13",L,25101500,Passenger motor vehicles
"Ministry of Housing, Communities and Local Government",Homes England,CAR LEASING - HIRE CHARGES,Programmes,ARVAL UK LIMITED,08/10/2020,"1,350.83",L,25101500,Passenger motor vehicles
"Ministry of Housing, Communities and Local Government",Homes England,CAR LEASING - HIRE CHARGES,Programmes,ARVAL UK LIMITED,08/10/2020,1902.71,L,25101500,Passenger motor vehicles
"Ministry of Housing, Communities and Local Government",Homes England,CAR LEASING - HIRE CHARGES,Programmes,ARVAL UK LIMITED,08/10/2020,325,L,25101500,Passenger motor vehicles
"Ministry of Housing, Communities and Local Government",Homes England,CAR LEASING TERMINATION DAMAGE,North East And Yorkshire,ARVAL UK LIMITED,08/10/2020,800.02,L,25101500,Passenger motor vehicles
"Ministry of Housing, Communities and Local Government",Homes England,CAR LEASING - HIRE CHARGES,North East And Yorkshire,ARVAL UK LIMITED,16/10/2020,1404.22,L,25101500,Passenger motor vehicles
"Ministry of Housing, Communities and Local Government",Homes England,CAR LEASING - HIRE CHARGES,North East And Yorkshire,ARVAL UK LIMITED,16/10/2020,1979.13,L,25101500,Passenger motor vehicles
"Ministry of Housing, Communities and Local Government",Homes England,CAR LEASING - HIRE CHARGES,Programmes,ARVAL UK LIMITED,22/10/2020,"1,982.56",L,25101500,Passenger motor vehicles
"Ministry of Housing, Communities and Local Government",Homes England,CAR LEASING - HIRE CHARGES,Programmes,ARVAL UK LIMITED,22/10/2020,"2,494.96",L,25101500,Passenger motor vehicles
"Ministry of Housing, Communities and Local Government",Homes England,CAR LEASING - HIRE CHARGES,Programmes,ARVAL UK LIMITED,30/10/2020,"2,127.59",L,25101500,Passenger motor vehicles
"Ministry of Housing, Communities and Local Government",Homes England,CAR LEASING - HIRE CHARGES,Programmes,ARVAL UK LIMITED,30/10/2020,"2,593.08",L,25101500,Passenger motor vehicles
"Ministry of Housing, Communities and Local Government",Homes England,LANDSCAPE MAINT-BUILT ESTATE,Programmes,ALBEN LANDSCAPES LIMITED,13/10/2020,"1,600.00",S,72101500,Building maintenance and repair services
"Ministry of Housing, Communities and Local Government",Homes England,LANDSCAPE MAINT-BUILT ESTATE,Programmes,ALBEN LANDSCAPES LIMITED,13/10/2020,"1,337.35",S,72101500,Building maintenance and repair services
"Ministry of Housing, Communities and Local Government",Homes England,LANDSCAPE MAINT-BUILT ESTATE,Programmes,ALBEN LANDSCAPES LIMITED,13/10/2020,"1,337.35",S,72101500,Building maintenance and repair services
"Ministry of Housing, Communities and Local Government",Homes England,ESTATE GENERAL MAINTENANCE,Programmes,ALBEN LANDSCAPES LIMITED,13/10/2020,800.00,S,72101500,Building maintenance and repair services
"Ministry of Housing, Communities and Local Government",Homes England,ESTATE GENERAL MAINTENANCE,North West,ALBEN LANDSCAPES LIMITED,26/10/2020,533.03,S,72101500,Building maintenance and repair services
"Ministry of Housing, Communities and Local Government",Homes England,ESTATE GENERAL MAINTENANCE,North West,ALBEN LANDSCAPES LIMITED,26/10/2020,533.03,S,72101500,Building maintenance and repair services
"Ministry of Housing, Communities and Local Government",Homes England,AGENCY STAFF,Executive Office,ALLEN LANE LIMITED,01/10/2020,"3,162.50",M,80111600,Temporary personnel services
"Ministry of Housing, Communities and Local Government",Homes England,AGENCY STAFF,Executive Office,ALLEN LANE LIMITED,01/10/2020,"3,004.38",M,80111600,Temporary personnel services
"Ministry of Housing, Communities and Local Government",Homes England,AGENCY STAFF,Executive Office,ALLEN LANE LIMITED,01/10/2020,"3,162.50",M,80111600,Temporary personnel services
"Ministry of Housing, Communities and Local Government",Homes England,AGENCY STAFF,Executive Office,ALLEN LANE LIMITED,01/10/2020,"3,162.50",M,80111600,Temporary personnel services
"Ministry of Housing, Communities and Local Government",Homes England,AGENCY STAFF,Executive Office,ALLEN LANE LIMITED,01/10/2020,"3,575.00",M,80111600,Temporary personnel services
"Ministry of Housing, Communities and Local Government",Homes England,AGENCY STAFF,Executive Office,ALLEN LANE LIMITED,01/10/2020,"1,650.00",M,80111600,Temporary personnel services
"Ministry of Housing, Communities and Local Government",Homes England,AGENCY STAFF,Executive Office,ALLEN LANE LIMITED,01/10/2020,"3,025.00",M,80111600,Temporary personnel services
"Ministry of Housing, Communities and Local Government",Homes England,AGENCY STAFF,Executive Office,ALLEN LANE LIMITED,01/10/2020,"3,162.50",M,80111600,Temporary personnel services
"Ministry of Housing, Communities and Local Government",Homes England,AGENCY STAFF,Executive Office,ALLEN LANE LIMITED,09/10/2020,"3,162.50",M,80111600,Temporary personnel services
"Ministry of Housing, Communities and Local Government",Homes England,AGENCY STAFF,Executive Office,ALLEN LANE LIMITED,09/10/2020,"3,162.50",M,80111600,Temporary personnel services
"Ministry of Housing, Communities and Local Government",Homes England,AGENCY STAFF,Executive Office,ALLEN LANE LIMITED,09/10/2020,"3,162.50",M,80111600,Temporary personnel services
"Ministry of Housing, Communities and Local Government",Homes England,AGENCY STAFF,Executive Office,ALLEN LANE LIMITED,09/10/2020,"3,162.50",M,80111600,Temporary personnel services
"Ministry of Housing, Communities and Local Government",Homes England,AGENCY STAFF,Executive Office,ALLEN LANE LIMITED,09/10/2020,"3,575.00",M,80111600,Temporary personnel services
"Ministry of Housing, Communities and Local Government",Homes England,AGENCY STAFF,Executive Office,ALLEN LANE LIMITED,09/10/2020,"1,650.00",M,80111600,Temporary personnel services
"Ministry of Housing, Communities and Local Government",Homes England,AGENCY STAFF,Executive Office,ALLEN LANE LIMITED,09/10/2020,"3,025.00",M,80111600,Temporary personnel services
"Ministry of Housing, Communities and Local Government",Homes England,AGENCY STAFF,Executive Office,ALLEN LANE LIMITED,09/10/2020,"3,162.50",M,80111600,Temporary personnel services
"Ministry of Housing, Communities and Local Government",Homes England,AGENCY STAFF,Executive Office,ALLEN LANE LIMITED,12/10/2020,"6,325.00",M,80111600,Temporary personnel services
"Ministry of Housing, Communities and Local Government",Homes England,AGENCY STAFF,Executive Office,ALLEN LANE LIMITED,15/10/2020,"3,162.50",M,80111600,Temporary personnel services
"Ministry of Housing, Communities and Local Government",Homes England,AGENCY STAFF,Executive Office,ALLEN LANE LIMITED,15/10/2020,3162.5,M,80111600,Temporary personnel services
"Ministry of Housing, Communities and Local Government",Homes England,AGENCY STAFF,Executive Office,ALLEN LANE LIMITED,15/10/2020,3162.5,M,80111600,Temporary personnel services
"Ministry of Housing, Communities and Local Government",Homes England,AGENCY STAFF,Executive Office,ALLEN LANE LIMITED,15/10/2020,3162.5,M,80111600,Temporary personnel services
"Ministry of Housing, Communities and Local Government",Homes England,AGENCY STAFF,Executive Office,ALLEN LANE LIMITED,15/10/2020,3575,M,80111600,Temporary personnel services
"Ministry of Housing, Communities and Local Government",Homes England,AGENCY STAFF,Executive Office,ALLEN LANE LIMITED,15/10/2020,3025,M,80111600,Temporary personnel services
"Ministry of Housing, Communities and Local Government",Homes England,AGENCY STAFF,Executive Office,ALLEN LANE LIMITED,15/10/2020,3162.5,M,80111600,Temporary personnel services
"Ministry of Housing, Communities and Local Government",Homes England,AGENCY STAFF,Executive Office,ALLEN LANE LIMITED,15/10/2020,1650,M,80111600,Temporary personnel services
"Ministry of Housing, Communities and Local Government",Homes England,AGENCY STAFF,Executive Office,ALLEN LANE LIMITED,27/10/2020,6325,M,80111600,Temporary personnel services
"Ministry of Housing, Communities and Local Government",Homes England,AGENCY STAFF,Executive Office,ALLEN LANE LIMITED,27/10/2020,3162.5,M,80111600,Temporary personnel services
"Ministry of Housing, Communities and Local Government",Homes England,AGENCY STAFF,Executive Office,ALLEN LANE LIMITED,27/10/2020,2530,M,80111600,Temporary personnel services
"Ministry of Housing, Communities and Local Government",Homes England,AGENCY STAFF,Executive Office,ALLEN LANE LIMITED,27/10/2020,3162.5,M,80111600,Temporary personnel services
"Ministry of Housing, Communities and Local Government",Homes England,AGENCY STAFF,Executive Office,ALLEN LANE LIMITED,27/10/2020,3162.5,M,80111600,Temporary personnel services
"Ministry of Housing, Communities and Local Government",Homes England,AGENCY STAFF,Executive Office,ALLEN LANE LIMITED,27/10/2020,"3,575.00",M,80111600,Temporary personnel services
"Ministry of Housing, Communities and Local Government",Homes England,AGENCY STAFF,Executive Office,ALLEN LANE LIMITED,27/10/2020,"1,650.00",M,80111600,Temporary personnel services
"Ministry of Housing, Communities and Local Government",Homes England,AGENCY STAFF,Executive Office,ALLEN LANE LIMITED,27/10/2020,3025,M,80111600,Temporary personnel services
"Ministry of Housing, Communities and Local Government",Homes England,AGENCY STAFF,Executive Office,ALLEN LANE LIMITED,27/10/2020,3162.5,M,80111600,Temporary personnel services
"Ministry of Housing, Communities and Local Government",Homes England,AGENCY STAFF,Executive Office,ALLEN LANE LIMITED,29/10/2020,"3,162.50",M,80111600,Temporary personnel services
"Ministry of Housing, Communities and Local Government",Homes England,AGENCY STAFF,Executive Office,ALLEN LANE LIMITED,29/10/2020,6325,M,80111600,Temporary personnel services
"Ministry of Housing, Communities and Local Government",Homes England,AGENCY STAFF,Executive Office,ALLEN LANE LIMITED,29/10/2020,3162.5,M,80111600,Temporary personnel services
"Ministry of Housing, Communities and Local Government",Homes England,AGENCY STAFF,Executive Office,ALLEN LANE LIMITED,29/10/2020,3162.5,M,80111600,Temporary personnel services
"Ministry of Housing, Communities and Local Government",Homes England,AGENCY STAFF,Executive Office,ALLEN LANE LIMITED,29/10/2020,6325,M,80111600,Temporary personnel services
"Ministry of Housing, Communities and Local Government",Homes England,AGENCY STAFF,Executive Office,ALLEN LANE LIMITED,29/10/2020,3575,M,80111600,Temporary personnel services
"Ministry of Housing, Communities and Local Government",Homes England,AGENCY STAFF,Executive Office,ALLEN LANE LIMITED,29/10/2020,3025,M,80111600,Temporary personnel services
"Ministry of Housing, Communities and Local Government",Homes England,AGENCY STAFF,Executive Office,ALLEN LANE LIMITED,29/10/2020,"3,162.50",M,80111600,Temporary personnel services
"Ministry of Housing, Communities and Local Government",Homes England,ST Fund Loans Additions,Economic Assets Hub,ARNALL GOLDEN GREGORY LLP,15/10/2020,"5,473.45",L,80121600,Business law services
"Ministry of Housing, Communities and Local Government",Homes England,ESTATE GENERAL MAINTENANCE,North East And Yorkshire,AIREDALE FORESTRY,01/10/2020,328.46,S,72101500,Building maintenance and repair services
"Ministry of Housing, Communities and Local Government",Homes England,ESTATE GENERAL MAINTENANCE,North East And Yorkshire,AIREDALE FORESTRY,01/10/2020,679.78,S,72101500,Building maintenance and repair services
"Ministry of Housing, Communities and Local Government",Homes England,ESTATE GENERAL MAINTENANCE,North East And Yorkshire,AIREDALE FORESTRY,01/10/2020,572,S,72101500,Building maintenance and repair services
"Ministry of Housing, Communities and Local Government",Homes England,ESTATE GENERAL MAINTENANCE,North East And Yorkshire,AIREDALE FORESTRY,05/10/2020,328.46,S,72101500,Building maintenance and repair services
"Ministry of Housing, Communities and Local Government",Homes England,ESTATE GENERAL MAINTENANCE,North East And Yorkshire,AIREDALE FORESTRY,05/10/2020,501.92,S,72101500,Building maintenance and repair services
"Ministry of Housing, Communities and Local Government",Homes England,ESTATE GENERAL MAINTENANCE,North East And Yorkshire,AIREDALE FORESTRY,05/10/2020,370.00,S,72101500,Building maintenance and repair services
"Ministry of Housing, Communities and Local Government",Homes England,ESTATE GENERAL MAINTENANCE,North East And Yorkshire,AIREDALE FORESTRY,09/10/2020,655.00,S,72101500,Building maintenance and repair services
"Ministry of Housing, Communities and Local Government",Homes England,ESTATE GENERAL MAINTENANCE,North East And Yorkshire,AIREDALE FORESTRY,13/10/2020,"1,553.50",S,72101500,Building maintenance and repair services
"Ministry of Housing, Communities and Local Government",Homes England,ESTATE GENERAL MAINTENANCE,North East And Yorkshire,AIREDALE FORESTRY,14/10/2020,"1,354.00",S,72101500,Building maintenance and repair services
"Ministry of Housing, Communities and Local Government",Homes England,ESTATE GENERAL MAINTENANCE,Programmes,AIREDALE FORESTRY,15/10/2020,"1,128.20",S,72101500,Building maintenance and repair services
"Ministry of Housing, Communities and Local Government",Homes England,ESTATE GENERAL MAINTENANCE,North East And Yorkshire,AIREDALE FORESTRY,20/10/2020,395.56,S,72101500,Building maintenance and repair services
"Ministry of Housing, Communities and Local Government",Homes England,ESTATE GENERAL MAINTENANCE,North East And Yorkshire,AIREDALE FORESTRY,23/10/2020,442.59,S,72101500,Building maintenance and repair services
"Ministry of Housing, Communities and Local Government",Homes England,ESTATE GENERAL MAINTENANCE,North East And Yorkshire,AIREDALE FORESTRY,23/10/2020,507.02,S,72101500,Building maintenance and repair services
"Ministry of Housing, Communities and Local Government",Homes England,ESTATE GENERAL MAINTENANCE,North East And Yorkshire,AIREDALE FORESTRY,23/10/2020,553.41,S,72101500,Building maintenance and repair services
"Ministry of Housing, Communities and Local Government",Homes England,ESTATE GENERAL MAINTENANCE,North East And Yorkshire,AIREDALE FORESTRY,23/10/2020,328.46,S,72101500,Building maintenance and repair services
"Ministry of Housing, Communities and Local Government",Homes England,ESTATE GENERAL MAINTENANCE,North East And Yorkshire,AIREDALE FORESTRY,23/10/2020,679.78,S,72101500,Building maintenance and repair services
"Ministry of Housing, Communities and Local Government",Homes England,ESTATE GENERAL MAINTENANCE,North East And Yorkshire,AIREDALE FORESTRY,29/10/2020,460.00,S,72101500,Building maintenance and repair services
"Ministry of Housing, Communities and Local Government",Homes England,ESTATE GENERAL MAINTENANCE,North East And Yorkshire,AIREDALE FORESTRY,29/10/2020,315.00,S,72101500,Building maintenance and repair services
"Ministry of Housing, Communities and Local Government",Homes England,ESTATE GENERAL MAINTENANCE,North East And Yorkshire,AIREDALE FORESTRY,29/10/2020,350,S,72101500,Building maintenance and repair services
"Ministry of Housing, Communities and Local Government",Homes England,ESTATE GENERAL MAINTENANCE,Programmes,AIREDALE FORESTRY,30/10/2020,435.00,S,72101500,Building maintenance and repair services
"Ministry of Housing, Communities and Local Government",Homes England,ESTATE GENERAL MAINTENANCE,North East And Yorkshire,AIREDALE FORESTRY,30/10/2020,580,S,72101500,Building maintenance and repair services
"Ministry of Housing, Communities and Local Government",Homes England,ESTATE GENERAL MAINTENANCE,North East And Yorkshire,AIREDALE FORESTRY,30/10/2020,429.50,S,72101500,Building maintenance and repair services
"Ministry of Housing, Communities and Local Government",Homes England,DISPOSAL FEES - LEGAL,South West,ASHFORDS,08/10/2020,1239.1,L,80121600,Business law services
"Ministry of Housing, Communities and Local Government",Homes England,DISPOSAL FEES - LEGAL,South West,ASHFORDS,08/10/2020,1000,L,80121600,Business law services
"Ministry of Housing, Communities and Local Government",Homes England,LEGAL FEES,South West,ASHFORDS,27/10/2020,250.00,L,80121600,Business law services
"Ministry of Housing, Communities and Local Government",Homes England,ESTATE GENERAL MAINTENANCE,Programmes,AMBIENT AIR CONDITIONING UK LTD,29/10/2020,2068,S,72102900,Facility maintenance and repair services
"Ministry of Housing, Communities and Local Government",Homes England,CAR LEASING - HIRE CHARGES,Programmes,ARNOLD CLARK FINANCE LIMITED,08/10/2020,253.90,L,25101500,Passenger motor vehicles
"Ministry of Housing, Communities and Local Government",Homes England,CAR LEASING - HIRE CHARGES,Finance & Corporate Services,ARNOLD CLARK FINANCE LIMITED,15/10/2020,"3,293.28",L,25101500,Passenger motor vehicles
"Ministry of Housing, Communities and Local Government",Homes England,CAR LEASING - HIRE CHARGES,Finance & Corporate Services,ARNOLD CLARK FINANCE LIMITED,15/10/2020,3845.88,L,25101500,Passenger motor vehicles
"Ministry of Housing, Communities and Local Government",Homes England,CAR LEASING - HIRE CHARGES,Programmes,ARNOLD CLARK FINANCE LIMITED,22/10/2020,"1,641.36",L,25101500,Passenger motor vehicles
"Ministry of Housing, Communities and Local Government",Homes England,CAR LEASING - HIRE CHARGES,Programmes,ARNOLD CLARK FINANCE LIMITED,22/10/2020,"2,048.16",L,25101500,Passenger motor vehicles
"Ministry of Housing, Communities and Local Government",Homes England,LEGAL FEES,Economic Assets Hub,BERWIN LEIGHTON PAISNER,01/10/2020,"3,500.00",L,80121600,Business law services
"Ministry of Housing, Communities and Local Government",Homes England,LEGAL FEES,Economic Assets Hub,BERWIN LEIGHTON PAISNER,01/10/2020,750.00,L,80121600,Business law services
"Ministry of Housing, Communities and Local Government",Homes England,LEGAL FEES,Economic Assets Hub,BERWIN LEIGHTON PAISNER,01/10/2020,"11,500.00",L,80121600,Business law services
"Ministry of Housing, Communities and Local Government",Homes England,LEGAL FEES,Programmes,BERWIN LEIGHTON PAISNER,02/10/2020,"8,266.40",L,80121600,Business law services
"Ministry of Housing, Communities and Local Government",Homes England,Homebuy Agents Fees,Programmes,BERWIN LEIGHTON PAISNER,02/10/2020,"2,456.03",L,80121600,Business law services
"Ministry of Housing, Communities and Local Government",Homes England,LEGAL FEES,Programmes,BERWIN LEIGHTON PAISNER,02/10/2020,"6,733.60",L,80121600,Business law services
"Ministry of Housing, Communities and Local Government",Homes England,Homebuy Agents Fees,Programmes,BERWIN LEIGHTON PAISNER,02/10/2020,5374.5,L,80121600,Business law services
"Ministry of Housing, Communities and Local Government",Homes England,LEGAL FEES,East And South East,BERWIN LEIGHTON PAISNER,05/10/2020,4588.6,L,80121600,Business law services
"Ministry of Housing, Communities and Local Government",Homes England,LEGAL FEES,East And South East,BERWIN LEIGHTON PAISNER,05/10/2020,1320,L,80121600,Business law services
"Ministry of Housing, Communities and Local Government",Homes England,Homebuy Agents Fees,Programmes,BERWIN LEIGHTON PAISNER,08/10/2020,626.00,L,80121600,Business law services
"Ministry of Housing, Communities and Local Government",Homes England,LEGAL FEES,Economic Assets Hub,BERWIN LEIGHTON PAISNER,16/10/2020,"1,023.02",L,80121600,Business law services
"Ministry of Housing, Communities and Local Government",Homes England,Other Professional Fees  (Non-asset & Non-land),Programmes,BERWIN LEIGHTON PAISNER,19/10/2020,15060,L,80121600,Business law services
"Ministry of Housing, Communities and Local Government",Homes England,DISPOSAL FEES - LEGAL,Programmes,BERWIN LEIGHTON PAISNER,23/10/2020,529.92,L,80121600,Business law services
"Ministry of Housing, Communities and Local Government",Homes England,DISPOSAL FEES - LEGAL,North West,BROWNE JACOBSON LLP,01/10/2020,9512,L,80121600,Business law services
"Ministry of Housing, Communities and Local Government",Homes England,MISC PROFESSIONAL FEES,Midlands,BROWNE JACOBSON LLP,01/10/2020,358,L,80121600,Business law services
"Ministry of Housing, Communities and Local Government",Homes England,Professional Fees Loans Capitalised,Economic Assets Hub,BROWNE JACOBSON LLP,01/10/2020,15590,L,80121600,Business law services
"Ministry of Housing, Communities and Local Government",Homes England,LEGAL FEES,Programmes,BROWNE JACOBSON LLP,02/10/2020,777.50,L,80121600,Business law services
"Ministry of Housing, Communities and Local Government",Homes England,LEGAL FEES,Programmes,BROWNE JACOBSON LLP,02/10/2020,"1,100.00",L,80121600,Business law services
"Ministry of Housing, Communities and Local Government",Homes England,Professional Fees Loans Capitalised,Economic Assets Hub,BROWNE JACOBSON LLP,05/10/2020,"20,190.00",L,80121600,Business law services
"Ministry of Housing, Communities and Local Government",Homes England,DISPOSAL FEES - LEGAL,South West,BROWNE JACOBSON LLP,05/10/2020,"3,103.00",L,80121600,Business law services
"Ministry of Housing, Communities and Local Government",Homes England,LEGAL FEES,Programmes,BROWNE JACOBSON LLP,05/10/2020,"3,000.00",L,80121600,Business law services
"Ministry of Housing, Communities and Local Government",Homes England,LEGAL FEES,East And South East,BROWNE JACOBSON LLP,06/10/2020,"5,000.00",L,80121600,Business law services
"Ministry of Housing, Communities and Local Government",Homes England,LEGAL FEES,North West,BROWNE JACOBSON LLP,07/10/2020,"1,500.00",L,80121600,Business law services
"Ministry of Housing, Communities and Local Government",Homes England,LEGAL FEES,Midlands,BROWNE JACOBSON LLP,08/10/2020,"1,000.00",L,80121600,Business law services
"Ministry of Housing, Communities and Local Government",Homes England,LEGAL FEES,North West,BROWNE JACOBSON LLP,08/10/2020,"5,084.89",L,80121600,Business law services
"Ministry of Housing, Communities and Local Government",Homes England,LEGAL FEES,South West,BROWNE JACOBSON LLP,08/10/2020,836.00,L,80121600,Business law services
"Ministry of Housing, Communities and Local Government",Homes England,LEGAL FEES,Programmes,BROWNE JACOBSON LLP,12/10/2020,500.00,L,80121600,Business law services
"Ministry of Housing, Communities and Local Government",Homes England,LEGAL FEES,Midlands,BROWNE JACOBSON LLP,13/10/2020,756.5,L,80121600,Business law services
"Ministry of Housing, Communities and Local Government",Homes England,LEGAL FEES,North West,BROWNE JACOBSON LLP,14/10/2020,3240,L,80121600,Business law services
"Ministry of Housing, Communities and Local Government",Homes England,LEGAL FEES,North West,BROWNE JACOBSON LLP,14/10/2020,13303,L,80121600,Business law services
"Ministry of Housing, Communities and Local Government",Homes England,DISPOSAL FEES - LEGAL,North West,BROWNE JACOBSON LLP,14/10/2020,6000,L,80121600,Business law services
"Ministry of Housing, Communities and Local Government",Homes England,Homebuy Agents Fees,Programmes,BROWNE JACOBSON LLP,15/10/2020,800.00,L,80121600,Business law services
"Ministry of Housing, Communities and Local Government",Homes England,LEGAL FEES,Programmes,BROWNE JACOBSON LLP,19/10/2020,620.00,L,80121600,Business law services
"Ministry of Housing, Communities and Local Government",Homes England,LEGAL FEES,North East And Yorkshire,BROWNE JACOBSON LLP,21/10/2020,1918,L,80121600,Business law services
"Ministry of Housing, Communities and Local Government",Homes England,Professional Fees Loans Capitalised,Economic Assets Hub,BROWNE JACOBSON LLP,21/10/2020,13761.54,L,80121600,Business law services
"Ministry of Housing, Communities and Local Government",Homes England,LEGAL FEES,Programmes,BROWNE JACOBSON LLP,22/10/2020,1330,L,80121600,Business law services
"Ministry of Housing, Communities and Local Government",Homes England,LEGAL FEES,Economic Assets Hub,BROWNE JACOBSON LLP,22/10/2020,904.27,L,80121600,Business law services
"Ministry of Housing, Communities and Local Government",Homes England,LEGAL FEES,Programmes,BROWNE JACOBSON LLP,23/10/2020,294.5,L,80121600,Business law services
"Ministry of Housing, Communities and Local Government",Homes England,LEGAL FEES,Programmes,BROWNE JACOBSON LLP,23/10/2020,647.5,L,80121600,Business law services
"Ministry of Housing, Communities and Local Government",Homes England,LEGAL FEES,East And South East,BROWNE JACOBSON LLP,26/10/2020,1900,L,80121600,Business law services
"Ministry of Housing, Communities and Local Government",Homes England,DISPOSAL FEES - LEGAL,North West,BROWNE JACOBSON LLP,30/10/2020,"5,000.00",L,80121600,Business law services
"Ministry of Housing, Communities and Local Government",Homes England,DISPOSAL FEES - LEGAL,North West,BROWNE JACOBSON LLP,30/10/2020,"5,000.00",L,80121600,Business law services
"Ministry of Housing, Communities and Local Government",Homes England,LEGAL FEES,North West,BROWNE JACOBSON LLP,30/10/2020,3500,L,80121600,Business law services
"Ministry of Housing, Communities and Local Government",Homes England,RI - MONITORING SURVEYOR FEES,Economic Assets Hub,BUILDING DESIGN PARTNERSHIP,20/10/2020,2300,L,80131800,Real estate management services
"Ministry of Housing, Communities and Local Government",Homes England,RI - MONITORING SURVEYOR FEES,Economic Assets Hub,BUILDING DESIGN PARTNERSHIP,30/10/2020,2300,L,80131800,Real estate management services
"Ministry of Housing, Communities and Local Government",Homes England,RI - MONITORING SURVEYOR FEES,Economic Assets Hub,BUILDING DESIGN PARTNERSHIP,30/10/2020,1925,L,80131800,Real estate management services
"Ministry of Housing, Communities and Local Government",Homes England,DISPOSAL FEES - PROPERTY AGENTS & ADVERTISING,South West,STANTEC UK LIMITED,02/10/2020,4000,L,80131800,Real estate management services
"Ministry of Housing, Communities and Local Government",Homes England,ENGINEERING CONSULTANTS,Programmes,STANTEC UK LIMITED,05/10/2020,5750,L,80131800,Real estate management services
"Ministry of Housing, Communities and Local Government",Homes England,PROJECT MANAGEMENT,South West,STANTEC UK LIMITED,06/10/2020,3150,L,80131800,Real estate management services
"Ministry of Housing, Communities and Local Government",Homes England,OTHER PROFESSIONAL FEES,South West,STANTEC UK LIMITED,14/10/2020,19100,L,80131800,Real estate management services
"Ministry of Housing, Communities and Local Government",Homes England,DISPOSAL FEES - PROPERTY AGENTS & ADVERTISING,South West,STANTEC UK LIMITED,14/10/2020,5700,L,80131800,Real estate management services
"Ministry of Housing, Communities and Local Government",Homes England,DISPOSAL FEES - PROPERTY AGENTS & ADVERTISING,South West,STANTEC UK LIMITED,14/10/2020,17985,L,80131800,Real estate management services
"Ministry of Housing, Communities and Local Government",Homes England,LEGAL FEES,South West,STANTEC UK LIMITED,16/10/2020,675,L,80131800,Real estate management services
"Ministry of Housing, Communities and Local Government",Homes England,OTHER PROFESSIONAL FEES,South West,STANTEC UK LIMITED,16/10/2020,"2,416.67",L,80131800,Real estate management services
"Ministry of Housing, Communities and Local Government",Homes England,PROPERTY SERVICES,Midlands,STANTEC UK LIMITED,20/10/2020,"2,900.00",L,80131800,Real estate management services
"Ministry of Housing, Communities and Local Government",Homes England,OTHER PROFESSIONAL FEES,South West,STANTEC UK LIMITED,23/10/2020,"3,375.00",L,80131800,Real estate management services
"Ministry of Housing, Communities and Local Government",Homes England,MASTERPLANNING FEES,East And South East,STANTEC UK LIMITED,23/10/2020,"13,124.50",L,80131800,Real estate management services
"Ministry of Housing, Communities and Local Government",Homes England,Professional Fees Loans Capitalised,Economic Assets Hub,STANTEC UK LIMITED,28/10/2020,"2,500.00",L,80131800,Real estate management services
"Ministry of Housing, Communities and Local Government",Homes England,Professional Fees Loans Capitalised,Economic Assets Hub,STANTEC UK LIMITED,28/10/2020,"1,650.00",L,80131800,Real estate management services
"Ministry of Housing, Communities and Local Government",Homes England,CLEANING,Finance & Corporate Services,BIFFA WASTE SERVICE LTD,27/10/2020,340.32,L,76121500,Refuse collection and disposal
"Ministry of Housing, Communities and Local Government",Homes England,AGENCY STAFF,Executive Office,BADENOCH & CLARK,06/10/2020,4354.79,L,80111600,Temporary personnel services
"Ministry of Housing, Communities and Local Government",Homes England,AGENCY STAFF,Executive Office,BADENOCH & CLARK,06/10/2020,"2,177.39",L,80111600,Temporary personnel services
"Ministry of Housing, Communities and Local Government",Homes England,AGENCY STAFF,Executive Office,BADENOCH & CLARK,06/10/2020,3870.92,L,80111600,Temporary personnel services
"Ministry of Housing, Communities and Local Government",Homes England,AGENCY STAFF,Executive Office,BADENOCH & CLARK,09/10/2020,"3,870.92",L,80111600,Temporary personnel services
"Ministry of Housing, Communities and Local Government",Homes England,AGENCY STAFF,Executive Office,BADENOCH & CLARK,19/10/2020,3387.06,L,80111600,Temporary personnel services
"Ministry of Housing, Communities and Local Government",Homes England,AGENCY STAFF,Programmes,BADENOCH & CLARK,20/10/2020,2330,L,80111600,Temporary personnel services
"Ministry of Housing, Communities and Local Government",Homes England,AGENCY STAFF,Programmes,BADENOCH & CLARK,20/10/2020,2330,L,80111600,Temporary personnel services
"Ministry of Housing, Communities and Local Government",Homes England,AGENCY STAFF,Programmes,BADENOCH & CLARK,23/10/2020,"2,330.00",L,80111600,Temporary personnel services
"Ministry of Housing, Communities and Local Government",Homes England,AGENCY STAFF,Programmes,BADENOCH & CLARK,28/10/2020,"2,330.00",L,80111600,Temporary personnel services
"Ministry of Housing, Communities and Local Government",Homes England,PROJECT MANAGEMENT,Programmes,RIDER LEVETT BUCKNALL UK LTD,12/10/2020,"2,000.00",L,80131800,Real estate management services
"Ministry of Housing, Communities and Local Government",Homes England,HOME WORKERS,Finance & Corporate Services,BRITISH TELECOMMUNICATIONS PLC,22/10/2020,"1,077.00",L,83111500,Local and long distance telephone communications
"Ministry of Housing, Communities and Local Government",Homes England,BUILDINGS-ELECTRICITY,North East And Yorkshire,BRITISH GAS BUSINESS,16/10/2020,279.48,L,83101800,Electric utilities
"Ministry of Housing, Communities and Local Government",Homes England,CAPITAL GRANTS TO LOCAL AUTHORITIES,Programmes,BOSTON BOROUGH COUNCIL,26/10/2020,"104,364.00",G,,Grants
"Ministry of Housing, Communities and Local Government",Homes England,ST Fund Loans Additions,Economic Assets Hub,BOOTHAM DEVELOPMENTS LLP,26/10/2020,"293,383.34",,,Loans
"Ministry of Housing, Communities and Local Government",Homes England,ENGINEERING FEES,North West,BROWNFIELD SOLUTIONS LIMITED,15/10/2020,8123.85,S,77101500,Environmental auditing
"Ministry of Housing, Communities and Local Government",Homes England,ST Fund Loans Additions,Economic Assets Hub,BUCHANAN ESTATES LIMITED,19/10/2020,"38,955.23",,,Loans
"Ministry of Housing, Communities and Local Government",Homes England,ST Fund Loans Additions,Economic Assets Hub,BROADLEAF NORWICH ROAD LIMITED,21/10/2020,"156,784.89",,,Loans
"Ministry of Housing, Communities and Local Government",Homes England,ST Fund Loans Additions,Economic Assets Hub,BATTY DEVELOPMENTS LIMITED,06/10/2020,"100,250.34",,,Loans
"Ministry of Housing, Communities and Local Government",Homes England,ST Fund Loans Additions,Economic Assets Hub,BATTY DEVELOPMENTS LIMITED,28/10/2020,74594.9,,,Loans
"Ministry of Housing, Communities and Local Government",Homes England,ST Fund Loans Additions,Economic Assets Hub,BARCLAYS BANK PLC,26/10/2020,"1,423,575.71",,,Loans
"Ministry of Housing, Communities and Local Government",Homes England,1st PARTY COSTS/FEES INCLUDING UNINSURED LOSSES,Programmes,BC LEGAL (OFFICE ACCOUNT),16/10/2020,"2,150.00",S,80121600,Business law services
"Ministry of Housing, Communities and Local Government",Homes England,ESTATE GENERAL MAINTENANCE,Midlands,BIRMINGHAM CITY COUNCIL,16/10/2020,334.00,G,76121500,Refuse collection and disposal
"Ministry of Housing, Communities and Local Government",Homes England,ESTATE GENERAL MAINTENANCE,Midlands,BIRMINGHAM CITY COUNCIL,16/10/2020,334,G,76121500,Refuse collection and disposal
"Ministry of Housing, Communities and Local Government",Homes England,LT Fund Loans (Ps) Additions,Economic Assets Hub,BXS LIMITED PARTNERSHIP,06/10/2020,1334688.48,,,Loans
"Ministry of Housing, Communities and Local Government",Homes England,RENT PAYABLE,Programmes,BASILDON RUGBY FOOTBALL CLUB,14/10/2020,"2,705.00",S,80131500,Lease and rental of property or building
"Ministry of Housing, Communities and Local Government",Homes England,RI - MONITORING SURVEYOR FEES,Economic Assets Hub,BNP PARIBAS REAL ESTATE,01/10/2020,700.00,L,80131800,Real estate management services
"Ministry of Housing, Communities and Local Government",Homes England,RI - MONITORING SURVEYOR FEES,Economic Assets Hub,BNP PARIBAS REAL ESTATE,01/10/2020,600.00,L,80131800,Real estate management services
"Ministry of Housing, Communities and Local Government",Homes England,RI - MONITORING SURVEYOR FEES,Economic Assets Hub,BNP PARIBAS REAL ESTATE,01/10/2020,600.00,L,80131800,Real estate management services
"Ministry of Housing, Communities and Local Government",Homes England,Professional Fees Loans Capitalised,Economic Assets Hub,BNP PARIBAS REAL ESTATE,01/10/2020,900,L,80131800,Real estate management services
"Ministry of Housing, Communities and Local Government",Homes England,RI - MONITORING SURVEYOR FEES,Economic Assets Hub,BNP PARIBAS REAL ESTATE,01/10/2020,850.00,L,80131800,Real estate management services
"Ministry of Housing, Communities and Local Government",Homes England,OPEN MARKET VALUATION FEE,East And South East,BNP PARIBAS REAL ESTATE,01/10/2020,3000,L,80131800,Real estate management services
"Ministry of Housing, Communities and Local Government",Homes England,RI - MONITORING SURVEYOR FEES,Economic Assets Hub,BNP PARIBAS REAL ESTATE,02/10/2020,850.00,L,80131800,Real estate management services
"Ministry of Housing, Communities and Local Government",Homes England,Professional Fees Loans Capitalised,Economic Assets Hub,BNP PARIBAS REAL ESTATE,07/10/2020,"1,400.00",L,80131800,Real estate management services
"Ministry of Housing, Communities and Local Government",Homes England,RI - MONITORING SURVEYOR FEES,Economic Assets Hub,BNP PARIBAS REAL ESTATE,15/10/2020,600,L,80131800,Real estate management services
"Ministry of Housing, Communities and Local Government",Homes England,PROPERTY SERVICES,North West,BNP PARIBAS REAL ESTATE,15/10/2020,3098.9,L,80131800,Real estate management services
"Ministry of Housing, Communities and Local Government",Homes England,RI - MONITORING SURVEYOR FEES,Economic Assets Hub,BNP PARIBAS REAL ESTATE,27/10/2020,850,L,80131800,Real estate management services
"Ministry of Housing, Communities and Local Government",Homes England,RI - MONITORING SURVEYOR FEES,Economic Assets Hub,BNP PARIBAS REAL ESTATE,27/10/2020,850,L,80131800,Real estate management services
"Ministry of Housing, Communities and Local Government",Homes England,OPEN MARKET VALUATION FEE,East And South East,BNP PARIBAS REAL ESTATE,29/10/2020,500,L,80131800,Real estate management services
"Ministry of Housing, Communities and Local Government",Homes England,ESTATE GENERAL MAINTENANCE,Programmes,BROOKFIELD CONTRACTING & FARMING LTD,14/10/2020,536.66,S,72101500,Building maintenance and repair services
"Ministry of Housing, Communities and Local Government",Homes England,COST OF ACQUISITION,Programmes,BOND DICKINSON LLP,07/10/2020,"15,000.00",,,Acquisitions
"Ministry of Housing, Communities and Local Government",Homes England,Homebuy Agents Fees,Programmes,BOND DICKINSON LLP,20/10/2020,21225,L,80121600,Business law services
"Ministry of Housing, Communities and Local Government",Homes England,LEGAL FEES,Programmes,BOND DICKINSON LLP,30/10/2020,"18,657.00",L,80121600,Business law services
"Ministry of Housing, Communities and Local Government",Homes England,LEGAL FEES (ADMIN ONLY),Finance & Corporate Services,BASINGSTOKE & DEANE BOROUGH COUNCIL,09/10/2020,"7,000.00",G,80121600,Business law services
"Ministry of Housing, Communities and Local Government",Homes England,LANDSCAPE MAINT-BUILT ESTATE,North East And Yorkshire,G BURLEY & SONS LTD,13/10/2020,281.41,S,72101500,Building maintenance and repair services
"Ministry of Housing, Communities and Local Government",Homes England,ESTATE AGENTS FEES,East And South East,BERRYS,07/10/2020,"2,000.00",S,80131800,Real estate management services
"Ministry of Housing, Communities and Local Government",Homes England,PROPERTY SERVICES,South West,BERRYS,12/10/2020,"1,500.00",S,80131800,Real estate management services
"Ministry of Housing, Communities and Local Government",Homes England,MISC PROFESSIONAL FEES,Programmes,BERRYS,16/10/2020,4500,S,80131800,Real estate management services
"Ministry of Housing, Communities and Local Government",Homes England,ESTATE GENERAL MAINTENANCE,Programmes,CORNTHWAITE TREE CARE LIMITED,16/10/2020,600.00,S,72102900,Building maintenance and repair services
"Ministry of Housing, Communities and Local Government",Homes England,MASTERPLANNING FEES,Midlands,CAMPBELL REITH,01/10/2020,8938,M,77101500,Environmental auditing
"Ministry of Housing, Communities and Local Government",Homes England,ENGINEERING CONSULTANTS,South West,CAMPBELL REITH,02/10/2020,500,M,77101500,Environmental auditing
"Ministry of Housing, Communities and Local Government",Homes England,ENGINEERING CONSULTANTS,South West,CAMPBELL REITH,02/10/2020,"1,500.00",M,77101500,Environmental auditing
"Ministry of Housing, Communities and Local Government",Homes England,PLANNING APPLICATIONS,North West,CAMPBELL REITH,07/10/2020,"1,247.50",M,77101500,Environmental auditing
"Ministry of Housing, Communities and Local Government",Homes England,MASTERPLANNING FEES,South West,CAMPBELL REITH,07/10/2020,"96,338.28",M,77101500,Environmental auditing
"Ministry of Housing, Communities and Local Government",Homes England,RI - MONITORING SURVEYOR FEES,Economic Assets Hub,CAMPBELL REITH,08/10/2020,"1,900.00",M,77101500,Environmental auditing
"Ministry of Housing, Communities and Local Government",Homes England,ENGINEERING CONSULTANTS,East And South East,CAMPBELL REITH,09/10/2020,"9,924.00",M,77101500,Environmental auditing
"Ministry of Housing, Communities and Local Government",Homes England,ENGINEERING CONSULTANTS,South West,CAMPBELL REITH,09/10/2020,"1,000.00",M,77101500,Environmental auditing
"Ministry of Housing, Communities and Local Government",Homes England,ENGINEERING CONSULTANTS,East And South East,CAMPBELL REITH,09/10/2020,2250,M,77101500,Environmental auditing
"Ministry of Housing, Communities and Local Government",Homes England,ENGINEERING CONSULTANTS,South West,CAMPBELL REITH,09/10/2020,2050,M,77101500,Environmental auditing
"Ministry of Housing, Communities and Local Government",Homes England,ENGINEERING CONSULTANTS,East And South East,CAMPBELL REITH,13/10/2020,4741.29,M,77101500,Environmental auditing
"Ministry of Housing, Communities and Local Government",Homes England,ENGINEERING CONSULTANTS,South West,CAMPBELL REITH,13/10/2020,"1,405.33",M,77101500,Environmental auditing
"Ministry of Housing, Communities and Local Government",Homes England,ENGINEERING FEES,Midlands,CAMPBELL REITH,13/10/2020,1900,M,77101500,Environmental auditing
"Ministry of Housing, Communities and Local Government",Homes England,ENGINEERING CONSULTANTS,East And South East,CAMPBELL REITH,13/10/2020,"1,750.00",M,77101500,Environmental auditing
"Ministry of Housing, Communities and Local Government",Homes England,ENGINEERING CONSULTANTS,East And South East,CAMPBELL REITH,14/10/2020,"6,051.30",M,77101500,Environmental auditing
"Ministry of Housing, Communities and Local Government",Homes England,ENVIRONMENTAL IMPACT ASSESMENTS,North West,CAMPBELL REITH,15/10/2020,383.29,M,77101500,Environmental auditing
"Ministry of Housing, Communities and Local Government",Homes England,MISC PROFESSIONAL FEES,North East And Yorkshire,CAMPBELL REITH,16/10/2020,"11,179.00",M,77101500,Environmental auditing
"Ministry of Housing, Communities and Local Government",Homes England,RI - MONITORING SURVEYOR FEES,Economic Assets Hub,CAMPBELL REITH,23/10/2020,"1,085.00",M,77101500,Environmental auditing
"Ministry of Housing, Communities and Local Government",Homes England,OPEN MARKET VALUATION FEE,East And South East,CARTER JONAS,01/10/2020,"3,750.00",L,80131800,Real estate management services
"Ministry of Housing, Communities and Local Government",Homes England,PROPERTY SERVICES,East And South East,CARTER JONAS,01/10/2020,"3,875.00",L,80131800,Real estate management services
"Ministry of Housing, Communities and Local Government",Homes England,OTHER PROFESSIONAL FEES,Programmes,CARTER JONAS,06/10/2020,2500,L,80131800,Real estate management services
"Ministry of Housing, Communities and Local Government",Homes England,DISPOSAL FEES - PROPERTY AGENTS & ADVERTISING,Midlands,CARTER JONAS,07/10/2020,"2,390.34",L,80131800,Real estate management services
"Ministry of Housing, Communities and Local Government",Homes England,RI - MONITORING SURVEYOR FEES,Economic Assets Hub,CARTER JONAS,19/10/2020,700,L,80131800,Real estate management services
"Ministry of Housing, Communities and Local Government",Homes England,SECONDED STAFF COSTS,Programmes,CARTER JONAS,26/10/2020,1923.75,L,80131800,Real estate management services
"Ministry of Housing, Communities and Local Government",Homes England,PROPERTY SERVICES,East And South East,CARTER JONAS,29/10/2020,2000,L,80131800,Real estate management services
"Ministry of Housing, Communities and Local Government",Homes England,OPEN MARKET VALUATION FEE,Programmes,CARTER JONAS,30/10/2020,4700,L,80131800,Real estate management services
"Ministry of Housing, Communities and Local Government",Homes England,GAS,Finance & Corporate Services,CORONA ENERGY,07/10/2020,295.01,L,83101600,Oil and gas utilities
"Ministry of Housing, Communities and Local Government",Homes England,GAS,Finance & Corporate Services,CORONA ENERGY,,380.46,L,83101600,Oil and gas utilities
"Ministry of Housing, Communities and Local Government",Homes England,GAS,Finance & Corporate Services,CORONA ENERGY,,257.9,L,83101600,Oil and gas utilities
"Ministry of Housing, Communities and Local Government",Homes England,GAS,Finance & Corporate Services,CORONA ENERGY,,254.74,L,83101600,Oil and gas utilities
"Ministry of Housing, Communities and Local Government",Homes England,GAS,Finance & Corporate Services,CORONA ENERGY,,265.42,L,83101600,Oil and gas utilities
"Ministry of Housing, Communities and Local Government",Homes England,DATA CENTRE,Finance & Corporate Services,CROWN HOSTING DATA CENTRES LIMITED,15/10/2020,1550,L,81112100,Internet services
"Ministry of Housing, Communities and Local Government",Homes England,DATA CENTRE,Finance & Corporate Services,CROWN HOSTING DATA CENTRES LIMITED,15/10/2020,2249.25,L,81112100,Internet services
"Ministry of Housing, Communities and Local Government",Homes England,DATA CENTRE,Finance & Corporate Services,CROWN HOSTING DATA CENTRES LIMITED,15/10/2020,1012.16,L,81112100,Internet services
"Ministry of Housing, Communities and Local Government",Homes England,DATA CENTRE,Finance & Corporate Services,CROWN HOSTING DATA CENTRES LIMITED,15/10/2020,2253.45,L,81112100,Internet services
"Ministry of Housing, Communities and Local Government",Homes England,COURSES & CONFERENCES,North East And Yorkshire,CATRIONA PATTERSON,09/10/2020,1395,S,86101800,In service training and manpower development
"Ministry of Housing, Communities and Local Government",Homes England,ST Fund Loans Additions,Economic Assets Hub,CLL (HOLLINS LANE) LTD,16/10/2020,64067.4,,,Loans
"Ministry of Housing, Communities and Local Government",Homes England,LAND REMEDIATION,Programmes,CAMBRIDGE ARCHAEOLOGY UNIT,08/10/2020,18592.5,L,80131800,Real estate management services
"Ministry of Housing, Communities and Local Government",Homes England,Professional Fees Loans Capitalised,Economic Assets Hub,COLLIERS INTERNATIONAL PROPERTY CONSULTANTS,01/10/2020,1650,S,80131800,Real estate management services
"Ministry of Housing, Communities and Local Government",Homes England,Professional Fees Loans Capitalised,Economic Assets Hub,COLLIERS INTERNATIONAL PROPERTY CONSULTANTS,01/10/2020,1650,S,80131800,Real estate management services
"Ministry of Housing, Communities and Local Government",Homes England,RI - MONITORING SURVEYOR FEES,Economic Assets Hub,COLLIERS INTERNATIONAL PROPERTY CONSULTANTS,12/10/2020,750,S,80131800,Real estate management services
"Ministry of Housing, Communities and Local Government",Homes England,RI - MONITORING SURVEYOR FEES,Economic Assets Hub,COLLIERS INTERNATIONAL PROPERTY CONSULTANTS,19/10/2020,750,S,80131800,Real estate management services
"Ministry of Housing, Communities and Local Government",Homes England,RI - MONITORING SURVEYOR FEES,Economic Assets Hub,COLLIERS INTERNATIONAL PROPERTY CONSULTANTS,19/10/2020,750.00,S,80131800,Real estate management services
"Ministry of Housing, Communities and Local Government",Homes England,RI - MONITORING SURVEYOR FEES,Economic Assets Hub,COLLIERS INTERNATIONAL PROPERTY CONSULTANTS,19/10/2020,750,S,80131800,Real estate management services
"Ministry of Housing, Communities and Local Government",Homes England,RI - MONITORING SURVEYOR FEES,Economic Assets Hub,COLLIERS INTERNATIONAL PROPERTY CONSULTANTS,23/10/2020,675.00,S,80131800,Real estate management services
"Ministry of Housing, Communities and Local Government",Homes England,RI - MONITORING SURVEYOR FEES,Economic Assets Hub,COLLIERS INTERNATIONAL PROPERTY CONSULTANTS,26/10/2020,675.00,S,80131800,Real estate management services
"Ministry of Housing, Communities and Local Government",Homes England,LAND REMEDIATION,South West,COGNITION LAND & WATER,16/10/2020,"36,569.15",M,72141500,Land preparation services
"Ministry of Housing, Communities and Local Government",Homes England,LEGAL FEES,Economic Assets Hub,CLARKE WILLMOTT LLP,01/10/2020,400,M,80121600,Business law services
"Ministry of Housing, Communities and Local Government",Homes England,LEGAL FEES,Economic Assets Hub,CLARKE WILLMOTT LLP,01/10/2020,400.00,M,80121600,Business law services
"Ministry of Housing, Communities and Local Government",Homes England,LEGAL FEES,Economic Assets Hub,CLARKE WILLMOTT LLP,01/10/2020,400,M,80121600,Business law services
"Ministry of Housing, Communities and Local Government",Homes England,DISPOSAL FEES - LEGAL,South West,CLARKE WILLMOTT LLP,07/10/2020,"4,800.00",M,80121600,Business law services
"Ministry of Housing, Communities and Local Government",Homes England,DISPOSAL FEES - LEGAL,South West,CLARKE WILLMOTT LLP,07/10/2020,669.42,M,80121600,Business law services
"Ministry of Housing, Communities and Local Government",Homes England,LEGAL FEES,Economic Assets Hub,CLARKE WILLMOTT LLP,13/10/2020,404.27,M,80121600,Business law services
"Ministry of Housing, Communities and Local Government",Homes England,LEGAL FEES,North West,CLARKE WILLMOTT LLP,27/10/2020,"1,218.00",M,80121600,Business law services
"Ministry of Housing, Communities and Local Government",Homes England,LEGAL FEES,Economic Assets Hub,CLARKE WILLMOTT LLP,29/10/2020,404.27,M,80121600,Business law services
"Ministry of Housing, Communities and Local Government",Homes England,LEGAL FEES,Economic Assets Hub,CLARKE WILLMOTT LLP,29/10/2020,404.27,M,80121600,Business law services
"Ministry of Housing, Communities and Local Government",Homes England,CLEANING,Finance & Corporate Services,CHURCHILL CONTRACT SERVICES LTD,06/10/2020,3537.43,S,76111504,Window or window blind cleaning services
"Ministry of Housing, Communities and Local Government",Homes England,STAFF RECRUITMENT COSTS,Finance & Corporate Services,CIVIL SERVICE HR,20/10/2020,8420.37,G,80141600,Sales and business promotion activities
"Ministry of Housing, Communities and Local Government",Homes England,CAPITAL GRANTS TO LOCAL AUTHORITIES,Programmes,CENTRAL BEDFORDSHIRE COUNCIL,26/10/2020,734839,G,,Grants
"Ministry of Housing, Communities and Local Government",Homes England,ST Fund Loans Additions,Economic Assets Hub,CC HOMES LTD,27/10/2020,33533,,,Loans
"Ministry of Housing, Communities and Local Government",Homes England,MANAGEMENT COSTS,South West,C.M.A. (NEMESIS) LTD,12/10/2020,285,S,72102100,Pest control
"Ministry of Housing, Communities and Local Government",Homes England,MANAGEMENT COSTS,South West,C.M.A. (NEMESIS) LTD,13/10/2020,380,S,72102100,Pest control
"Ministry of Housing, Communities and Local Government",Homes England,MANAGEMENT COSTS,South West,C.M.A. (NEMESIS) LTD,13/10/2020,865,S,72102100,Pest control
"Ministry of Housing, Communities and Local Government",Homes England,ESTATE GENERAL MAINTENANCE,South West,C.M.A. (NEMESIS) LTD,22/10/2020,308,S,72102100,Pest control
"Ministry of Housing, Communities and Local Government",Homes England,SECONDED STAFF COSTS,Finance & Corporate Services,CIVIL SERVICE RESOURCING,06/10/2020,13107.02,G,80141600,Sales and business promotion activities
"Ministry of Housing, Communities and Local Government",Homes England,DATA CENTRE,Finance & Corporate Services,CENTERPRISE INTERNATIONAL,02/10/2020,6566.7,L,73231500,Business function specific software
"Ministry of Housing, Communities and Local Government",Homes England,FENCE MAINTENANCE,Programmes,K D CHILDS STONEWORK DEVELOPMENTS,02/10/2020,850,S,72101500,Building maintenance and repair services
"Ministry of Housing, Communities and Local Government",Homes England,FENCE MAINTENANCE,Programmes,K D CHILDS STONEWORK DEVELOPMENTS,02/10/2020,3650,S,72101500,Building maintenance and repair services
"Ministry of Housing, Communities and Local Government",Homes England,PROPERTY MAINTENANCE,Programmes,C-ELECT ASSOCIATES LIMITED,06/10/2020,1500,S,72101500,Building maintenance and repair services
"Ministry of Housing, Communities and Local Government",Homes England,ESTATE GENERAL MAINTENANCE,East And South East,C-ELECT ASSOCIATES LIMITED,09/10/2020,580,S,72101500,Building maintenance and repair services
"Ministry of Housing, Communities and Local Government",Homes England,PROPERTY MAINTENANCE,East And South East,C-ELECT ASSOCIATES LIMITED,09/10/2020,720,S,72101500,Building maintenance and repair services
"Ministry of Housing, Communities and Local Government",Homes England,PROPERTY MAINTENANCE,East And South East,C-ELECT ASSOCIATES LIMITED,09/10/2020,472,S,72101500,Building maintenance and repair services
"Ministry of Housing, Communities and Local Government",Homes England,RESERVOIRS REPAIR & MAINTENANCE,North East And Yorkshire,C-ELECT ASSOCIATES LIMITED,13/10/2020,450,S,72101500,Building maintenance and repair services
"Ministry of Housing, Communities and Local Government",Homes England,ESTATE GENERAL MAINTENANCE,Programmes,C-ELECT ASSOCIATES LIMITED,14/10/2020,582,S,72101500,Building maintenance and repair services
"Ministry of Housing, Communities and Local Government",Homes England,PROPERTY MAINTENANCE,Programmes,C-ELECT ASSOCIATES LIMITED,19/10/2020,5867.5,S,72101500,Building maintenance and repair services
"Ministry of Housing, Communities and Local Government",Homes England,BUILDINGS-WATER,East And South East,CHESTER & NEWMAN PLUMBING & HEATING SERVICES,21/10/2020,420,S,72101500,Building maintenance and repair services
"Ministry of Housing, Communities and Local Government",Homes England,HEALTH & SAFETY SURVEYS,East And South East,CHESTER & NEWMAN PLUMBING & HEATING SERVICES,21/10/2020,500,S,72101500,Building maintenance and repair services
"Ministry of Housing, Communities and Local Government",Homes England,OTHER,Programmes,CONCUR TRUST ACCOUNT,23/10/2020,594,L,43231500,Business function specific software
"Ministry of Housing, Communities and Local Government",Homes England,CAR LEASING - OTHER COSTS,South West,CONCUR TRUST ACCOUNT,30/10/2020,277.03,L,43231500,Business function specific software
"Ministry of Housing, Communities and Local Government",Homes England,MISC PROFESSIONAL FEES,Programmes,CB RICHARD ELLIS,01/10/2020,"38,000.00",L,80131800,Real estate management services
"Ministry of Housing, Communities and Local Government",Homes England,MISC PROFESSIONAL FEES,Programmes,CB RICHARD ELLIS,01/10/2020,"38,000.00",L,80131800,Real estate management services
"Ministry of Housing, Communities and Local Government",Homes England,RI - MONITORING SURVEYOR FEES,Economic Assets Hub,CB RICHARD ELLIS,07/10/2020,1650,L,80131800,Real estate management services
"Ministry of Housing, Communities and Local Government",Homes England,ST Fund Loans Additions,Economic Assets Hub,COLN AT THE KNOLL LTD,26/10/2020,93274,,,Loans
"Ministry of Housing, Communities and Local Government",Homes England,CAPITAL GRANTS TO LOCAL AUTHORITIES,Programmes,CRAWLEY BOROUGH COUNCIL,28/10/2020,3250000,G,,Grants
"Ministry of Housing, Communities and Local Government",Homes England,ST Fund Loans Additions,Economic Assets Hub,CLEANSLATE (HURSTBOURNE PRIORS) LTD,02/10/2020,"2,771,659.00",,,Loans
"Ministry of Housing, Communities and Local Government",Homes England,ESTATE GENERAL MAINTENANCE,Programmes,CHANNEL ENGINEERING LTD,06/10/2020,450,S,72101500,Building maintenance and repair services
"Ministry of Housing, Communities and Local Government",Homes England,ESTATE GENERAL MAINTENANCE,Programmes,CHANNEL ENGINEERING LTD,06/10/2020,450.00,S,72101500,Building maintenance and repair services
"Ministry of Housing, Communities and Local Government",Homes England,ESTATE GENERAL MAINTENANCE,Programmes,CHANNEL ENGINEERING LTD,06/10/2020,450,S,72101500,Building maintenance and repair services
"Ministry of Housing, Communities and Local Government",Homes England,ESTATE GENERAL MAINTENANCE,Programmes,CHANNEL ENGINEERING LTD,06/10/2020,450,S,72101500,Building maintenance and repair services
"Ministry of Housing, Communities and Local Government",Homes England,PROPERTY MAINTENANCE,East And South East,CHANNEL ENGINEERING LTD,08/10/2020,450.00,S,72101500,Building maintenance and repair services
"Ministry of Housing, Communities and Local Government",Homes England,PROPERTY MAINTENANCE,East And South East,CHANNEL ENGINEERING LTD,08/10/2020,450.00,S,72101500,Building maintenance and repair services
"Ministry of Housing, Communities and Local Government",Homes England,PROPERTY MAINTENANCE,East And South East,CHANNEL ENGINEERING LTD,08/10/2020,400.00,S,72101500,Building maintenance and repair services
"Ministry of Housing, Communities and Local Government",Homes England,PROPERTY MAINTENANCE,East And South East,CHANNEL ENGINEERING LTD,12/10/2020,450.00,S,72101500,Building maintenance and repair services
"Ministry of Housing, Communities and Local Government",Homes England,DRAINS & SEWERS,East And South East,CHANNEL ENGINEERING LTD,21/10/2020,300.00,S,72101500,Building maintenance and repair services
"Ministry of Housing, Communities and Local Government",Homes England,DRAINS & SEWERS,East And South East,CHANNEL ENGINEERING LTD,21/10/2020,380.00,S,72101500,Building maintenance and repair services
"Ministry of Housing, Communities and Local Government",Homes England,SECURITY (Incl Fire Prevention),Finance & Corporate Services,CAM-TEC SYSTEMS LIMITED,30/10/2020,"1,573.30",S,72102900,Facility maintenance and repair services
"Ministry of Housing, Communities and Local Government",Homes England,ESTATE GENERAL MAINTENANCE,Programmes,CARTWRIGHT LANDSCAPES,02/10/2020,586.83,S,72101500,Building maintenance and repair services
"Ministry of Housing, Communities and Local Government",Homes England,ESTATE GENERAL MAINTENANCE,Programmes,CARTWRIGHT LANDSCAPES,02/10/2020,586.83,S,72101500,Building maintenance and repair services
"Ministry of Housing, Communities and Local Government",Homes England,LANDSCAPE MAINT-BUILT ESTATE,East And South East,CARTWRIGHT LANDSCAPES,02/10/2020,514.34,S,72101500,Building maintenance and repair services
"Ministry of Housing, Communities and Local Government",Homes England,ESTATE GENERAL MAINTENANCE,East And South East,CARTWRIGHT LANDSCAPES,02/10/2020,303.69,S,72101500,Building maintenance and repair services
"Ministry of Housing, Communities and Local Government",Homes England,ESTATE GENERAL MAINTENANCE,Programmes,CARTWRIGHT LANDSCAPES,02/10/2020,586.83,S,72101500,Building maintenance and repair services
"Ministry of Housing, Communities and Local Government",Homes England,LANDSCAPE MAINT-BUILT ESTATE,East And South East,CARTWRIGHT LANDSCAPES,27/10/2020,514.34,S,72101500,Building maintenance and repair services
"Ministry of Housing, Communities and Local Government",Homes England,LANDSCAPE MAINT-BUILT ESTATE,East And South East,CARTWRIGHT LANDSCAPES,30/10/2020,514.34,S,72101500,Building maintenance and repair services
"Ministry of Housing, Communities and Local Government",Homes England,FURNITURE & EQUIPMENT-PURCHASE,Finance & Corporate Services,ENGIE FM LIMITED,19/10/2020,"2,259.85",L,72102900,Facility maintenance and repair services
"Ministry of Housing, Communities and Local Government",Homes England,ESTATE GENERAL MAINTENANCE,North East And Yorkshire,ENGIE FM LIMITED,21/10/2020,342.70,L,72102900,Facility maintenance and repair services
"Ministry of Housing, Communities and Local Government",Homes England,ESTATE GENERAL MAINTENANCE,Programmes,ENGIE FM LIMITED,23/10/2020,877.45,L,72102900,Facility maintenance and repair services
"Ministry of Housing, Communities and Local Government",Homes England,PLANNED PREVENTATIVE MAINTENANCE,Finance & Corporate Services,ENGIE FM LIMITED,27/10/2020,"1,783.86",L,72102900,Facility maintenance and repair services
"Ministry of Housing, Communities and Local Government",Homes England,PLANNED PREVENTATIVE MAINTENANCE,Finance & Corporate Services,ENGIE FM LIMITED,28/10/2020,"3,424.50",L,72102900,Facility maintenance and repair services
"Ministry of Housing, Communities and Local Government",Homes England,LEGAL FEES,Programmes,MILLS & REEVE,05/10/2020,296.00,S,80121600,Business law services
"Ministry of Housing, Communities and Local Government",Homes England,Professional Fees Equity Capitalised,Economic Assets Hub,MILLS & REEVE,09/10/2020,7000,S,80121600,Business law services
"Ministry of Housing, Communities and Local Government",Homes England,Homebuy Agents Fees,Programmes,MILLS & REEVE,12/10/2020,10000,S,80121600,Business law services
"Ministry of Housing, Communities and Local Government",Homes England,LEGAL FEES,Programmes,MILLS & REEVE,15/10/2020,5921,S,80121600,Business law services
"Ministry of Housing, Communities and Local Government",Homes England,OTHER PROFESSIONAL FEES,Programmes,WYG ENVIRONMENT PLANNING TRANSPORT LTD,20/10/2020,"9,870.00",L,81101500,Civil Engineering
"Ministry of Housing, Communities and Local Government",Homes England,PROPERTY SERVICES,Programmes,WYG ENVIRONMENT PLANNING TRANSPORT LTD,26/10/2020,490.00,L,81101500,Civil Engineering
"Ministry of Housing, Communities and Local Government",Homes England,MISC PROFESSIONAL FEES (ADMIN ONLY),Executive Office,DRIVERS JONAS DELOITTE,13/10/2020,37515,L,80131800,Real estate management services
"Ministry of Housing, Communities and Local Government",Homes England,PROPERTY SERVICES,Programmes,DRIVERS JONAS DELOITTE,14/10/2020,30000,L,80131800,Real estate management services
"Ministry of Housing, Communities and Local Government",Homes England,PROPERTY SERVICES,Programmes,DRIVERS JONAS DELOITTE,14/10/2020,"10,000.00",L,80131800,Real estate management services
"Ministry of Housing, Communities and Local Government",Homes England,PROPERTY SERVICES,Programmes,DRIVERS JONAS DELOITTE,14/10/2020,10000,L,80131800,Real estate management services
"Ministry of Housing, Communities and Local Government",Homes England,PROPERTY SERVICES,North East And Yorkshire,DRIVERS JONAS DELOITTE,16/10/2020,"28,500.57",L,80131800,Real estate management services
"Ministry of Housing, Communities and Local Government",Homes England,PROPERTY SERVICES,North East And Yorkshire,DRIVERS JONAS DELOITTE,16/10/2020,45572.55,L,80131800,Real estate management services
"Ministry of Housing, Communities and Local Government",Homes England,MISC PROFESSIONAL FEES (ADMIN ONLY),North East And Yorkshire,DELOITTE & TOUCHE,05/10/2020,53627,L,84111700,Corporate Finance
"Ministry of Housing, Communities and Local Government",Homes England,PLANNING APPLICATIONS,Midlands,CUSHMAN & WAKEFIELD DEBENHAM TIE LEUNG,01/10/2020,"2,000.00",L,80131800,Real estate management services
"Ministry of Housing, Communities and Local Government",Homes England,RI - MONITORING SURVEYOR FEES,Economic Assets Hub,CUSHMAN & WAKEFIELD DEBENHAM TIE LEUNG,01/10/2020,700.00,L,80131800,Real estate management services
"Ministry of Housing, Communities and Local Government",Homes England,RI - MONITORING SURVEYOR FEES,Economic Assets Hub,CUSHMAN & WAKEFIELD DEBENHAM TIE LEUNG,01/10/2020,700.00,L,80131800,Real estate management services
"Ministry of Housing, Communities and Local Government",Homes England,RI - MONITORING SURVEYOR FEES,Economic Assets Hub,CUSHMAN & WAKEFIELD DEBENHAM TIE LEUNG,02/10/2020,800,L,80131800,Real estate management services
"Ministry of Housing, Communities and Local Government",Homes England,RI - MONITORING SURVEYOR FEES,Economic Assets Hub,CUSHMAN & WAKEFIELD DEBENHAM TIE LEUNG,02/10/2020,800,L,80131800,Real estate management services
"Ministry of Housing, Communities and Local Government",Homes England,RI - MONITORING SURVEYOR FEES,Economic Assets Hub,CUSHMAN & WAKEFIELD DEBENHAM TIE LEUNG,02/10/2020,800,L,80131800,Real estate management services
"Ministry of Housing, Communities and Local Government",Homes England,RI - MONITORING SURVEYOR FEES,Economic Assets Hub,CUSHMAN & WAKEFIELD DEBENHAM TIE LEUNG,02/10/2020,800,L,80131800,Real estate management services
"Ministry of Housing, Communities and Local Government",Homes England,RI - MONITORING SURVEYOR FEES,Economic Assets Hub,CUSHMAN & WAKEFIELD DEBENHAM TIE LEUNG,02/10/2020,750.00,L,80131800,Real estate management services
"Ministry of Housing, Communities and Local Government",Homes England,RI - MONITORING SURVEYOR FEES,Economic Assets Hub,CUSHMAN & WAKEFIELD DEBENHAM TIE LEUNG,02/10/2020,700.00,L,80131800,Real estate management services
"Ministry of Housing, Communities and Local Government",Homes England,RI - MONITORING SURVEYOR FEES,Programmes,CUSHMAN & WAKEFIELD DEBENHAM TIE LEUNG,02/10/2020,750,L,80131800,Real estate management services
"Ministry of Housing, Communities and Local Government",Homes England,RI - MONITORING SURVEYOR FEES,Economic Assets Hub,CUSHMAN & WAKEFIELD DEBENHAM TIE LEUNG,02/10/2020,700,L,80131800,Real estate management services
"Ministry of Housing, Communities and Local Government",Homes England,RI - MONITORING SURVEYOR FEES,Economic Assets Hub,CUSHMAN & WAKEFIELD DEBENHAM TIE LEUNG,02/10/2020,700.00,L,80131800,Real estate management services
"Ministry of Housing, Communities and Local Government",Homes England,RI - MONITORING SURVEYOR FEES,Economic Assets Hub,CUSHMAN & WAKEFIELD DEBENHAM TIE LEUNG,02/10/2020,700.00,L,80131800,Real estate management services
"Ministry of Housing, Communities and Local Government",Homes England,RI - MONITORING SURVEYOR FEES,Economic Assets Hub,CUSHMAN & WAKEFIELD DEBENHAM TIE LEUNG,02/10/2020,850.00,L,80131800,Real estate management services
"Ministry of Housing, Communities and Local Government",Homes England,RI - MONITORING SURVEYOR FEES,Programmes,CUSHMAN & WAKEFIELD DEBENHAM TIE LEUNG,02/10/2020,750.00,L,80131800,Real estate management services
"Ministry of Housing, Communities and Local Government",Homes England,RI - MONITORING SURVEYOR FEES,Economic Assets Hub,CUSHMAN & WAKEFIELD DEBENHAM TIE LEUNG,02/10/2020,850.00,L,80131800,Real estate management services
"Ministry of Housing, Communities and Local Government",Homes England,MISC PROFESSIONAL FEES,Programmes,CUSHMAN & WAKEFIELD DEBENHAM TIE LEUNG,02/10/2020,"6,302.00",L,80131800,Real estate management services
"Ministry of Housing, Communities and Local Government",Homes England,RI - MONITORING SURVEYOR FEES,Economic Assets Hub,CUSHMAN & WAKEFIELD DEBENHAM TIE LEUNG,08/10/2020,700.00,L,80131800,Real estate management services
"Ministry of Housing, Communities and Local Government",Homes England,OPEN MARKET VALUATION FEE,North West,CUSHMAN & WAKEFIELD DEBENHAM TIE LEUNG,08/10/2020,950.00,L,80131800,Real estate management services
"Ministry of Housing, Communities and Local Government",Homes England,RI - MONITORING SURVEYOR FEES,Economic Assets Hub,CUSHMAN & WAKEFIELD DEBENHAM TIE LEUNG,14/10/2020,800.00,L,80131800,Real estate management services
"Ministry of Housing, Communities and Local Government",Homes England,RI - MONITORING SURVEYOR FEES,Economic Assets Hub,CUSHMAN & WAKEFIELD DEBENHAM TIE LEUNG,15/10/2020,2800,L,80131800,Real estate management services
"Ministry of Housing, Communities and Local Government",Homes England,RI - MONITORING SURVEYOR FEES,Programmes,CUSHMAN & WAKEFIELD DEBENHAM TIE LEUNG,15/10/2020,700,L,80131800,Real estate management services
"Ministry of Housing, Communities and Local Government",Homes England,RI - MONITORING SURVEYOR FEES,Economic Assets Hub,CUSHMAN & WAKEFIELD DEBENHAM TIE LEUNG,15/10/2020,700,L,80131800,Real estate management services
"Ministry of Housing, Communities and Local Government",Homes England,RI - MONITORING SURVEYOR FEES,Economic Assets Hub,CUSHMAN & WAKEFIELD DEBENHAM TIE LEUNG,15/10/2020,700.00,L,80131800,Real estate management services
"Ministry of Housing, Communities and Local Government",Homes England,RI - MONITORING SURVEYOR FEES,Economic Assets Hub,CUSHMAN & WAKEFIELD DEBENHAM TIE LEUNG,15/10/2020,700.00,L,80131800,Real estate management services
"Ministry of Housing, Communities and Local Government",Homes England,RI - MONITORING SURVEYOR FEES,Economic Assets Hub,CUSHMAN & WAKEFIELD DEBENHAM TIE LEUNG,15/10/2020,700,L,80131800,Real estate management services
"Ministry of Housing, Communities and Local Government",Homes England,MISC PROFESSIONAL FEES,Programmes,CUSHMAN & WAKEFIELD DEBENHAM TIE LEUNG,15/10/2020,"1,274.00",L,80131800,Real estate management services
"Ministry of Housing, Communities and Local Government",Homes England,RI - MONITORING SURVEYOR FEES,Economic Assets Hub,CUSHMAN & WAKEFIELD DEBENHAM TIE LEUNG,23/10/2020,890,L,80131800,Real estate management services
"Ministry of Housing, Communities and Local Government",Homes England,RI - MONITORING SURVEYOR FEES,Economic Assets Hub,CUSHMAN & WAKEFIELD DEBENHAM TIE LEUNG,23/10/2020,800,L,80131800,Real estate management services
"Ministry of Housing, Communities and Local Government",Homes England,RI - MONITORING SURVEYOR FEES,Economic Assets Hub,CUSHMAN & WAKEFIELD DEBENHAM TIE LEUNG,26/10/2020,700,L,80131800,Real estate management services
"Ministry of Housing, Communities and Local Government",Homes England,RI - MONITORING SURVEYOR FEES,Economic Assets Hub,CUSHMAN & WAKEFIELD DEBENHAM TIE LEUNG,26/10/2020,700.00,L,80131800,Real estate management services
"Ministry of Housing, Communities and Local Government",Homes England,RI - MONITORING SURVEYOR FEES,Economic Assets Hub,CUSHMAN & WAKEFIELD DEBENHAM TIE LEUNG,26/10/2020,750.00,L,80131800,Real estate management services
"Ministry of Housing, Communities and Local Government",Homes England,DISPOSAL FEES - PROPERTY AGENTS & ADVERTISING,North West,CUSHMAN & WAKEFIELD DEBENHAM TIE LEUNG,27/10/2020,4675,L,80131800,Real estate management services
"Ministry of Housing, Communities and Local Government",Homes England,PROPERTY SERVICES,Programmes,CUSHMAN & WAKEFIELD DEBENHAM TIE LEUNG,29/10/2020,"7,680.00",L,80131800,Real estate management services
"Ministry of Housing, Communities and Local Government",Homes England,LANDSCAPING & PLANTS,Finance & Corporate Services,DEEDMAN TROPICAL PLANT HIRE COMPANY,29/10/2020,273,S,72102900,Facility maintenance and repair services
"Ministry of Housing, Communities and Local Government",Homes England,LANDSCAPING & PLANTS,Finance & Corporate Services,DEEDMAN TROPICAL PLANT HIRE COMPANY,29/10/2020,265.00,S,72102900,Facility maintenance and repair services
"Ministry of Housing, Communities and Local Government",Homes England,PROMOTIONAL EVENTS,Executive Office,DARWIN PRESS,01/10/2020,5488,S,80141600,Sales and business promotion activities
"Ministry of Housing, Communities and Local Government",Homes England,PROMOTIONAL EVENTS,Executive Office,DARWIN PRESS,01/10/2020,8684,S,80141600,Sales and business promotion activities
"Ministry of Housing, Communities and Local Government",Homes England,CONTRACT WORKS,Programmes,DSM DEMOLITION LIMITED,09/10/2020,66271.05,M,72141500,Land preparation services
"Ministry of Housing, Communities and Local Government",Homes England,CONTRACT WORKS,South West,DSM DEMOLITION LIMITED,26/10/2020,"170,226.08",M,72141500,Land preparation services
"Ministry of Housing, Communities and Local Government",Homes England,COURSES & CONFERENCES,Finance & Corporate Services,DARYL JOYCE,19/10/2020,600.00,S,86101800,In service training and manpower development
"Ministry of Housing, Communities and Local Government",Homes England,ST Fund Loans Additions,Economic Assets Hub,DEVELOPMENTS BY BOUTIQUE (HEYSHAM GREEN) LTD,09/10/2020,52877,,,Loans
"Ministry of Housing, Communities and Local Government",Homes England,LEGAL FEES,Economic Assets Hub,DWF LLP,02/10/2020,731.50,L,80121600,Business law services
"Ministry of Housing, Communities and Local Government",Homes England,LEGAL FEES,Midlands,DWF LLP,02/10/2020,"3,938.19",L,80121600,Business law services
"Ministry of Housing, Communities and Local Government",Homes England,LEGAL FEES,Midlands,DWF LLP,02/10/2020,394.50,L,80121600,Business law services
"Ministry of Housing, Communities and Local Government",Homes England,LEGAL FEES,North East And Yorkshire,DWF LLP,02/10/2020,714.00,L,80121600,Business law services
"Ministry of Housing, Communities and Local Government",Homes England,LEGAL FEES,Programmes,DWF LLP,02/10/2020,"1,123.75",L,80121600,Business law services
"Ministry of Housing, Communities and Local Government",Homes England,Professional Fees Loans Capitalised,Economic Assets Hub,DWF LLP,05/10/2020,"5,580.59",L,80121600,Business law services
"Ministry of Housing, Communities and Local Government",Homes England,LEGAL FEES,Programmes,DWF LLP,06/10/2020,945,L,80121600,Business law services
"Ministry of Housing, Communities and Local Government",Homes England,LEGAL FEES,Programmes,DWF LLP,06/10/2020,765,L,80121600,Business law services
"Ministry of Housing, Communities and Local Government",Homes England,LEGAL FEES,Programmes,DWF LLP,06/10/2020,703,L,80121600,Business law services
"Ministry of Housing, Communities and Local Government",Homes England,DISPOSAL FEES - LEGAL,North East And Yorkshire,DWF LLP,07/10/2020,2000,L,80121600,Business law services
"Ministry of Housing, Communities and Local Government",Homes England,LEGAL FEES,Midlands,DWF LLP,20/10/2020,450.00,L,80121600,Business law services
"Ministry of Housing, Communities and Local Government",Homes England,LEGAL FEES,Midlands,DWF LLP,21/10/2020,4834.36,L,80121600,Business law services
"Ministry of Housing, Communities and Local Government",Homes England,LEGAL FEES,South West,DWF LLP,21/10/2020,"8,979.67",L,80121600,Business law services
"Ministry of Housing, Communities and Local Government",Homes England,LEGAL FEES,Economic Assets Hub,DWF LLP,21/10/2020,721.85,L,80121600,Business law services
"Ministry of Housing, Communities and Local Government",Homes England,LEGAL FEES,Midlands,DWF LLP,28/10/2020,981.36,L,80121600,Business law services
"Ministry of Housing, Communities and Local Government",Homes England,TAXIS,Finance & Corporate Services,DEAN TAXI LIMITED,02/10/2020,549,S,78111800,Passenger road transportation
"Ministry of Housing, Communities and Local Government",Homes England,OTHER PROFESSIONAL FEES,Programmes,DM SAFETY & HEALTH SERVICES LIMITED,15/10/2020,1399.4,S,77101500,Environmental auditing
"Ministry of Housing, Communities and Local Government",Homes England,NETWORKS,Finance & Corporate Services,DAISY CORPORATE SERVICES TRADING LIMITED,06/10/2020,3600,L,81112105,World wide web WWW site operation host services�
"Ministry of Housing, Communities and Local Government",Homes England,LEGAL FEES,Programmes,DWF LAW LLP,07/10/2020,"1,500.00",L,80121600,Business law services
"Ministry of Housing, Communities and Local Government",Homes England,COST OF ACQUISITION,Midlands,DWF LAW LLP,09/10/2020,3300,L,80121600,Business law services
"Ministry of Housing, Communities and Local Government",Homes England,DISPOSAL FEES - LEGAL,North East And Yorkshire,DWF LAW LLP,09/10/2020,4800,L,80121600,Business law services
"Ministry of Housing, Communities and Local Government",Homes England,LEGAL FEES,Programmes,DWF LAW LLP,29/10/2020,1150,L,80121600,Business law services
"Ministry of Housing, Communities and Local Government",Homes England,MANAGEMENT COSTS,South West,BEN DADDOW,26/10/2020,1185.8,S,72101500,Building maintenance and repair services
"Ministry of Housing, Communities and Local Government",Homes England,OTHER PROFESSIONAL FEES,Programmes,WOOD ENVIRONMENT & INFRASTRUCTURE SOLUTIONS,01/10/2020,13319,L,80131800,Real estate management services
"Ministry of Housing, Communities and Local Government",Homes England,MASTERPLANNING FEES,Midlands,WOOD ENVIRONMENT & INFRASTRUCTURE SOLUTIONS,01/10/2020,733.00,L,80131800,Real estate management services
"Ministry of Housing, Communities and Local Government",Homes England,PLANNING FEES,East And South East,WOOD ENVIRONMENT & INFRASTRUCTURE SOLUTIONS,06/10/2020,507.82,L,80131800,Real estate management services
"Ministry of Housing, Communities and Local Government",Homes England,ENGINEERING CONSULTANTS,Programmes,WOOD ENVIRONMENT & INFRASTRUCTURE SOLUTIONS,06/10/2020,"4,725.00",L,80131800,Real estate management services
"Ministry of Housing, Communities and Local Government",Homes England,MISC PROFESSIONAL FEES,South East,WOOD ENVIRONMENT & INFRASTRUCTURE SOLUTIONS,07/10/2020,"6,800.00",L,80131800,Real estate management services
"Ministry of Housing, Communities and Local Government",Homes England,MISC PROFESSIONAL FEES,South East,WOOD ENVIRONMENT & INFRASTRUCTURE SOLUTIONS,07/10/2020,"2,100.00",L,80131800,Real estate management services
"Ministry of Housing, Communities and Local Government",Homes England,ENGINEERING CONSULTANTS,South East,WOOD ENVIRONMENT & INFRASTRUCTURE SOLUTIONS,07/10/2020,10094,L,80131800,Real estate management services
"Ministry of Housing, Communities and Local Government",Homes England,ENGINEERING CONSULTANTS,South East,WOOD ENVIRONMENT & INFRASTRUCTURE SOLUTIONS,07/10/2020,"4,713.00",L,80131800,Real estate management services
"Ministry of Housing, Communities and Local Government",Homes England,OTHER PROFESSIONAL FEES,Midlands,WOOD ENVIRONMENT & INFRASTRUCTURE SOLUTIONS,28/10/2020,"9,667.05",L,80131800,Real estate management services
"Ministry of Housing, Communities and Local Government",Homes England,ST Fund Loans Additions,Economic Assets Hub,EAST WICK AND SWEETWATER PROJECTS (PHASE 1) L,16/10/2020,3016754.8,,,Loans
"Ministry of Housing, Communities and Local Government",Homes England,ST Fund Loans Additions,Economic Assets Hub,EAST CHALLOWS LLP,16/10/2020,"125,208.00",,,Loans
"Ministry of Housing, Communities and Local Government",Homes England,PEOPLE PLAN / INSTANT RECOGNITION,Finance & Corporate Services,EDENRED (UK GROUP) LTD,21/10/2020,"1,400.00",L,14111803,Vouchers
"Ministry of Housing, Communities and Local Government",Homes England,MISC PROFESSIONAL FEES,North East And Yorkshire,ELLIOTT CONSULTANCY LIMITED,07/10/2020,405.00,S,77101500,Environmental auditing
"Ministry of Housing, Communities and Local Government",Homes England,TELEPHONES,Finance & Corporate Services,EE LTD,13/10/2020,"22,616.53",L,83101600,Mobile communications services
"Ministry of Housing, Communities and Local Government",Homes England,Homebuy Agents Fees,Programmes,EVERSHEDS CLIENT ACCOUNT,01/10/2020,"6,500.00",L,80121600,Business law services
"Ministry of Housing, Communities and Local Government",Homes England,LEGAL FEES,South East,EVERSHEDS CLIENT ACCOUNT,01/10/2020,"7,000.00",L,80121600,Business law services
"Ministry of Housing, Communities and Local Government",Homes England,DISPOSAL FEES - LEGAL,South West,EVERSHEDS CLIENT ACCOUNT,05/10/2020,"6,039.06",L,80121600,Business law services
"Ministry of Housing, Communities and Local Government",Homes England,LEGAL FEES,North East And Yorkshire,EVERSHEDS CLIENT ACCOUNT,05/10/2020,"8,000.00",L,80121600,Business law services
"Ministry of Housing, Communities and Local Government",Homes England,LEGAL FEES,North East And Yorkshire,EVERSHEDS CLIENT ACCOUNT,05/10/2020,910.00,L,80121600,Business law services
"Ministry of Housing, Communities and Local Government",Homes England,LEGAL FEES,North East And Yorkshire,EVERSHEDS CLIENT ACCOUNT,05/10/2020,"10,880.00",L,80121600,Business law services
"Ministry of Housing, Communities and Local Government",Homes England,Homebuy Agents Fees,Programmes,EVERSHEDS CLIENT ACCOUNT,07/10/2020,"6,055.14",L,80121600,Business law services
"Ministry of Housing, Communities and Local Government",Homes England,Homebuy Agents Fees,Programmes,EVERSHEDS CLIENT ACCOUNT,07/10/2020,"24,050.22",L,80121600,Business law services
"Ministry of Housing, Communities and Local Government",Homes England,DISPOSAL FEES - LEGAL,East And South East,EVERSHEDS CLIENT ACCOUNT,13/10/2020,1666.67,L,80121600,Business law services
"Ministry of Housing, Communities and Local Government",Homes England,LEGAL FEES,Programmes,EVERSHEDS CLIENT ACCOUNT,13/10/2020,469.23,L,80121600,Business law services
"Ministry of Housing, Communities and Local Government",Homes England,LEGAL FEES,North West,EVERSHEDS CLIENT ACCOUNT,21/10/2020,"2,320.00",L,80121600,Business law services
"Ministry of Housing, Communities and Local Government",Homes England,LEGAL FEES,East And South East,EVERSHEDS CLIENT ACCOUNT,21/10/2020,2334,L,80121600,Business law services
"Ministry of Housing, Communities and Local Government",Homes England,LEGAL FEES,South East,EVERSHEDS CLIENT ACCOUNT,21/10/2020,"1,400.00",L,80121600,Business law services
"Ministry of Housing, Communities and Local Government",Homes England,LEGAL FEES,Programmes,EVERSHEDS CLIENT ACCOUNT,22/10/2020,"8,356.00",L,80121600,Business law services
"Ministry of Housing, Communities and Local Government",Homes England,LEGAL FEES,South East,EVERSHEDS CLIENT ACCOUNT,27/10/2020,"2,000.00",L,80121600,Business law services
"Ministry of Housing, Communities and Local Government",Homes England,LEGAL FEES,East And South East,EVERSHEDS CLIENT ACCOUNT,28/10/2020,"1,450.00",L,80121600,Business law services
"Ministry of Housing, Communities and Local Government",Homes England,LEGAL FEES,Midlands,EVERSHEDS CLIENT ACCOUNT,29/10/2020,654.00,L,80121600,Business law services
"Ministry of Housing, Communities and Local Government",Homes England,LEGAL FEES,Midlands,EVERSHEDS CLIENT ACCOUNT,29/10/2020,415,L,80121600,Business law services
"Ministry of Housing, Communities and Local Government",Homes England,LEGAL FEES,Midlands,EVERSHEDS CLIENT ACCOUNT,29/10/2020,"7,179.50",L,80121600,Business law services
"Ministry of Housing, Communities and Local Government",Homes England,LEGAL FEES,North West,EVERSHEDS CLIENT ACCOUNT,29/10/2020,"2,290.72",L,80121600,Business law services
"Ministry of Housing, Communities and Local Government",Homes England,Homebuy Agents Fees,Programmes,EVERSHEDS CLIENT ACCOUNT,30/10/2020,"29,000.00",L,80121600,Business law services
"Ministry of Housing, Communities and Local Government",Homes England,ESTATE GENERAL MAINTENANCE,North West,ECOLOGICAL LAND MANGEMENT LTD,27/10/2020,"3,230.00",S,72101500,Building maintenance and repair services
"Ministry of Housing, Communities and Local Government",Homes England,ST Fund Loans Additions,Economic Assets Hub,ENJOY BUILDING LIMITED,08/10/2020,100000,,,Loans
"Ministry of Housing, Communities and Local Government",Homes England,LANDSCAPE MAINT-BUILT ESTATE,South West,ELMTREE GARDEN CONTRACTORS LTD,19/10/2020,567.5,M,72101500,Building maintenance and repair services
"Ministry of Housing, Communities and Local Government",Homes England,SERVICE RENTS & ESTATE CHARGES,East And South East,THE ENGLISH HERITAGE TRUST,09/10/2020,"2,210.76",G,80131800,Real estate management services
"Ministry of Housing, Communities and Local Government",Homes England,SERVICE RENTS & ESTATE CHARGES,Programmes,EXPERTQS LIMITED,05/10/2020,"2,026.00",S,80131800,Real estate management services
"Ministry of Housing, Communities and Local Government",Homes England,PROJECT MANAGEMENT,North West,ELLIPSIS LAND & PLANNING LIMITED,07/10/2020,6723.78,S,80131800,Real estate management services
"Ministry of Housing, Communities and Local Government",Homes England,ST Fund Loans Additions,Economic Assets Hub,ECCLESTON HOMES LIMITED,23/10/2020,"287,570.39",,,Loans
"Ministry of Housing, Communities and Local Government",Homes England,CAPITAL GRANTS TO LOCAL AUTHORITIES,Programmes,EASTLEIGH BOROUGH COUNCIL,28/10/2020,2265121.7,G,,Grants
"Ministry of Housing, Communities and Local Government",Homes England,Professional Fees Loans Capitalised,Economic Assets Hub,EDDISONS COMMERCIAL LIMITED,05/10/2020,"1,250.00",M,80131800,Real estate management services
"Ministry of Housing, Communities and Local Government",Homes England,Professional Fees Loans Capitalised,Economic Assets Hub,EDDISONS COMMERCIAL LIMITED,07/10/2020,"1,975.00",M,80131800,Real estate management services
"Ministry of Housing, Communities and Local Government",Homes England,RI - MONITORING SURVEYOR FEES,Economic Assets Hub,EDDISONS COMMERCIAL LIMITED,12/10/2020,695.00,M,80131800,Real estate management services
"Ministry of Housing, Communities and Local Government",Homes England,OTHER PROFESSIONAL FEES,North West,EDDISONS COMMERCIAL LIMITED,13/10/2020,"23,244.76",M,80131800,Real estate management services
"Ministry of Housing, Communities and Local Government",Homes England,RI - MONITORING SURVEYOR FEES,Economic Assets Hub,EDDISONS COMMERCIAL LIMITED,21/10/2020,575.00,M,80131800,Real estate management services
"Ministry of Housing, Communities and Local Government",Homes England,Professional Fees Loans Capitalised,Economic Assets Hub,EDDISONS COMMERCIAL LIMITED,29/10/2020,"2,250.00",M,80131800,Real estate management services
"Ministry of Housing, Communities and Local Government",Homes England,PACKAGE MAINTENANCE & SUBSCRIPTIONS,Finance & Corporate Services,FRONTIER SOFTWARE PLC,23/10/2020,"21,961.64",S,81112200,Software maintenance and support
"Ministry of Housing, Communities and Local Government",Homes England,MISC PROFESSIONAL FEES,North West,AECOM LIMITED,02/10/2020,2934.7,L,72101500,Building maintenance and repair services
"Ministry of Housing, Communities and Local Government",Homes England,ENGINEERING FEES,East And South East,AECOM LIMITED,05/10/2020,"20,304.68",L,72101500,Building maintenance and repair services
"Ministry of Housing, Communities and Local Government",Homes England,ENGINEERING FEES,North East And Yorkshire,AECOM LIMITED,05/10/2020,"2,198.34",L,72101500,Building maintenance and repair services
"Ministry of Housing, Communities and Local Government",Homes England,MISC PROFESSIONAL FEES,North East And Yorkshire,AECOM LIMITED,05/10/2020,9976,L,72101500,Building maintenance and repair services
"Ministry of Housing, Communities and Local Government",Homes England,ENGINEERING CONSULTANTS,Midlands,AECOM LIMITED,07/10/2020,2610,L,72101500,Building maintenance and repair services
"Ministry of Housing, Communities and Local Government",Homes England,RI - MONITORING SURVEYOR FEES,Economic Assets Hub,AECOM LIMITED,13/10/2020,"6,813.00",L,72101500,Building maintenance and repair services
"Ministry of Housing, Communities and Local Government",Homes England,PROJECT MANAGEMENT,South West,AECOM LIMITED,16/10/2020,"9,115.00",L,72101500,Building maintenance and repair services
"Ministry of Housing, Communities and Local Government",Homes England,OTHER PROFESSIONAL FEES,North West,AECOM LIMITED,20/10/2020,"4,077.90",L,72101500,Building maintenance and repair services
"Ministry of Housing, Communities and Local Government",Homes England,PLANNING APPLICATIONS,South East,AECOM LIMITED,30/10/2020,"119,291.79",L,72101500,Building maintenance and repair services
"Ministry of Housing, Communities and Local Government",Homes England,OPEN MARKET VALUATION FEE,Programmes,SAVILLS UK LIMITED,02/10/2020,"1,000.00",L,80131800,Real estate management services
"Ministry of Housing, Communities and Local Government",Homes England,Professional Fees Loans Capitalised,Economic Assets Hub,SAVILLS UK LIMITED,05/10/2020,1750,L,80131800,Real estate management services
"Ministry of Housing, Communities and Local Government",Homes England,RI - SITE VALUATION FEES,Economic Assets Hub,SAVILLS UK LIMITED,05/10/2020,"3,500.00",L,80131800,Real estate management services
"Ministry of Housing, Communities and Local Government",Homes England,Professional Fees Loans Capitalised,Economic Assets Hub,SAVILLS UK LIMITED,05/10/2020,"3,250.00",L,80131800,Real estate management services
"Ministry of Housing, Communities and Local Government",Homes England,Professional Fees Loans Capitalised,Economic Assets Hub,SAVILLS UK LIMITED,05/10/2020,600,L,80131800,Real estate management services
"Ministry of Housing, Communities and Local Government",Homes England,OTHER PROFESSIONAL FEES,North East And Yorkshire,SAVILLS UK LIMITED,05/10/2020,"5,000.00",L,80131800,Real estate management services
"Ministry of Housing, Communities and Local Government",Homes England,PROPERTY SERVICES,South West,SAVILLS UK LIMITED,06/10/2020,3200,L,80131800,Real estate management services
"Ministry of Housing, Communities and Local Government",Homes England,PLANNING FEES,Programmes,SAVILLS UK LIMITED,07/10/2020,6271.25,L,80131800,Real estate management services
"Ministry of Housing, Communities and Local Government",Homes England,DISPOSAL FEES - PROPERTY AGENTS & ADVERTISING,Midlands,SAVILLS UK LIMITED,21/10/2020,"3,400.00",L,80131800,Real estate management services
"Ministry of Housing, Communities and Local Government",Homes England,RI - SITE VALUATION FEES,Economic Assets Hub,SAVILLS UK LIMITED,23/10/2020,"3,000.00",L,80131800,Real estate management services
"Ministry of Housing, Communities and Local Government",Homes England,OPEN MARKET VALUATION FEE,North East And Yorkshire,SAVILLS UK LIMITED,26/10/2020,2500,L,80131800,Real estate management services
"Ministry of Housing, Communities and Local Government",Homes England,ST Fund Loans Additions,Economic Assets Hub,FOXGLOVE INVESTMENTS HOMES (MW) LIMITED,16/10/2020,247489,,,Loans
"Ministry of Housing, Communities and Local Government",Homes England,ESTATE GENERAL MAINTENANCE,South West,R FOX T/A SOUTHCOAST MAINTENANCE,16/10/2020,"1,100.00",S,72101500,Building maintenance and repair services
"Ministry of Housing, Communities and Local Government",Homes England,MANAGEMENT COSTS,Programmes,R FOX T/A SOUTHCOAST MAINTENANCE,16/10/2020,1500,S,72101500,Building maintenance and repair services
"Ministry of Housing, Communities and Local Government",Homes England,MANAGEMENT COSTS,Programmes,R FOX T/A SOUTHCOAST MAINTENANCE,16/10/2020,"3,000.00",S,72101500,Building maintenance and repair services
"Ministry of Housing, Communities and Local Government",Homes England,FENCE MAINTENANCE,Programmes,R FOX T/A SOUTHCOAST MAINTENANCE,26/10/2020,"1,400.00",S,72101500,Building maintenance and repair services
"Ministry of Housing, Communities and Local Government",Homes England,FENCE MAINTENANCE,Programmes,R FOX T/A SOUTHCOAST MAINTENANCE,26/10/2020,"2,040.00",S,72101500,Building maintenance and repair services
"Ministry of Housing, Communities and Local Government",Homes England,FENCE MAINTENANCE,Programmes,R FOX T/A SOUTHCOAST MAINTENANCE,26/10/2020,"1,800.00",S,72101500,Building maintenance and repair services
"Ministry of Housing, Communities and Local Government",Homes England,FENCE MAINTENANCE,Programmes,R FOX T/A SOUTHCOAST MAINTENANCE,26/10/2020,"2,500.00",S,72101500,Building maintenance and repair services
"Ministry of Housing, Communities and Local Government",Homes England,MANAGEMENT COSTS,Programmes,R FOX T/A SOUTHCOAST MAINTENANCE,26/10/2020,1000,S,72101500,Building maintenance and repair services
"Ministry of Housing, Communities and Local Government",Homes England,PROPERTY MAINTENANCE,Programmes,R FOX T/A SOUTHCOAST MAINTENANCE,26/10/2020,"5,000.00",S,72101500,Building maintenance and repair services
"Ministry of Housing, Communities and Local Government",Homes England,MANAGEMENT COSTS,Programmes,R FOX T/A SOUTHCOAST MAINTENANCE,26/10/2020,880,S,72101500,Building maintenance and repair services
"Ministry of Housing, Communities and Local Government",Homes England,MANAGEMENT COSTS,South West,R FOX T/A SOUTHCOAST MAINTENANCE,26/10/2020,800.00,S,72101500,Building maintenance and repair services
"Ministry of Housing, Communities and Local Government",Homes England,MANAGEMENT COSTS,East And South East,R FOX T/A SOUTHCOAST MAINTENANCE,26/10/2020,"1,700.00",S,72101500,Building maintenance and repair services
"Ministry of Housing, Communities and Local Government",Homes England,MANAGEMENT COSTS,Programmes,R FOX T/A SOUTHCOAST MAINTENANCE,26/10/2020,700,S,72101500,Building maintenance and repair services
"Ministry of Housing, Communities and Local Government",Homes England,MANAGEMENT COSTS,Programmes,R FOX T/A SOUTHCOAST MAINTENANCE,26/10/2020,900.00,S,72101500,Building maintenance and repair services
"Ministry of Housing, Communities and Local Government",Homes England,MANAGEMENT COSTS,Programmes,R FOX T/A SOUTHCOAST MAINTENANCE,26/10/2020,"1,500.00",S,72101500,Building maintenance and repair services
"Ministry of Housing, Communities and Local Government",Homes England,MANAGEMENT COSTS,South West,R FOX T/A SOUTHCOAST MAINTENANCE,26/10/2020,700.00,S,72101500,Building maintenance and repair services
"Ministry of Housing, Communities and Local Government",Homes England,MANAGEMENT COSTS,Programmes,R FOX T/A SOUTHCOAST MAINTENANCE,26/10/2020,800.00,S,72101500,Building maintenance and repair services
"Ministry of Housing, Communities and Local Government",Homes England,SECURITY (Incl Fire Prevention),Finance & Corporate Services,FALCON SECURITY,06/10/2020,"3,825.59",M,92121500,Guard services
"Ministry of Housing, Communities and Local Government",Homes England,SECURITY,Programmes,FALCON SECURITY,06/10/2020,"21,698.72",M,92121500,Guard services
"Ministry of Housing, Communities and Local Government",Homes England,SECURITY,North East And Yorkshire,FALCON SECURITY,06/10/2020,"21,624.16",M,92121500,Guard services
"Ministry of Housing, Communities and Local Government",Homes England,LEGAL FEES,East And South East,FARRINGTON LEGAL SERVICES,22/10/2020,"2,215.00",S,80121600,Business law services
"Ministry of Housing, Communities and Local Government",Homes England,PROPERTY MAINTENANCE,Programmes,FIRST NATIONAL SERVICES LTD,12/10/2020,"1,960.80",S,72102900,Facility maintenance and repair services
"Ministry of Housing, Communities and Local Government",Homes England,OTHER PROFESSIONAL FEES,Programmes,FIVE PLUS ARCHITECTS LIMITED,15/10/2020,636.09,S,80131800,Real estate management services
"Ministry of Housing, Communities and Local Government",Homes England,ST Fund Loans Additions,Economic Assets Hub,FOLDE DEVELOPMENTS PROP LTD,01/10/2020,"223,221.00",,,Loans
"Ministry of Housing, Communities and Local Government",Homes England,ST Fund Loans Additions,Economic Assets Hub,FOLDE DEVELOPMENTS PROP LTD,07/10/2020,"91,957.00",,,Loans
"Ministry of Housing, Communities and Local Government",Homes England,LANDSCAPE MAINT-BUILT ESTATE,South West,FALCON PEST CONTROL,07/10/2020,480.00,S,72102100,Pest control
"Ministry of Housing, Communities and Local Government",Homes England,ESTATE GENERAL MAINTENANCE,Programmes,F T GEARING L/S LTD,09/10/2020,913.00,M,72101500,Building maintenance and repair services
"Ministry of Housing, Communities and Local Government",Homes England,ESTATE GENERAL MAINTENANCE,Programmes,F T GEARING L/S LTD,21/10/2020,"3,310.00",M,72101500,Building maintenance and repair services
"Ministry of Housing, Communities and Local Government",Homes England,PLANNING APPLICATIONS,Midlands,AVISON YOUNG (UK) LTD,01/10/2020,500.00,L,80131800,Real estate management services
"Ministry of Housing, Communities and Local Government",Homes England,RI - MONITORING SURVEYOR FEES,Economic Assets Hub,AVISON YOUNG (UK) LTD,01/10/2020,750.00,L,80131800,Real estate management services
"Ministry of Housing, Communities and Local Government",Homes England,RI - MONITORING SURVEYOR FEES,Economic Assets Hub,AVISON YOUNG (UK) LTD,01/10/2020,932.80,L,80131800,Real estate management services
"Ministry of Housing, Communities and Local Government",Homes England,DISPOSAL FEES - PROPERTY AGENTS & ADVERTISING,South West,AVISON YOUNG (UK) LTD,02/10/2020,"3,375.00",L,80131800,Real estate management services
"Ministry of Housing, Communities and Local Government",Homes England,RI - MONITORING SURVEYOR FEES,Economic Assets Hub,AVISON YOUNG (UK) LTD,02/10/2020,750.00,L,80131800,Real estate management services
"Ministry of Housing, Communities and Local Government",Homes England,RI - MONITORING SURVEYOR FEES,Economic Assets Hub,AVISON YOUNG (UK) LTD,02/10/2020,750.00,L,80131800,Real estate management services
"Ministry of Housing, Communities and Local Government",Homes England,MISC PROFESSIONAL FEES (ADMIN ONLY),Finance & Corporate Services,AVISON YOUNG (UK) LTD,05/10/2020,"43,870.00",L,80131800,Real estate management services
"Ministry of Housing, Communities and Local Government",Homes England,RI - MONITORING SURVEYOR FEES,Economic Assets Hub,AVISON YOUNG (UK) LTD,06/10/2020,750.00,L,80131800,Real estate management services
"Ministry of Housing, Communities and Local Government",Homes England,RI - MONITORING SURVEYOR FEES,Economic Assets Hub,AVISON YOUNG (UK) LTD,07/10/2020,800.00,L,80131800,Real estate management services
"Ministry of Housing, Communities and Local Government",Homes England,RI - MONITORING SURVEYOR FEES,Economic Assets Hub,AVISON YOUNG (UK) LTD,09/10/2020,750.00,L,80131800,Real estate management services
"Ministry of Housing, Communities and Local Government",Homes England,MISC PROFESSIONAL FEES,East And South East,AVISON YOUNG (UK) LTD,12/10/2020,"1,500.00",L,80131800,Real estate management services
"Ministry of Housing, Communities and Local Government",Homes England,DISPOSAL FEES - PROPERTY AGENTS & ADVERTISING,Programmes,AVISON YOUNG (UK) LTD,13/10/2020,8950,L,80131800,Real estate management services
"Ministry of Housing, Communities and Local Government",Homes England,MASTERPLANNING FEES,North West,AVISON YOUNG (UK) LTD,15/10/2020,2120.6,L,80131800,Real estate management services
"Ministry of Housing, Communities and Local Government",Homes England,PROPERTY SERVICES,Programmes,AVISON YOUNG (UK) LTD,19/10/2020,212513.99,L,80131800,Real estate management services
"Ministry of Housing, Communities and Local Government",Homes England,PROPERTY SERVICES,East And South East,AVISON YOUNG (UK) LTD,19/10/2020,3000,L,80131800,Real estate management services
"Ministry of Housing, Communities and Local Government",Homes England,MASTERPLANNING FEES,North West,AVISON YOUNG (UK) LTD,20/10/2020,1957.2,L,80131800,Real estate management services
"Ministry of Housing, Communities and Local Government",Homes England,MASTERPLANNING FEES,North West,AVISON YOUNG (UK) LTD,20/10/2020,978.6,L,80131800,Real estate management services
"Ministry of Housing, Communities and Local Government",Homes England,MASTERPLANNING FEES,North West,AVISON YOUNG (UK) LTD,20/10/2020,"1,957.20",L,80131800,Real estate management services
"Ministry of Housing, Communities and Local Government",Homes England,MASTERPLANNING FEES,North West,AVISON YOUNG (UK) LTD,20/10/2020,"3,213.41",L,80131800,Real estate management services
"Ministry of Housing, Communities and Local Government",Homes England,RI - MONITORING SURVEYOR FEES,Economic Assets Hub,AVISON YOUNG (UK) LTD,22/10/2020,"1,028.50",L,80131800,Real estate management services
"Ministry of Housing, Communities and Local Government",Homes England,RI - MONITORING SURVEYOR FEES,Economic Assets Hub,AVISON YOUNG (UK) LTD,23/10/2020,"1,000.00",L,80131800,Real estate management services
"Ministry of Housing, Communities and Local Government",Homes England,RI - MONITORING SURVEYOR FEES,Economic Assets Hub,AVISON YOUNG (UK) LTD,23/10/2020,932.80,L,80131800,Real estate management services
"Ministry of Housing, Communities and Local Government",Homes England,PLANNING APPLICATIONS,Programmes,AVISON YOUNG (UK) LTD,26/10/2020,"3,250.00",L,80131800,Real estate management services
"Ministry of Housing, Communities and Local Government",Homes England,RI - MONITORING SURVEYOR FEES,Economic Assets Hub,AVISON YOUNG (UK) LTD,26/10/2020,1450,L,80131800,Real estate management services
"Ministry of Housing, Communities and Local Government",Homes England,DISPOSAL FEES - PROPERTY AGENTS & ADVERTISING,South West,AVISON YOUNG (UK) LTD,27/10/2020,"3,375.00",L,80131800,Real estate management services
"Ministry of Housing, Communities and Local Government",Homes England,MANAGEMENT COSTS,Midlands,AVISON YOUNG (UK) LTD,28/10/2020,1500,L,80131800,Real estate management services
"Ministry of Housing, Communities and Local Government",Homes England,MISC PROFESSIONAL FEES (ADMIN ONLY),Executive Office,AVISON YOUNG (UK) LTD,28/10/2020,26010,L,80131800,Real estate management services
"Ministry of Housing, Communities and Local Government",Homes England,COURSES & CONFERENCES,Programmes,GOVERNMENT EVENTS,20/10/2020,991.95,S,90111600,Meeting facilities
"Ministry of Housing, Communities and Local Government",Homes England,ESTATE GENERAL MAINTENANCE,North East And Yorkshire,GREENFINGERS LANDSCAPES LIMITED,23/10/2020,340.77,M,72101500,Building maintenance and repair services
"Ministry of Housing, Communities and Local Government",Homes England,MISC PROFESSIONAL FEES (ADMIN ONLY),Economic Assets Hub,GULP DIGITAL LIMITED,21/10/2020,132000,S,80101500,Business and corporate management consultation services�
"Ministry of Housing, Communities and Local Government",Homes England,MISC PROFESSIONAL FEES (ADMIN ONLY),Economic Assets Hub,GULP DIGITAL LIMITED,21/10/2020,"231,000.00",S,80101500,Business and corporate management consultation services�
"Ministry of Housing, Communities and Local Government",Homes England,ST Fund Loans Additions,Economic Assets Hub,GBR DEVELOPMENTS LLP,26/10/2020,"76,475.00",,,Loans
"Ministry of Housing, Communities and Local Government",Homes England,ESTATE GENERAL MAINTENANCE,South West,GREENS (CORNWALL) LIMITED,12/10/2020,"4,164.80",S,72101500,Building maintenance and repair services
"Ministry of Housing, Communities and Local Government",Homes England,ESTATE GENERAL MAINTENANCE,South West,GREENS (CORNWALL) LIMITED,12/10/2020,"3,780.00",S,72101500,Building maintenance and repair services
"Ministry of Housing, Communities and Local Government",Homes England,MANAGEMENT COSTS,South West,GREENS (CORNWALL) LIMITED,12/10/2020,890.00,S,72101500,Building maintenance and repair services
"Ministry of Housing, Communities and Local Government",Homes England,ST Fund Loans Additions,Economic Assets Hub,GENUS DESIGN HOMES LIMITED,19/10/2020,"37,273.00",,,Loans
"Ministry of Housing, Communities and Local Government",Homes England,ST Fund Loans Additions,Economic Assets Hub,GOULDEN SIMPSON LIMITED,09/10/2020,"61,190.00",,,Loans
"Ministry of Housing, Communities and Local Government",Homes England,RI - MONITORING SURVEYOR FEES,Economic Assets Hub,GERALD EVE LLP,02/10/2020,1250,L,80131800,Real estate management services
"Ministry of Housing, Communities and Local Government",Homes England,PROPERTY SERVICES,Programmes,GERALD EVE LLP,13/10/2020,"20,000.00",L,80131800,Real estate management services
"Ministry of Housing, Communities and Local Government",Homes England,Professional Fees Loans Capitalised,Economic Assets Hub,GERALD EVE LLP,19/10/2020,"2,671.22",L,80131800,Real estate management services
"Ministry of Housing, Communities and Local Government",Homes England,MISC PROFESSIONAL FEES,Programmes,GERALD EVE LLP,30/10/2020,"9,999.00",L,80131800,Real estate management services
"Ministry of Housing, Communities and Local Government",Homes England,SECURITY,East And South East,GUARDING UK LTD,12/10/2020,932.50,L,92121500,Guard services
"Ministry of Housing, Communities and Local Government",Homes England,SECURITY,South West,GUARDING UK LTD,12/10/2020,932.5,L,92121500,Guard services
"Ministry of Housing, Communities and Local Government",Homes England,SECURITY,South West,GUARDING UK LTD,12/10/2020,932.5,L,92121500,Guard services
"Ministry of Housing, Communities and Local Government",Homes England,SECURITY,South West,GUARDING UK LTD,12/10/2020,932.50,L,92121500,Guard services
"Ministry of Housing, Communities and Local Government",Homes England,CAPITAL GRANTS TO LOCAL AUTHORITIES,Programmes,GLOUCESTERSHIRE COUNTY COUNCIL,26/10/2020,"3,747,054.33",G,,Grants
"Ministry of Housing, Communities and Local Government",Homes England,Managing Agents,Programmes,AVISON YOUNG (UK) LTD,28/10/2020,"79,632.00",L,80131800,Real estate management services
"Ministry of Housing, Communities and Local Government",Homes England,MISC PROFESSIONAL FEES,North East And Yorkshire,GLENIGAN LIMITED,30/10/2020,"4,950.00",M,80131800,Real estate management services
"Ministry of Housing, Communities and Local Government",Homes England,SERVICE CHARGES,Finance & Corporate Services,GOVERNMENT PROPERTY AGENCY,15/10/2020,35394.79,G,80131500,Lease and rental of property or building
"Ministry of Housing, Communities and Local Government",Homes England,SERVICE CHARGES,Finance & Corporate Services,GOVERNMENT PROPERTY AGENCY,16/10/2020,"42,252.55",G,80131500,Lease and rental of property or building
"Ministry of Housing, Communities and Local Government",Homes England,SERVICE CHARGES,Finance & Corporate Services,GOVERNMENT PROPERTY AGENCY,19/10/2020,"298,846.86",G,80131500,Lease and rental of property or building
"Ministry of Housing, Communities and Local Government",Homes England,ESTATE GENERAL MAINTENANCE,South West,GREENFIELDS GARDEN SERVICES LTD,14/10/2020,1800,S,72101500,Building maintenance and repair services
"Ministry of Housing, Communities and Local Government",Homes England,RI - MONITORING SURVEYOR FEES,Economic Assets Hub,GLEEDS ADVISORY LTD,23/10/2020,1000,M,80131800,Real estate management services
"Ministry of Housing, Communities and Local Government",Homes England,MANAGEMENT DEVELOPMENT,Finance & Corporate Services,HAYS ACCOUNTANCY & FINANCE,02/10/2020,4534.35,L,80111600,Temporary personnel services
"Ministry of Housing, Communities and Local Government",Homes England,AGENCY STAFF,Programmes,HAYS ACCOUNTANCY & FINANCE,05/10/2020,920.85,L,80111600,Temporary personnel services
"Ministry of Housing, Communities and Local Government",Homes England,AGENCY STAFF,Programmes,HAYS ACCOUNTANCY & FINANCE,06/10/2020,"6,583.50",L,80111600,Temporary personnel services
"Ministry of Housing, Communities and Local Government",Homes England,AGENCY STAFF,Executive Office,HAYS ACCOUNTANCY & FINANCE,14/10/2020,"4,970.07",L,80111600,Temporary personnel services
"Ministry of Housing, Communities and Local Government",Homes England,AGENCY STAFF,Programmes,HAYS ACCOUNTANCY & FINANCE,14/10/2020,920.85,L,80111600,Temporary personnel services
"Ministry of Housing, Communities and Local Government",Homes England,AGENCY STAFF,Finance & Corporate Services,HAYS ACCOUNTANCY & FINANCE,15/10/2020,"4,057.05",L,80111600,Temporary personnel services
"Ministry of Housing, Communities and Local Government",Homes England,AGENCY STAFF,Programmes,HAYS ACCOUNTANCY & FINANCE,19/10/2020,"4,608.45",L,80111600,Temporary personnel services
"Ministry of Housing, Communities and Local Government",Homes England,AGENCY STAFF,Programmes,HAYS ACCOUNTANCY & FINANCE,19/10/2020,6583.5,L,80111600,Temporary personnel services
"Ministry of Housing, Communities and Local Government",Homes England,AGENCY STAFF,Programmes,HAYS ACCOUNTANCY & FINANCE,21/10/2020,736.68,L,80111600,Temporary personnel services
"Ministry of Housing, Communities and Local Government",Homes England,AGENCY STAFF,Programmes,HAYS ACCOUNTANCY & FINANCE,26/10/2020,920.85,L,80111600,Temporary personnel services
"Ministry of Housing, Communities and Local Government",Homes England,RI - MONITORING SURVEYOR FEES,Economic Assets Hub,ARCADIS CONSULTING (UK) LIMITED,02/10/2020,"1,750.00",L,811001500,Civil Engineering
"Ministry of Housing, Communities and Local Government",Homes England,RI - MONITORING SURVEYOR FEES,Economic Assets Hub,ARCADIS CONSULTING (UK) LIMITED,02/10/2020,"1,750.00",L,811001500,Civil Engineering
"Ministry of Housing, Communities and Local Government",Homes England,RI - MONITORING SURVEYOR FEES,Economic Assets Hub,ARCADIS CONSULTING (UK) LIMITED,08/10/2020,2170,L,811001500,Civil Engineering
"Ministry of Housing, Communities and Local Government",Homes England,RI - MONITORING SURVEYOR FEES,Economic Assets Hub,ARCADIS CONSULTING (UK) LIMITED,08/10/2020,2170,L,811001500,Civil Engineering
"Ministry of Housing, Communities and Local Government",Homes England,RI - MONITORING SURVEYOR FEES,Economic Assets Hub,ARCADIS CONSULTING (UK) LIMITED,09/10/2020,3750,L,811001500,Civil Engineering
"Ministry of Housing, Communities and Local Government",Homes England,Professional Fees Loans Capitalised,Economic Assets Hub,ARCADIS CONSULTING (UK) LIMITED,12/10/2020,2500,L,811001500,Civil Engineering
"Ministry of Housing, Communities and Local Government",Homes England,OTHER PROFESSIONAL FEES,East And South East,ARCADIS CONSULTING (UK) LIMITED,20/10/2020,29777,L,811001500,Civil Engineering
"Ministry of Housing, Communities and Local Government",Homes England,Professional Fees Loans Capitalised,Economic Assets Hub,ARCADIS CONSULTING (UK) LIMITED,21/10/2020,1950,L,811001500,Civil Engineering
"Ministry of Housing, Communities and Local Government",Homes England,RI - MONITORING SURVEYOR FEES,Economic Assets Hub,ARCADIS CONSULTING (UK) LIMITED,21/10/2020,1750,L,811001500,Civil Engineering
"Ministry of Housing, Communities and Local Government",Homes England,RI - MONITORING SURVEYOR FEES,Economic Assets Hub,ARCADIS CONSULTING (UK) LIMITED,23/10/2020,1250,L,811001500,Civil Engineering
"Ministry of Housing, Communities and Local Government",Homes England,MISC PROFESSIONAL FEES,Programmes,ARCADIS CONSULTING (UK) LIMITED,23/10/2020,2297,L,811001500,Civil Engineering
"Ministry of Housing, Communities and Local Government",Homes England,OTHER PROFESSIONAL FEES,East And South East,ARCADIS CONSULTING (UK) LIMITED,23/10/2020,"53,876.00",L,811001500,Civil Engineering
"Ministry of Housing, Communities and Local Government",Homes England,Professional Fees Loans Capitalised,Economic Assets Hub,ARCADIS CONSULTING (UK) LIMITED,28/10/2020,"1,950.00",L,811001500,Civil Engineering
"Ministry of Housing, Communities and Local Government",Homes England,Professional Fees Loans Capitalised,Economic Assets Hub,ARCADIS CONSULTING (UK) LIMITED,28/10/2020,"1,950.00",L,811001500,Civil Engineering
"Ministry of Housing, Communities and Local Government",Homes England,Professional Fees Loans Capitalised,Economic Assets Hub,ARCADIS CONSULTING (UK) LIMITED,28/10/2020,"1,950.00",L,811001500,Civil Engineering
"Ministry of Housing, Communities and Local Government",Homes England,Professional Fees Loans Capitalised,Economic Assets Hub,ARCADIS CONSULTING (UK) LIMITED,28/10/2020,"1,950.00",L,811001500,Civil Engineering
"Ministry of Housing, Communities and Local Government",Homes England,OTHER PROFESSIONAL FEES,East And South East,ARCADIS CONSULTING (UK) LIMITED,28/10/2020,65189,L,811001500,Civil Engineering
"Ministry of Housing, Communities and Local Government",Homes England,Professional Fees Loans Capitalised,Economic Assets Hub,ARCADIS CONSULTING (UK) LIMITED,29/10/2020,2500,L,811001500,Civil Engineering
"Ministry of Housing, Communities and Local Government",Homes England,RI - MONITORING SURVEYOR FEES,Economic Assets Hub,ARCADIS CONSULTING (UK) LIMITED,29/10/2020,"1,450.00",L,811001500,Civil Engineering
"Ministry of Housing, Communities and Local Government",Homes England,ENGINEERING CONSULTANTS,North East And Yorkshire,HARRISONHIX ARCHITECTURE & SURVEYORS LTD,19/10/2020,620.00,S,80131800,Real estate management services
"Ministry of Housing, Communities and Local Government",Homes England,FURNITURE & EQUIPMENT-MAINTENANCE,Finance & Corporate Services,HSS HIRE SERVICE GROUP PLC,01/10/2020,1138.13,L,72102900,Facility maintenance and repair services
"Ministry of Housing, Communities and Local Government",Homes England,FURNITURE & EQUIPMENT-MAINTENANCE,Finance & Corporate Services,HSS HIRE SERVICE GROUP PLC,27/10/2020,350.00,L,72102900,Facility maintenance and repair services
"Ministry of Housing, Communities and Local Government",Homes England,PROPERTY SERVICES,South West,HARTNELL TAYLOR COOK LLP,01/10/2020,"1,557.50",M,80131800,Real estate management services
"Ministry of Housing, Communities and Local Government",Homes England,PROPERTY SERVICES,South West,HARTNELL TAYLOR COOK LLP,01/10/2020,1437.5,M,80131800,Real estate management services
"Ministry of Housing, Communities and Local Government",Homes England,PROPERTY SERVICES,South West,HARTNELL TAYLOR COOK LLP,01/10/2020,300.00,M,80131800,Real estate management services
"Ministry of Housing, Communities and Local Government",Homes England,PROPERTY SERVICES,South West,HARTNELL TAYLOR COOK LLP,01/10/2020,2625,M,80131800,Real estate management services
"Ministry of Housing, Communities and Local Government",Homes England,PROPERTY SERVICES,South West,HARTNELL TAYLOR COOK LLP,01/10/2020,1000,M,80131800,Real estate management services
"Ministry of Housing, Communities and Local Government",Homes England,PROPERTY SERVICES,South West,HARTNELL TAYLOR COOK LLP,01/10/2020,3000,M,80131800,Real estate management services
"Ministry of Housing, Communities and Local Government",Homes England,PROPERTY SERVICES,South West,HARTNELL TAYLOR COOK LLP,01/10/2020,1000,M,80131800,Real estate management services
"Ministry of Housing, Communities and Local Government",Homes England,PROPERTY SERVICES,South West,HARTNELL TAYLOR COOK LLP,01/10/2020,1581.25,M,80131800,Real estate management services
"Ministry of Housing, Communities and Local Government",Homes England,PROPERTY SERVICES,South West,HARTNELL TAYLOR COOK LLP,01/10/2020,926.50,M,80131800,Real estate management services
"Ministry of Housing, Communities and Local Government",Homes England,PROPERTY SERVICES,South West,HARTNELL TAYLOR COOK LLP,01/10/2020,687.50,M,80131800,Real estate management services
"Ministry of Housing, Communities and Local Government",Homes England,PROPERTY SERVICES,South West,HARTNELL TAYLOR COOK LLP,01/10/2020,"2,659.25",M,80131800,Real estate management services
"Ministry of Housing, Communities and Local Government",Homes England,PROPERTY SERVICES,South West,HARTNELL TAYLOR COOK LLP,01/10/2020,"2,659.25",M,80131800,Real estate management services
"Ministry of Housing, Communities and Local Government",Homes England,PROPERTY SERVICES,South West,HARTNELL TAYLOR COOK LLP,01/10/2020,3013,M,80131800,Real estate management services
"Ministry of Housing, Communities and Local Government",Homes England,PROPERTY SERVICES,South West,HARTNELL TAYLOR COOK LLP,01/10/2020,"1,351.25",M,80131800,Real estate management services
"Ministry of Housing, Communities and Local Government",Homes England,PROPERTY SERVICES,South West,HARTNELL TAYLOR COOK LLP,01/10/2020,"1,557.50",M,80131800,Real estate management services
"Ministry of Housing, Communities and Local Government",Homes England,PROPERTY SERVICES,South West,HARTNELL TAYLOR COOK LLP,01/10/2020,"1,437.50",M,80131800,Real estate management services
"Ministry of Housing, Communities and Local Government",Homes England,PROPERTY SERVICES,South West,HARTNELL TAYLOR COOK LLP,01/10/2020,"2,659.25",M,80131800,Real estate management services
"Ministry of Housing, Communities and Local Government",Homes England,RI - MONITORING SURVEYOR FEES,Economic Assets Hub,HARTNELL TAYLOR COOK LLP,05/10/2020,850.00,M,80131800,Real estate management services
"Ministry of Housing, Communities and Local Government",Homes England,RI - MONITORING SURVEYOR FEES,Economic Assets Hub,HARTNELL TAYLOR COOK LLP,14/10/2020,850,M,80131800,Real estate management services
"Ministry of Housing, Communities and Local Government",Homes England,PROPERTY SERVICES,South West,HARTNELL TAYLOR COOK LLP,14/10/2020,2500,M,80131800,Real estate management services
"Ministry of Housing, Communities and Local Government",Homes England,ST Fund Loans Additions,Economic Assets Hub,HARTFORTH HOMES (WEST WITTON) LIMITED,27/10/2020,89315.87,,,Loans
"Ministry of Housing, Communities and Local Government",Homes England,STAFF RECRUITMENT COSTS,Finance & Corporate Services,HAYMARKET MEDIA GROUP,22/10/2020,1785,L,55101500,Printed publications
"Ministry of Housing, Communities and Local Government",Homes England,MISC PROFESSIONAL FEES,Programmes,HOUSING GROWTH PARTNERSHIP LIMITED,07/10/2020,"49,257.17",,,Grants
"Ministry of Housing, Communities and Local Government",Homes England,OFFICE RELOCATION COSTS,Finance & Corporate Services,HARROW GREEN LIMITED,01/10/2020,320,L,72102900,Facility maintenance and repair services
"Ministry of Housing, Communities and Local Government",Homes England,OFFICE RELOCATION COSTS,Finance & Corporate Services,HARROW GREEN LIMITED,05/10/2020,480,L,72102900,Facility maintenance and repair services
"Ministry of Housing, Communities and Local Government",Homes England,Fix & Fit - Additions,Finance & Corporate Services,HARROW GREEN LIMITED,19/10/2020,"4,250.00",L,72102900,Facility maintenance and repair services
"Ministry of Housing, Communities and Local Government",Homes England,OFFICE RELOCATION COSTS,Finance & Corporate Services,HARROW GREEN LIMITED,22/10/2020,4849,L,72102900,Facility maintenance and repair services
"Ministry of Housing, Communities and Local Government",Homes England,Fix & Fit - Additions,Finance & Corporate Services,HARROW GREEN LIMITED,22/10/2020,"3,490.00",L,72102900,Facility maintenance and repair services
"Ministry of Housing, Communities and Local Government",Homes England,Fix & Fit - Additions,Finance & Corporate Services,HARROW GREEN LIMITED,23/10/2020,"10,675.00",L,72102900,Facility maintenance and repair services
"Ministry of Housing, Communities and Local Government",Homes England,ST Fund Loans Additions,Economic Assets Hub,HARDFIELD HOMES (BELPER) LTD,07/10/2020,"184,970.00",,,Loans
"Ministry of Housing, Communities and Local Government",Homes England,ST Fund Loans Additions,Economic Assets Hub,HARDFIELD HOMES (BELPER) LTD,26/10/2020,"123,339.00",,,Loans
"Ministry of Housing, Communities and Local Government",Homes England,ESTATE GENERAL MAINTENANCE,North West,HERON CONSTRUCTIVE SOLUTIONS LTD,09/10/2020,"1,830.00",S,80131800,Real estate management services
"Ministry of Housing, Communities and Local Government",Homes England,FENCE MAINTENANCE,Programmes,HERON CONSTRUCTIVE SOLUTIONS LTD,09/10/2020,300,S,80131800,Real estate management services
"Ministry of Housing, Communities and Local Government",Homes England,LT Fund Loans (Ps) Additions,Economic Assets Hub,HODSON DEVELOPMENTS (ASHFORD) LTD.,26/10/2020,"247,423.99",,,Loans
"Ministry of Housing, Communities and Local Government",Homes England,ESTATE GENERAL MAINTENANCE,Programmes,HOLLY OAK TREE SERVICES LIMITED,26/10/2020,"1,650.00",S,72101500,Building maintenance and repair services
"Ministry of Housing, Communities and Local Government",Homes England,LT Fund Loans (Ps) Additions,Economic Assets Hub,HANWOOD PARK LLP,21/10/2020,134893.74,,,Loans
"Ministry of Housing, Communities and Local Government",Homes England,DISPOSAL FEES - PROPERTY AGENTS & ADVERTISING,Programmes,HELICAM SERVICES,21/10/2020,400.00,S,82131600,Photographers and cinematographers
"Ministry of Housing, Communities and Local Government",Homes England,AGENCY STAFF,Finance & Corporate Services,HALES GROUP LTD,21/10/2020,303.90,M,80111600,Temporary personnel services
"Ministry of Housing, Communities and Local Government",Homes England,PLANNING APPLICATIONS,Programmes,HARROGATE BOROUGH COUNCIL,28/10/2020,2535,G,80131500,Lease and rental of property or building
"Ministry of Housing, Communities and Local Government",Homes England,DISPOSAL FEES - LEGAL,North West,HEWITSONS SOLICITORS,06/10/2020,285,M,80121600,Business law services
"Ministry of Housing, Communities and Local Government",Homes England,DISPOSAL FEES - LEGAL,North East And Yorkshire,HEWITSONS SOLICITORS,06/10/2020,"1,330.00",M,80121600,Business law services
"Ministry of Housing, Communities and Local Government",Homes England,DISPOSAL FEES - LEGAL,East And South East,HEWITSONS SOLICITORS,06/10/2020,665,M,80121600,Business law services
"Ministry of Housing, Communities and Local Government",Homes England,DISPOSAL FEES - LEGAL,Midlands,HEWITSONS SOLICITORS,06/10/2020,375.00,M,80121600,Business law services
"Ministry of Housing, Communities and Local Government",Homes England,DISPOSAL FEES - LEGAL,Midlands,HEWITSONS SOLICITORS,06/10/2020,"1,500.00",M,80121600,Business law services
"Ministry of Housing, Communities and Local Government",Homes England,LEGAL FEES,North West,HEWITSONS SOLICITORS,07/10/2020,285.00,M,80121600,Business law services
"Ministry of Housing, Communities and Local Government",Homes England,DISPOSAL FEES - LEGAL,North East And Yorkshire,HEWITSONS SOLICITORS,07/10/2020,435.00,M,80121600,Business law services
"Ministry of Housing, Communities and Local Government",Homes England,DISPOSAL FEES - LEGAL,North West,HEWITSONS SOLICITORS,08/10/2020,"1,350.00",M,80121600,Business law services
"Ministry of Housing, Communities and Local Government",Homes England,LEGAL FEES,East And South East,HEWITSONS SOLICITORS,09/10/2020,270,M,80121600,Business law services
"Ministry of Housing, Communities and Local Government",Homes England,DISPOSAL FEES - LEGAL,North East And Yorkshire,HEWITSONS SOLICITORS,12/10/2020,950.00,M,80121600,Business law services
"Ministry of Housing, Communities and Local Government",Homes England,Professional Fees Loans Capitalised,Economic Assets Hub,HEWITSONS SOLICITORS,13/10/2020,"13,800.00",M,80121600,Business law services
"Ministry of Housing, Communities and Local Government",Homes England,LEGAL FEES,East And South East,HEWITSONS SOLICITORS,16/10/2020,"3,216.00",M,80121600,Business law services
"Ministry of Housing, Communities and Local Government",Homes England,LEGAL FEES,North West,HEWITSONS SOLICITORS,16/10/2020,"1,785.00",M,80121600,Business law services
"Ministry of Housing, Communities and Local Government",Homes England,Professional Fees Loans Capitalised,Economic Assets Hub,HEWITSONS SOLICITORS,20/10/2020,"16,150.00",M,80121600,Business law services
"Ministry of Housing, Communities and Local Government",Homes England,LEGAL FEES,East And South East,HEWITSONS SOLICITORS,21/10/2020,"3,900.00",M,80121600,Business law services
"Ministry of Housing, Communities and Local Government",Homes England,DISPOSAL FEES - LEGAL,Midlands,HEWITSONS SOLICITORS,21/10/2020,665.00,M,80121600,Business law services
"Ministry of Housing, Communities and Local Government",Homes England,REVENUE GRANTS TO RPs,South West,CITY OF EXETER YMCA,13/10/2020,"1,503.00",,,Grants
"Ministry of Housing, Communities and Local Government",Homes England,REVENUE GRANTS TO RPs,South West,CITY OF EXETER YMCA,13/10/2020,"1,400.00",,,Grants
"Ministry of Housing, Communities and Local Government",Homes England,REVENUE GRANTS TO RPs,South West,CITY OF EXETER YMCA,13/10/2020,"1,400.00",,,Grants
"Ministry of Housing, Communities and Local Government",Homes England,REVENUE GRANTS TO RPs,South West,CITY OF EXETER YMCA,13/10/2020,"1,680.00",,,Grants
"Ministry of Housing, Communities and Local Government",Homes England,CONTRACT WORKS,South West,HUGHES & SALVIDGE LIMITED,08/10/2020,"26,605.21",M,72141500,Land preparation services
"Ministry of Housing, Communities and Local Government",Homes England,CONTRACT WORKS,South West,HUGHES & SALVIDGE LIMITED,27/10/2020,"92,732.35",M,72141500,Land preparation services
"Ministry of Housing, Communities and Local Government",Homes England,LEGAL FEES (ADMIN ONLY),Finance & Corporate Services,INFORMATION COMMISSIONER,21/10/2020,"2,900.00",L,94101500,Business associations
"Ministry of Housing, Communities and Local Government",Homes England,LANDSCAPING & PLANTS,Finance & Corporate Services,INDUSTRIAL LANDSCAPES LIMITED,05/10/2020,442.00,S,72101500,Building maintenance and repair services
"Ministry of Housing, Communities and Local Government",Homes England,SECURITY,Programmes,MITIE SECURITY LIMITED,28/10/2020,"9,579.92",L,92121500,Guard services
"Ministry of Housing, Communities and Local Government",Homes England,SECURITY,Programmes,MITIE SECURITY LIMITED,28/10/2020,"9,579.92",L,92121500,Guard services
"Ministry of Housing, Communities and Local Government",Homes England,SECURITY,Programmes,MITIE SECURITY LIMITED,28/10/2020,"9,579.92",L,92121500,Guard services
"Ministry of Housing, Communities and Local Government",Homes England,SECURITY,Programmes,MITIE SECURITY LIMITED,29/10/2020,"9,579.92",L,92121500,Guard services
"Ministry of Housing, Communities and Local Government",Homes England,SECURITY,Programmes,MITIE SECURITY LIMITED,29/10/2020,"9,579.92",L,92121500,Guard services
"Ministry of Housing, Communities and Local Government",Homes England,SECURITY,Programmes,MITIE SECURITY LIMITED,29/10/2020,406.72,L,92121500,Guard services
"Ministry of Housing, Communities and Local Government",Homes England,CLEANING,Finance & Corporate Services,INDEPTH MANAGED SERVICES,02/10/2020,"4,011.02",L,76111500,General building and office cleaining and maintenance services
"Ministry of Housing, Communities and Local Government",Homes England,CLEANING,Finance & Corporate Services,INDEPTH MANAGED SERVICES,16/10/2020,"2,110.50",L,76111500,General building and office cleaining and maintenance services
"Ministry of Housing, Communities and Local Government",Homes England,COURSES & CONFERENCES,East And South East,IT TRAINING SOLUTIONS LIMITED,16/10/2020,595.00,S,86101800,In service training and manpower development
"Ministry of Housing, Communities and Local Government",Homes England,LT Fund Loans (Ps) Additions,Economic Assets Hub,ILKE HOMES HOLDINGS LIMITED,23/10/2020,5000000,,,Loans
"Ministry of Housing, Communities and Local Government",Homes England,AGENCY STAFF,Finance & Corporate Services,INVESTIGO LIMITED,06/10/2020,"40,000.00",L,80111600,Temporary personnel services
"Ministry of Housing, Communities and Local Government",Homes England,AGENCY STAFF,Finance & Corporate Services,INVESTIGO LIMITED,06/10/2020,"8,000.00",L,80111600,Temporary personnel services
"Ministry of Housing, Communities and Local Government",Homes England,AGENCY STAFF,Finance & Corporate Services,INVESTIGO LIMITED,06/10/2020,"8,000.00",L,80111600,Temporary personnel services
"Ministry of Housing, Communities and Local Government",Homes England,Other Intangibles Additions,Finance & Corporate Services,INVESTIGO LIMITED,06/10/2020,3250,L,80111600,Temporary personnel services
"Ministry of Housing, Communities and Local Government",Homes England,AGENCY STAFF,Finance & Corporate Services,INVESTIGO LIMITED,06/10/2020,"4,000.00",L,80111600,Temporary personnel services
"Ministry of Housing, Communities and Local Government",Homes England,Other Intangibles Additions,Finance & Corporate Services,INVESTIGO LIMITED,13/10/2020,3250,L,80111600,Temporary personnel services
"Ministry of Housing, Communities and Local Government",Homes England,Other Intangibles Additions,Finance & Corporate Services,INVESTIGO LIMITED,19/10/2020,2600,L,80111600,Temporary personnel services
"Ministry of Housing, Communities and Local Government",Homes England,Other Intangibles Additions,Finance & Corporate Services,INVESTIGO LIMITED,26/10/2020,"3,250.00",L,80111600,Temporary personnel services
"Ministry of Housing, Communities and Local Government",Homes England,COURSES & CONFERENCES,Programmes,INTERNATIONAL COMPLIANCE TRAINING,14/10/2020,615,L,86101800,In service training and manpower development
"Ministry of Housing, Communities and Local Government",Homes England,ST Fund Loans Additions,Economic Assets Hub,IPCJC LIMITED,15/10/2020,"35,729.55",,,Loans
"Ministry of Housing, Communities and Local Government",Homes England,BESPOKE DEVELOPMENT SUPPORT,Finance & Corporate Services,INTERQUEST GROUP UK LIMITED,02/10/2020,10214.4,L,80111600,Temporary personnel services
"Ministry of Housing, Communities and Local Government",Homes England,Other Intangibles Additions,Finance & Corporate Services,INTERQUEST GROUP UK LIMITED,02/10/2020,"11,400.00",L,80111600,Temporary personnel services
"Ministry of Housing, Communities and Local Government",Homes England,Other Intangibles Additions,Finance & Corporate Services,INTERQUEST GROUP UK LIMITED,06/10/2020,"9,000.00",L,80111600,Temporary personnel services
"Ministry of Housing, Communities and Local Government",Homes England,Other Intangibles Additions,Finance & Corporate Services,INTERQUEST GROUP UK LIMITED,09/10/2020,3000,L,80111600,Temporary personnel services
"Ministry of Housing, Communities and Local Government",Homes England,Other Intangibles Additions,Finance & Corporate Services,INTERQUEST GROUP UK LIMITED,14/10/2020,"3,000.00",L,80111600,Temporary personnel services
"Ministry of Housing, Communities and Local Government",Homes England,Other Intangibles Additions,Finance & Corporate Services,INTERQUEST GROUP UK LIMITED,26/10/2020,3000,L,80111600,Temporary personnel services
"Ministry of Housing, Communities and Local Government",Homes England,LANDSCAPE ARCHITECT FEES,Midlands,IDPARTNERSHIP NORTHERN,13/10/2020,2350,S,80131800,Real estate management services
"Ministry of Housing, Communities and Local Government",Homes England,PACKAGE MAINTENANCE & SUBSCRIPTIONS,Finance & Corporate Services,INSIGHT DIRECT (UK) LTD,20/10/2020,"29,740.84",S,43211600,Computer accessories
"Ministry of Housing, Communities and Local Government",Homes England,MISC PROFESSIONAL FEES,Midlands,JONSYN LIMITED,15/10/2020,4950,S,80131800,Real estate management services
"Ministry of Housing, Communities and Local Government",Homes England,OPEN MARKET VALUATION FEE,Midlands,JONES LANG LASALLE,02/10/2020,859.35,L,80131800,Real estate management services
"Ministry of Housing, Communities and Local Government",Homes England,OPEN MARKET VALUATION FEE,Midlands,JONES LANG LASALLE,02/10/2020,"1,500.00",L,80131800,Real estate management services
"Ministry of Housing, Communities and Local Government",Homes England,MISC PROFESSIONAL FEES (ADMIN ONLY),Programmes,JONES LANG LASALLE,02/10/2020,35000,L,80131800,Real estate management services
"Ministry of Housing, Communities and Local Government",Homes England,OPEN MARKET VALUATION FEE,Programmes,JONES LANG LASALLE,05/10/2020,17500,L,80131800,Real estate management services
"Ministry of Housing, Communities and Local Government",Homes England,DISPOSAL FEES - PROPERTY AGENTS & ADVERTISING,East And South East,JONES LANG LASALLE,07/10/2020,"2,500.00",L,80131800,Real estate management services
"Ministry of Housing, Communities and Local Government",Homes England,RI - SITE VALUATION FEES,Economic Assets Hub,JONES LANG LASALLE,14/10/2020,"3,500.00",L,80131800,Real estate management services
"Ministry of Housing, Communities and Local Government",Homes England,PROPERTY SERVICES,Programmes,JONES LANG LASALLE,15/10/2020,8250,L,80131800,Real estate management services
"Ministry of Housing, Communities and Local Government",Homes England,ST Fund Loans Additions,Economic Assets Hub,J & J HOLDEN HOMES LTD,16/10/2020,500000,,,Loans
"Ministry of Housing, Communities and Local Government",Homes England,ST Fund Loans Additions,Economic Assets Hub,JG CHATHAM LIMITED,28/10/2020,"1,200,500.00",,,Loans
"Ministry of Housing, Communities and Local Government",Homes England,MISC PROFESSIONAL FEES,Midlands,JOHNSON ASSOCIATES (UK) LTD,13/10/2020,4100,S,80131800,Real estate management services
"Ministry of Housing, Communities and Local Government",Homes England,POSTAGE/COURIERS,Finance & Corporate Services,JCP LIGHT HAULAGE,13/10/2020,"5,425.00",S,78102200,Postal and small parcel and courier services
"Ministry of Housing, Communities and Local Government",Homes England,DRAINS & SEWERS,Programmes,KMS COMMERCIAL PROPERTY MAINTENANCE LTD,01/10/2020,1335,M,72101500,Building maintenance and repair services
"Ministry of Housing, Communities and Local Government",Homes England,DRAINS & SEWERS,Programmes,KMS COMMERCIAL PROPERTY MAINTENANCE LTD,06/10/2020,543.50,M,72101500,Building maintenance and repair services
"Ministry of Housing, Communities and Local Government",Homes England,ESTATE GENERAL MAINTENANCE,Programmes,KMS COMMERCIAL PROPERTY MAINTENANCE LTD,27/10/2020,580.50,M,72101500,Building maintenance and repair services
"Ministry of Housing, Communities and Local Government",Homes England,ST Fund Loans Additions,Economic Assets Hub,KINGSTON REAL ESTATE (NEW HOMES) LIMITED,20/10/2020,206473,,,Loans
"Ministry of Housing, Communities and Local Government",Homes England,ESTATE GENERAL MAINTENANCE,Programmes,KINGS LANDSCAPES,16/10/2020,"1,085.00",S,72101500,Building maintenance and repair services
"Ministry of Housing, Communities and Local Government",Homes England,RI - MONITORING SURVEYOR FEES,Economic Assets Hub,LAMBERT SMITH HAMPTON,01/10/2020,650.00,L,80131800,Real estate management services
"Ministry of Housing, Communities and Local Government",Homes England,RI - MONITORING SURVEYOR FEES,Economic Assets Hub,LAMBERT SMITH HAMPTON,01/10/2020,"2,025.00",L,80131800,Real estate management services
"Ministry of Housing, Communities and Local Government",Homes England,RI - SITE VALUATION FEES,Economic Assets Hub,LAMBERT SMITH HAMPTON,02/10/2020,4000,L,80131800,Real estate management services
"Ministry of Housing, Communities and Local Government",Homes England,RI - MONITORING SURVEYOR FEES,Economic Assets Hub,LAMBERT SMITH HAMPTON,05/10/2020,700,L,80131800,Real estate management services
"Ministry of Housing, Communities and Local Government",Homes England,RI - MONITORING SURVEYOR FEES,Economic Assets Hub,LAMBERT SMITH HAMPTON,05/10/2020,750.00,L,80131800,Real estate management services
"Ministry of Housing, Communities and Local Government",Homes England,DISPOSAL FEES - PROPERTY AGENTS & ADVERTISING,Programmes,LAMBERT SMITH HAMPTON,06/10/2020,"1,200.00",L,80131800,Real estate management services
"Ministry of Housing, Communities and Local Government",Homes England,RI - MONITORING SURVEYOR FEES,Economic Assets Hub,LAMBERT SMITH HAMPTON,07/10/2020,"1,100.00",L,80131800,Real estate management services
"Ministry of Housing, Communities and Local Government",Homes England,RI - MONITORING SURVEYOR FEES,Economic Assets Hub,LAMBERT SMITH HAMPTON,16/10/2020,650,L,80131800,Real estate management services
"Ministry of Housing, Communities and Local Government",Homes England,RI - MONITORING SURVEYOR FEES,Economic Assets Hub,LAMBERT SMITH HAMPTON,16/10/2020,650,L,80131800,Real estate management services
"Ministry of Housing, Communities and Local Government",Homes England,RI - MONITORING SURVEYOR FEES,Economic Assets Hub,LAMBERT SMITH HAMPTON,21/10/2020,"1,600.00",L,80131800,Real estate management services
"Ministry of Housing, Communities and Local Government",Homes England,RI - MONITORING SURVEYOR FEES,Economic Assets Hub,LAMBERT SMITH HAMPTON,26/10/2020,1100,L,80131800,Real estate management services
"Ministry of Housing, Communities and Local Government",Homes England,OPEN MARKET VALUATION FEE,South West,LAMBERT SMITH HAMPTON,26/10/2020,1837.5,L,80131800,Real estate management services
"Ministry of Housing, Communities and Local Government",Homes England,DISPOSAL FEES - FINANCIAL,Midlands,LAMBERT SMITH HAMPTON,28/10/2020,"1,200.00",L,80131800,Real estate management services
"Ministry of Housing, Communities and Local Government",Homes England,CAPITAL GRANTS TO RPs (NOT LA),East & South East,HASTOE HOUSING ASSOCIATION LIMITED,22/10/2020,52500,,,Grants
"Ministry of Housing, Communities and Local Government",Homes England,CAPITAL GRANTS TO RPs (NOT LA),East & South East,ORWELL HOUSING ASSOCIATION LIMITED,22/10/2020,59033,,,Grants
"Ministry of Housing, Communities and Local Government",Homes England,CAPITAL GRANTS TO RPs (NOT LA),East & South East,ORWELL HOUSING ASSOCIATION LIMITED,29/10/2020,120220,,,Grants
"Ministry of Housing, Communities and Local Government",Homes England,CAPITAL GRANTS TO RPs (NOT LA),North West,THE RIVERSIDE GROUP,12/10/2020,9000,L,,Grants
"Ministry of Housing, Communities and Local Government",Homes England,CAPITAL GRANTS TO RPs (NOT LA),North West,THE RIVERSIDE GROUP,12/10/2020,9000,L,,Grants
"Ministry of Housing, Communities and Local Government",Homes England,CAPITAL GRANTS TO RPs (NOT LA),North West,THE RIVERSIDE GROUP,12/10/2020,"9,000.00",L,,Grants
"Ministry of Housing, Communities and Local Government",Homes England,CAPITAL GRANTS TO RPs (NOT LA),North West,THE RIVERSIDE GROUP,28/10/2020,"10,000.00",L,,Grants
"Ministry of Housing, Communities and Local Government",Homes England,CAPITAL GRANTS TO RPs (NOT LA),North West,THE RIVERSIDE GROUP,,336000,L,,Grants
"Ministry of Housing, Communities and Local Government",Homes England,CAPITAL GRANTS TO RPs (NOT LA),North West,IRWELL VALLEY HOUSING ASSOCIATION LTD,27/10/2020,140700,,,Grants
"Ministry of Housing, Communities and Local Government",Homes England,REVENUE GRANTS TO RPs,East & South East,STONEWATER (2) LTD,23/10/2020,55300,L,,Grants
"Ministry of Housing, Communities and Local Government",Homes England,REVENUE GRANTS TO RPs,Midlands,SANCTUARY HOUSING ASSOCIATION,09/10/2020,"72,000.00",L,,Grants
"Ministry of Housing, Communities and Local Government",Homes England,CAPITAL GRANTS TO RPs (NOT LA),North West,SANCTUARY HOUSING ASSOCIATION,29/10/2020,"10,000.00",L,,Grants
"Ministry of Housing, Communities and Local Government",Homes England,CAPITAL GRANTS TO RPs (NOT LA),East & South East,SANCTUARY HOUSING ASSOCIATION,,"118,851.00",L,,Grants
"Ministry of Housing, Communities and Local Government",Homes England,CAPITAL GRANTS TO RPs (NOT LA),"North East, Yorkshire & the Humber",SANCTUARY HOUSING ASSOCIATION,,"1,902,920.00",L,,Grants
"Ministry of Housing, Communities and Local Government",Homes England,CAPITAL GRANTS TO RPs (NOT LA),"North East, Yorkshire & the Humber",SANCTUARY HOUSING ASSOCIATION,,"330,000.00",L,,Grants
"Ministry of Housing, Communities and Local Government",Homes England,CAPITAL GRANTS TO RPs (NOT LA),South West,SANCTUARY HOUSING ASSOCIATION,,"11,000.00",L,,Grants
"Ministry of Housing, Communities and Local Government",Homes England,CAPITAL GRANTS TO RPs (NOT LA),Midlands,SANCTUARY HOUSING ASSOCIATION,,"3,871,500.00",L,,Grants
"Ministry of Housing, Communities and Local Government",Homes England,CAPITAL GRANTS TO RPs (NOT LA),East & South East,SANCTUARY HOUSING ASSOCIATION,,"353,034.00",L,,Grants
"Ministry of Housing, Communities and Local Government",Homes England,CAPITAL GRANTS TO RPs (NOT LA),East & South East,SANCTUARY HOUSING ASSOCIATION,,"360,000.00",L,,Grants
"Ministry of Housing, Communities and Local Government",Homes England,CAPITAL GRANTS TO RPs (NOT LA),South West,KNIGHTSTONE HOUSING ASSOCIATION LIMITED,28/10/2020,"279,712.00",,,Grants
"Ministry of Housing, Communities and Local Government",Homes England,OTHER PROFESSIONAL FEES,Programmes,LANCASHIRE COUNTY COUNCIL,09/10/2020,900.00,G,80131500,Lease and rental of property or building
"Ministry of Housing, Communities and Local Government",Homes England,City Deals Loans La Additions,North West,LANCASHIRE COUNTY COUNCIL,22/10/2020,"123,497.00",G,,Loans
"Ministry of Housing, Communities and Local Government",Homes England,OPEN MARKET VALUATION FEE,Programmes,THOMAS LISTER LTD,05/10/2020,"6,587.50",S,80131800,Real estate management services
"Ministry of Housing, Communities and Local Government",Homes England,DISPOSAL FEES - PROPERTY AGENTS & ADVERTISING,Programmes,THOMAS LISTER LTD,06/10/2020,750.00,S,80131800,Real estate management services
"Ministry of Housing, Communities and Local Government",Homes England,OPEN MARKET VALUATION FEE,Programmes,THOMAS LISTER LTD,13/10/2020,975.00,S,80131800,Real estate management services
"Ministry of Housing, Communities and Local Government",Homes England,OPEN MARKET VALUATION FEE,Programmes,THOMAS LISTER LTD,13/10/2020,"3,400.00",S,80131800,Real estate management services
"Ministry of Housing, Communities and Local Government",Homes England,PROPERTY SERVICES,Midlands,THOMAS LISTER LTD,22/10/2020,585.00,S,80131800,Real estate management services
"Ministry of Housing, Communities and Local Government",Homes England,PROPERTY SERVICES,Midlands,THOMAS LISTER LTD,30/10/2020,"9,500.00",S,80131800,Real estate management services
"Ministry of Housing, Communities and Local Government",Homes England,Help To Buy Additions,East & South East,PLACES FOR PEOPLE,23/10/2020,"74,990.00",L,,Grants
"Ministry of Housing, Communities and Local Government",Homes England,Help To Buy Additions,South West,PLACES FOR PEOPLE,27/10/2020,"61,000.00",L,,Grants
"Ministry of Housing, Communities and Local Government",Homes England,Help To Buy Additions,South West,PLACES FOR PEOPLE,28/10/2020,"44,000.00",L,,Grants
"Ministry of Housing, Communities and Local Government",Homes England,CAPITAL GRANTS TO RPs (NOT LA),East & South East,SWAYTHLING HOUSING SOCIETY LIMITED,29/10/2020,"154,000.00",,,Grants
"Ministry of Housing, Communities and Local Government",Homes England,OTHER PROFESSIONAL FEES,Programmes,LLOYD BORE LIMITED,02/10/2020,520.00,S,77101500,Environmental auditing
"Ministry of Housing, Communities and Local Government",Homes England,CONTRIBUTIONS,Programmes,Bournville Village Trust,08/10/2020,"36,532.42",M,,Grants
"Ministry of Housing, Communities and Local Government",Homes England,MISC PROFESSIONAL FEES,Programmes,LAND TECHNOLOGIES LIMITED,09/10/2020,"27,500.00",S,43231500,Business function specific software
"Ministry of Housing, Communities and Local Government",Homes England,REVENUE GRANTS TO RPs,Midlands,DERWENT HOUSING ASSOCIATION LIMITED,23/10/2020,"51,920.00",,,Grants
"Ministry of Housing, Communities and Local Government",Homes England,REVENUE GRANTS TO RPs,Midlands,METROPOLITAN HOUSING TRUST LIMITED,23/10/2020,"58,000.00",L,,Grants
"Ministry of Housing, Communities and Local Government",Homes England,REVENUE GRANTS TO RPs,Midlands,METROPOLITAN HOUSING TRUST LIMITED,30/10/2020,54800,L,,Grants
"Ministry of Housing, Communities and Local Government",Homes England,CAPITAL GRANTS TO RPs (NOT LA),South West,METROPOLITAN HOUSING TRUST LIMITED,,2250000,L,,Grants
"Ministry of Housing, Communities and Local Government",Homes England,CAR LEASING - HIRE CHARGES,Programmes,LEX AUTOLEASE LTD,08/10/2020,260.95,L,25101500,Passenger motor vehicles
"Ministry of Housing, Communities and Local Government",Homes England,CAR LEASING - HIRE CHARGES,Programmes,LEX AUTOLEASE LTD,08/10/2020,"2,545.20",L,25101500,Passenger motor vehicles
"Ministry of Housing, Communities and Local Government",Homes England,CAR LEASING - HIRE CHARGES,Programmes,LEX AUTOLEASE LTD,08/10/2020,"3,133.20",L,25101500,Passenger motor vehicles
"Ministry of Housing, Communities and Local Government",Homes England,CAR LEASING - HIRE CHARGES,North East And Yorkshire,LEX AUTOLEASE LTD,27/10/2020,"2,111.88",L,25101500,Passenger motor vehicles
"Ministry of Housing, Communities and Local Government",Homes England,CAR LEASING - HIRE CHARGES,North East And Yorkshire,LEX AUTOLEASE LTD,27/10/2020,"3,023.16",L,25101500,Passenger motor vehicles
"Ministry of Housing, Communities and Local Government",Homes England,CAR LEASING - HIRE CHARGES,Programmes,LEX AUTOLEASE LTD,27/10/2020,"1,454.46",L,25101500,Passenger motor vehicles
"Ministry of Housing, Communities and Local Government",Homes England,CAR LEASING - HIRE CHARGES,Programmes,LEX AUTOLEASE LTD,27/10/2020,"1,959.78",L,25101500,Passenger motor vehicles
"Ministry of Housing, Communities and Local Government",Homes England,CAR LEASING - HIRE CHARGES,Programmes,LEX AUTOLEASE LTD,27/10/2020,"2,615.40",L,25101500,Passenger motor vehicles
"Ministry of Housing, Communities and Local Government",Homes England,CAR LEASING - HIRE CHARGES,Programmes,LEX AUTOLEASE LTD,27/10/2020,"3,236.28",L,25101500,Passenger motor vehicles
"Ministry of Housing, Communities and Local Government",Homes England,CAR LEASING - HIRE CHARGES,Programmes,LEX AUTOLEASE LTD,27/10/2020,"1,502.22",L,25101500,Passenger motor vehicles
"Ministry of Housing, Communities and Local Government",Homes England,CAR LEASING - HIRE CHARGES,Programmes,LEX AUTOLEASE LTD,27/10/2020,"2,009.94",L,25101500,Passenger motor vehicles
"Ministry of Housing, Communities and Local Government",Homes England,CAR LEASING - HIRE CHARGES,Programmes,LEX AUTOLEASE LTD,27/10/2020,1506.06,L,25101500,Passenger motor vehicles
"Ministry of Housing, Communities and Local Government",Homes England,CAR LEASING - HIRE CHARGES,Programmes,LEX AUTOLEASE LTD,27/10/2020,1911.9,L,25101500,Passenger motor vehicles
"Ministry of Housing, Communities and Local Government",Homes England,CAR LEASING - HIRE CHARGES,Programmes,LEX AUTOLEASE LTD,30/10/2020,2340.96,L,25101500,Passenger motor vehicles
"Ministry of Housing, Communities and Local Government",Homes England,CAR LEASING - HIRE CHARGES,Programmes,LEX AUTOLEASE LTD,30/10/2020,3003.96,L,25101500,Passenger motor vehicles
"Ministry of Housing, Communities and Local Government",Homes England,CONTRACT WORKS,Programmes,LILLEKER BROS LIMITED,15/10/2020,5495.16,S,81151604,Land surveying�
"Ministry of Housing, Communities and Local Government",Homes England,CAPITAL GRANTS TO RPs (NOT LA),North West,GREAT PLACES HOUSING ASSOCIATION,28/10/2020,"8,250.00",L,,Grants
"Ministry of Housing, Communities and Local Government",Homes England,CAPITAL GRANTS TO RPs (NOT LA),North West,GREAT PLACES HOUSING ASSOCIATION,28/10/2020,"36,250.00",L,,Grants
"Ministry of Housing, Communities and Local Government",Homes England,CAPITAL GRANTS TO RPs (NOT LA),North West,GREAT PLACES HOUSING ASSOCIATION,30/10/2020,181250,L,,Grants
"Ministry of Housing, Communities and Local Government",Homes England,ENGINEERING FEES,North West,LEES ROXBURGH LTD,15/10/2020,2384.28,S,80131800,Real estate management services
"Ministry of Housing, Communities and Local Government",Homes England,CAPITAL GRANTS TO RPs (NOT LA),"North East, Yorkshire & the Humber",TEES VALLEY HOUSING LIMITED,13/10/2020,9100,L,,Grants
"Ministry of Housing, Communities and Local Government",Homes England,CAPITAL GRANTS TO RPs (NOT LA),"North East, Yorkshire & the Humber",TEES VALLEY HOUSING LIMITED,15/10/2020,20250,L,,Grants
"Ministry of Housing, Communities and Local Government",Homes England,CAPITAL GRANTS TO RPs (NOT LA),"North East, Yorkshire & the Humber",TEES VALLEY HOUSING LIMITED,20/10/2020,"18,750.00",L,,Grants
"Ministry of Housing, Communities and Local Government",Homes England,CAPITAL GRANTS TO RPs (NOT LA),"North East, Yorkshire & the Humber",TEES VALLEY HOUSING LIMITED,26/10/2020,"120,000.00",L,,Grants
"Ministry of Housing, Communities and Local Government",Homes England,CAPITAL GRANTS TO RPs (NOT LA),"North East, Yorkshire & the Humber",TEES VALLEY HOUSING LIMITED,26/10/2020,40000,L,,Grants
"Ministry of Housing, Communities and Local Government",Homes England,CAPITAL GRANTS TO RPs (NOT LA),"North East, Yorkshire & the Humber",TEES VALLEY HOUSING LIMITED,,117000,L,,Grants
"Ministry of Housing, Communities and Local Government",Homes England,CAPITAL GRANTS TO RPs (NOT LA),"North East, Yorkshire & the Humber",CONNECT HOUSING ASSOCIATION LIMITED,29/10/2020,11250,,,Grants
"Ministry of Housing, Communities and Local Government",Homes England,CAPITAL GRANTS TO RPs (NOT LA),"North East, Yorkshire & the Humber",CONNECT HOUSING ASSOCIATION LIMITED,29/10/2020,"11,250.00",,,Grants
"Ministry of Housing, Communities and Local Government",Homes England,CAPITAL GRANTS TO RPs (NOT LA),"North East, Yorkshire & the Humber",CONNECT HOUSING ASSOCIATION LIMITED,29/10/2020,"11,250.00",,,Grants
"Ministry of Housing, Communities and Local Government",Homes England,CAPITAL GRANTS TO RPs (NOT LA),"North East, Yorkshire & the Humber",CONNECT HOUSING ASSOCIATION LIMITED,29/10/2020,11250,,,Grants
"Ministry of Housing, Communities and Local Government",Homes England,Help To Buy Additions,East & South East,HOME GROUP LIMITED,08/10/2020,87000,L,,Grants
"Ministry of Housing, Communities and Local Government",Homes England,Help To Buy Additions,East & South East,HOME GROUP LIMITED,08/10/2020,"80,000.00",L,,Grants
"Ministry of Housing, Communities and Local Government",Homes England,Help To Buy Additions,East & South East,HOME GROUP LIMITED,08/10/2020,"77,000.00",L,,Grants
"Ministry of Housing, Communities and Local Government",Homes England,CAPITAL GRANTS TO RPs (NOT LA),East & South East,HOME GROUP LIMITED,19/10/2020,"13,500.00",L,,Grants
"Ministry of Housing, Communities and Local Government",Homes England,Help To Buy Additions,"North East, Yorkshire & the Humber",HOME GROUP LIMITED,22/10/2020,"50,000.00",L,,Grants
"Ministry of Housing, Communities and Local Government",Homes England,Help To Buy Additions,"North East, Yorkshire & the Humber",HOME GROUP LIMITED,26/10/2020,"50,000.00",L,,Grants
"Ministry of Housing, Communities and Local Government",Homes England,Help To Buy Additions,East & South East,HOME GROUP LIMITED,27/10/2020,56000,L,,Grants
"Ministry of Housing, Communities and Local Government",Homes England,CAPITAL GRANTS TO RPs (NOT LA),North West,CONTOUR HOMES LIMITED,29/10/2020,"9,000.00",,,Grants
"Ministry of Housing, Communities and Local Government",Homes England,CAPITAL GRANTS TO RPs (NOT LA),North West,CONTOUR HOMES LIMITED,29/10/2020,9000,,,Grants
"Ministry of Housing, Communities and Local Government",Homes England,CAPITAL GRANTS TO RPs (NOT LA),North West,CONTOUR HOMES LIMITED,29/10/2020,9000,,,Grants
"Ministry of Housing, Communities and Local Government",Homes England,CAPITAL GRANTS TO RPs (NOT LA),North West,CONTOUR HOMES LIMITED,29/10/2020,9000,,,Grants
"Ministry of Housing, Communities and Local Government",Homes England,CAPITAL GRANTS TO RPs (NOT LA),North West,CONTOUR HOMES LIMITED,29/10/2020,"9,000.00",,,Grants
"Ministry of Housing, Communities and Local Government",Homes England,CAPITAL GRANTS TO RPs (NOT LA),North West,CONTOUR HOMES LIMITED,29/10/2020,"9,000.00",,,Grants
"Ministry of Housing, Communities and Local Government",Homes England,CAPITAL GRANTS TO RPs (NOT LA),North West,CONTOUR HOMES LIMITED,,"51,800.00",,,Grants
"Ministry of Housing, Communities and Local Government",Homes England,CAPITAL GRANTS TO RPs (NOT LA),"North East, Yorkshire & the Humber",MANNINGHAM HOUSING ASSOCIATION LIMITED,22/10/2020,"9,000.00",,,Grants
"Ministry of Housing, Communities and Local Government",Homes England,CAPITAL GRANTS TO RPs (NOT LA),South West,SHA 2016 LIMITED,,"35,000.00",,,Grants
"Ministry of Housing, Communities and Local Government",Homes England,CAPITAL GRANTS TO RPs (NOT LA),East & South East,ENGLISH RURAL HOUSING ASSOCIATION LTD,08/10/2020,"232,500.00",,,Grants
"Ministry of Housing, Communities and Local Government",Homes England,Help To Buy Additions,Midlands,ORBIT HOUSING GROUP LTD,08/10/2020,"38,999.00",L,,Grants
"Ministry of Housing, Communities and Local Government",Homes England,Help To Buy Additions,Midlands,ORBIT HOUSING GROUP LTD,08/10/2020,"50,000.00",L,,Grants
"Ministry of Housing, Communities and Local Government",Homes England,Help To Buy Additions,Midlands,ORBIT HOUSING GROUP LTD,08/10/2020,"49,800.00",L,,Grants
"Ministry of Housing, Communities and Local Government",Homes England,Help To Buy Additions,East & South East,ORBIT HOUSING GROUP LTD,08/10/2020,"60,000.00",L,,Grants
"Ministry of Housing, Communities and Local Government",Homes England,Help To Buy Additions,East & South East,ORBIT HOUSING GROUP LTD,08/10/2020,"28,500.00",L,,Grants
"Ministry of Housing, Communities and Local Government",Homes England,Help To Buy Additions,East & South East,ORBIT HOUSING GROUP LTD,08/10/2020,"55,000.00",L,,Grants
"Ministry of Housing, Communities and Local Government",Homes England,Help To Buy Additions,East & South East,ORBIT HOUSING GROUP LTD,08/10/2020,"73,999.00",L,,Grants
"Ministry of Housing, Communities and Local Government",Homes England,Help To Buy Additions,East & South East,ORBIT HOUSING GROUP LTD,08/10/2020,"46,000.00",L,,Grants
"Ministry of Housing, Communities and Local Government",Homes England,Help To Buy Additions,Midlands,ORBIT HOUSING GROUP LTD,08/10/2020,"49,800.00",L,,Grants
"Ministry of Housing, Communities and Local Government",Homes England,Help To Buy Additions,East & South East,ORBIT HOUSING GROUP LTD,15/10/2020,43000,L,,Grants
"Ministry of Housing, Communities and Local Government",Homes England,Help To Buy Additions,East & South East,ORBIT HOUSING GROUP LTD,16/10/2020,19700,L,,Grants
"Ministry of Housing, Communities and Local Government",Homes England,Help To Buy Additions,East & South East,ORBIT HOUSING GROUP LTD,16/10/2020,"66,000.00",L,,Grants
"Ministry of Housing, Communities and Local Government",Homes England,Help To Buy Additions,East & South East,ORBIT HOUSING GROUP LTD,22/10/2020,"67,000.00",L,,Grants
"Ministry of Housing, Communities and Local Government",Homes England,Help To Buy Additions,East & South East,ORBIT HOUSING GROUP LTD,22/10/2020,"72,999.00",L,,Grants
"Ministry of Housing, Communities and Local Government",Homes England,Help To Buy Additions,Midlands,ORBIT HOUSING GROUP LTD,22/10/2020,"49,800.00",L,,Grants
"Ministry of Housing, Communities and Local Government",Homes England,Help To Buy Additions,Midlands,ORBIT HOUSING GROUP LTD,23/10/2020,"115,000.00",L,,Grants
"Ministry of Housing, Communities and Local Government",Homes England,Help To Buy Additions,East & South East,ORBIT HOUSING GROUP LTD,23/10/2020,"66,199.00",L,,Grants
"Ministry of Housing, Communities and Local Government",Homes England,Help To Buy Additions,East & South East,ORBIT HOUSING GROUP LTD,29/10/2020,"77,199.00",L,,Grants
"Ministry of Housing, Communities and Local Government",Homes England,Help To Buy Additions,East & South East,ORBIT HOUSING GROUP LTD,,"76,000.00",L,,Grants
"Ministry of Housing, Communities and Local Government",Homes England,CAPITAL GRANTS TO RPs (NOT LA),East & South East,ORBIT HOUSING GROUP LTD,,"66,491.00",L,,Grants
"Ministry of Housing, Communities and Local Government",Homes England,CAPITAL GRANTS TO RPs (NOT LA),Midlands,BENTILEE COMMUNITY HOUSING LIMITED,13/10/2020,"14,000.00",,,Grants
"Ministry of Housing, Communities and Local Government",Homes England,CAPITAL GRANTS TO RPs (NOT LA),Midlands,BENTILEE COMMUNITY HOUSING LIMITED,20/10/2020,"14,000.00",,,Grants
"Ministry of Housing, Communities and Local Government",Homes England,CAPITAL GRANTS TO RPs (NOT LA),Midlands,BENTILEE COMMUNITY HOUSING LIMITED,28/10/2020,"11,250.00",,,Grants
"Ministry of Housing, Communities and Local Government",Homes England,CAPITAL GRANTS TO RPs (NOT LA),Midlands,BENTILEE COMMUNITY HOUSING LIMITED,,"18,000.00",,,Grants
"Ministry of Housing, Communities and Local Government",Homes England,CAPITAL GRANTS TO RPs (NOT LA),Midlands,BENTILEE COMMUNITY HOUSING LIMITED,,"12,250.00",,,Grants
"Ministry of Housing, Communities and Local Government",Homes England,CAPITAL GRANTS TO RPs (NOT LA),Midlands,BENTILEE COMMUNITY HOUSING LIMITED,,"11,250.00",,,Grants
"Ministry of Housing, Communities and Local Government",Homes England,CAPITAL GRANTS TO RPs (NOT LA),Midlands,BENTILEE COMMUNITY HOUSING LIMITED,,8750,,,Grants
"Ministry of Housing, Communities and Local Government",Homes England,CAPITAL GRANTS TO RPs (NOT LA),Midlands,CITIZEN HOUSING GROUP LIMITED,21/10/2020,"31,100.00",,,Grants
"Ministry of Housing, Communities and Local Government",Homes England,CAPITAL GRANTS TO RPs (NOT LA),Midlands,CITIZEN HOUSING GROUP LIMITED,21/10/2020,"46,750.00",,,Grants
"Ministry of Housing, Communities and Local Government",Homes England,CAPITAL GRANTS TO RPs (NOT LA),Midlands,CITIZEN HOUSING GROUP LIMITED,21/10/2020,30900,,,Grants
"Ministry of Housing, Communities and Local Government",Homes England,CAPITAL GRANTS TO RPs (NOT LA),Midlands,CITIZEN HOUSING GROUP LIMITED,21/10/2020,40500,,,Grants
"Ministry of Housing, Communities and Local Government",Homes England,CAPITAL GRANTS TO RPs (NOT LA),Midlands,CITIZEN HOUSING GROUP LIMITED,22/10/2020,"46,000.00",,,Grants
"Ministry of Housing, Communities and Local Government",Homes England,CAPITAL GRANTS TO RPs (NOT LA),Midlands,ASPIRE HOUSING,15/10/2020,"9,000.00",,,Grants
"Ministry of Housing, Communities and Local Government",Homes England,CAPITAL GRANTS TO RPs (NOT LA),Midlands,ASPIRE HOUSING,15/10/2020,"9,000.00",,,Grants
"Ministry of Housing, Communities and Local Government",Homes England,CAPITAL GRANTS TO RPs (NOT LA),Midlands,ASPIRE HOUSING,15/10/2020,"9,000.00",,,Grants
"Ministry of Housing, Communities and Local Government",Homes England,CAPITAL GRANTS TO RPs (NOT LA),East & South East,TOWN AND COUNTRY HOUSING GROUP,22/10/2020,"336,000.00",,,Grants
"Ministry of Housing, Communities and Local Government",Homes England,CAPITAL GRANTS TO RPs (NOT LA),East & South East,TOWN AND COUNTRY HOUSING GROUP,26/10/2020,"294,000.00",,,Grants
"Ministry of Housing, Communities and Local Government",Homes England,CAPITAL GRANTS TO RPs (NOT LA),North West,CALICO HOMES LIMITED,08/10/2020,"6,875.00",M,,Grants
"Ministry of Housing, Communities and Local Government",Homes England,CAPITAL GRANTS TO RPs (NOT LA),North West,CALICO HOMES LIMITED,09/10/2020,"6,875.00",M,,Grants
"Ministry of Housing, Communities and Local Government",Homes England,CAPITAL GRANTS TO RPs (NOT LA),North West,CALICO HOMES LIMITED,12/10/2020,"639,450.00",M,,Grants
"Ministry of Housing, Communities and Local Government",Homes England,CAPITAL GRANTS TO RPs (NOT LA),North West,CALICO HOMES LIMITED,12/10/2020,"9,625.00",M,,Grants
"Ministry of Housing, Communities and Local Government",Homes England,REVENUE GRANTS TO RPs,North West,CALICO HOMES LIMITED,12/10/2020,"10,000.00",M,,Grants
"Ministry of Housing, Communities and Local Government",Homes England,CAPITAL GRANTS TO RPs (NOT LA),North West,CALICO HOMES LIMITED,16/10/2020,"11,000.00",M,,Grants
"Ministry of Housing, Communities and Local Government",Homes England,CAPITAL GRANTS TO RPs (NOT LA),North West,CALICO HOMES LIMITED,16/10/2020,"11,000.00",M,,Grants
"Ministry of Housing, Communities and Local Government",Homes England,CAPITAL GRANTS TO RPs (NOT LA),North West,CALICO HOMES LIMITED,19/10/2020,"9,625.00",M,,Grants
"Ministry of Housing, Communities and Local Government",Homes England,CAPITAL GRANTS TO RPs (NOT LA),North West,CALICO HOMES LIMITED,22/10/2020,"6,875.00",M,,Grants
"Ministry of Housing, Communities and Local Government",Homes England,CAPITAL GRANTS TO RPs (NOT LA),North West,CALICO HOMES LIMITED,26/10/2020,"11,000.00",M,,Grants
"Ministry of Housing, Communities and Local Government",Homes England,CAPITAL GRANTS TO RPs (NOT LA),North West,CALICO HOMES LIMITED,26/10/2020,"6,875.00",M,,Grants
"Ministry of Housing, Communities and Local Government",Homes England,CAPITAL GRANTS TO RPs (NOT LA),North West,CALICO HOMES LIMITED,26/10/2020,"174,000.00",M,,Grants
"Ministry of Housing, Communities and Local Government",Homes England,CAPITAL GRANTS TO RPs (NOT LA),North West,CALICO HOMES LIMITED,26/10/2020,"6,875.00",M,,Grants
"Ministry of Housing, Communities and Local Government",Homes England,CAPITAL GRANTS TO RPs (NOT LA),North West,CALICO HOMES LIMITED,29/10/2020,"3,250.00",M,,Grants
"Ministry of Housing, Communities and Local Government",Homes England,CAPITAL GRANTS TO RPs (NOT LA),North West,CALICO HOMES LIMITED,,"9,625.00",M,,Grants
"Ministry of Housing, Communities and Local Government",Homes England,CAPITAL GRANTS TO RPs (NOT LA),North West,CALICO HOMES LIMITED,,"6,875.00",M,,Grants
"Ministry of Housing, Communities and Local Government",Homes England,Help To Buy Additions,East & South East,LONGHURST GROUP LIMITED,28/10/2020,"51,000.00",,,Grants
"Ministry of Housing, Communities and Local Government",Homes England,Help To Buy Additions,"North East, Yorkshire & the Humber",GENTOO GROUP LIMITED,08/10/2020,"36,590.00",L,,Grants
"Ministry of Housing, Communities and Local Government",Homes England,Help To Buy Additions,"North East, Yorkshire & the Humber",GENTOO GROUP LIMITED,08/10/2020,"38,190.00",L,,Grants
"Ministry of Housing, Communities and Local Government",Homes England,Help To Buy Additions,"North East, Yorkshire & the Humber",GENTOO GROUP LIMITED,08/10/2020,"42,590.00",L,,Grants
"Ministry of Housing, Communities and Local Government",Homes England,Help To Buy Additions,"North East, Yorkshire & the Humber",GENTOO GROUP LIMITED,08/10/2020,"59,000.00",L,,Grants
"Ministry of Housing, Communities and Local Government",Homes England,Help To Buy Additions,"North East, Yorkshire & the Humber",GENTOO GROUP LIMITED,08/10/2020,"57,590.00",L,,Grants
"Ministry of Housing, Communities and Local Government",Homes England,Help To Buy Additions,"North East, Yorkshire & the Humber",GENTOO GROUP LIMITED,13/10/2020,"36,590.00",L,,Grants
"Ministry of Housing, Communities and Local Government",Homes England,CAPITAL GRANTS TO RPs (NOT LA),"North East, Yorkshire & the Humber",GENTOO GROUP LIMITED,13/10/2020,"149,981.00",L,,Grants
"Ministry of Housing, Communities and Local Government",Homes England,CAPITAL GRANTS TO RPs (NOT LA),"North East, Yorkshire & the Humber",GENTOO GROUP LIMITED,19/10/2020,"52,500.00",L,,Grants
"Ministry of Housing, Communities and Local Government",Homes England,REVENUE GRANTS TO RPs,"North East, Yorkshire & the Humber",GENTOO GROUP LIMITED,23/10/2020,"1,036.00",L,,Grants
"Ministry of Housing, Communities and Local Government",Homes England,REVENUE GRANTS TO RPs,"North East, Yorkshire & the Humber",GENTOO GROUP LIMITED,23/10/2020,"1,036.00",L,,Grants
"Ministry of Housing, Communities and Local Government",Homes England,REVENUE GRANTS TO RPs,"North East, Yorkshire & the Humber",GENTOO GROUP LIMITED,23/10/2020,"1,036.00",L,,Grants
"Ministry of Housing, Communities and Local Government",Homes England,REVENUE GRANTS TO RPs,"North East, Yorkshire & the Humber",GENTOO GROUP LIMITED,23/10/2020,"1,036.00",L,,Grants
"Ministry of Housing, Communities and Local Government",Homes England,REVENUE GRANTS TO RPs,"North East, Yorkshire & the Humber",GENTOO GROUP LIMITED,23/10/2020,"1,036.00",L,,Grants
"Ministry of Housing, Communities and Local Government",Homes England,REVENUE GRANTS TO RPs,"North East, Yorkshire & the Humber",GENTOO GROUP LIMITED,23/10/2020,"1,036.00",L,,Grants
"Ministry of Housing, Communities and Local Government",Homes England,CAPITAL GRANTS TO RPs (NOT LA),"North East, Yorkshire & the Humber",GENTOO GROUP LIMITED,28/10/2020,"19,500.00",L,,Grants
"Ministry of Housing, Communities and Local Government",Homes England,Help To Buy Additions,"North East, Yorkshire & the Humber",GENTOO GROUP LIMITED,30/10/2020,"87,500.00",L,,Grants
"Ministry of Housing, Communities and Local Government",Homes England,Help To Buy Additions,"North East, Yorkshire & the Humber",GENTOO GROUP LIMITED,30/10/2020,"49,000.00",L,,Grants
"Ministry of Housing, Communities and Local Government",Homes England,CAPITAL GRANTS TO RPs (NOT LA),"North East, Yorkshire & the Humber",GENTOO GROUP LIMITED,30/10/2020,"9,168.00",L,,Grants
"Ministry of Housing, Communities and Local Government",Homes England,CAPITAL GRANTS TO RPs (NOT LA),"North East, Yorkshire & the Humber",GENTOO GROUP LIMITED,30/10/2020,"9,636.00",L,,Grants
"Ministry of Housing, Communities and Local Government",Homes England,CAPITAL GRANTS TO RPs (NOT LA),North West,COBALT HOUSING LIMITED,13/10/2020,"9,000.00",,,Grants
"Ministry of Housing, Communities and Local Government",Homes England,CAPITAL GRANTS TO RPs (NOT LA),Midlands,WALSALL HOUSING TRUST LIMITED,23/10/2020,"9,000.00",,,Grants
"Ministry of Housing, Communities and Local Government",Homes England,CAPITAL GRANTS TO RPs (NOT LA),South West,ASTER GROUP LTD,21/10/2020,"391,192.00",,,Grants
"Ministry of Housing, Communities and Local Government",Homes England,CAPITAL GRANTS TO RPs (NOT LA),North West,ONE MANCHESTER,12/10/2020,"10,000.00",,,Grants
"Ministry of Housing, Communities and Local Government",Homes England,CAPITAL GRANTS TO RPs (NOT LA),North West,ONE MANCHESTER,12/10/2020,"10,000.00",,,Grants
"Ministry of Housing, Communities and Local Government",Homes England,CAPITAL GRANTS TO RPs (NOT LA),North West,ONE MANCHESTER,12/10/2020,"10,000.00",,,Grants
"Ministry of Housing, Communities and Local Government",Homes England,CAPITAL GRANTS TO RPs (NOT LA),North West,ONE MANCHESTER,12/10/2020,"10,000.00",,,Grants
"Ministry of Housing, Communities and Local Government",Homes England,CAPITAL GRANTS TO RPs (NOT LA),North West,ONE MANCHESTER,12/10/2020,"10,000.00",,,Grants
"Ministry of Housing, Communities and Local Government",Homes England,CAPITAL GRANTS TO RPs (NOT LA),North West,ONE MANCHESTER,12/10/2020,"10,000.00",,,Grants
"Ministry of Housing, Communities and Local Government",Homes England,CAPITAL GRANTS TO RPs (NOT LA),North West,ONE MANCHESTER,12/10/2020,"10,000.00",,,Grants
"Ministry of Housing, Communities and Local Government",Homes England,CAPITAL GRANTS TO RPs (NOT LA),North West,TRAFFORD HOUSING TRUST LIMITED,12/10/2020,"10,000.00",,,Grants
"Ministry of Housing, Communities and Local Government",Homes England,CAPITAL GRANTS TO RPs (NOT LA),North West,TRAFFORD HOUSING TRUST LIMITED,12/10/2020,"10,000.00",,,Grants
"Ministry of Housing, Communities and Local Government",Homes England,CAPITAL GRANTS TO RPs (NOT LA),North West,TRAFFORD HOUSING TRUST LIMITED,12/10/2020,"10,000.00",,,Grants
"Ministry of Housing, Communities and Local Government",Homes England,CAPITAL GRANTS TO RPs (NOT LA),"North East, Yorkshire & the Humber",WAKEFIELD AND DISTRICT HOUSING LIMITED,27/10/2020,"8,375.00",,,Grants
"Ministry of Housing, Communities and Local Government",Homes England,CAPITAL GRANTS TO RPs (NOT LA),East & South East,B3 LIVING LIMITED,27/10/2020,"2,185,000.00",,,Grants
"Ministry of Housing, Communities and Local Government",Homes England,CAPITAL GRANTS TO RPs (NOT LA),North West,HALTON HOUSING,,"52,500.00",,,Grants
"Ministry of Housing, Communities and Local Government",Homes England,CAPITAL GRANTS TO RPs (NOT LA),"North East, Yorkshire & the Humber",TOGETHER HOUSING GROUP LIMITED,14/10/2020,"9,000.00",,,Grants
"Ministry of Housing, Communities and Local Government",Homes England,CAPITAL GRANTS TO RPs (NOT LA),North West,TOGETHER HOUSING GROUP LIMITED,14/10/2020,"9,000.00",,,Grants
"Ministry of Housing, Communities and Local Government",Homes England,CAPITAL GRANTS TO RPs (NOT LA),North West,TOGETHER HOUSING GROUP LIMITED,14/10/2020,"9,000.00",,,Grants
"Ministry of Housing, Communities and Local Government",Homes England,CAPITAL GRANTS TO RPs (NOT LA),"North East, Yorkshire & the Humber",TOGETHER HOUSING GROUP LIMITED,14/10/2020,"10,000.00",,,Grants
"Ministry of Housing, Communities and Local Government",Homes England,CAPITAL GRANTS TO RPs (NOT LA),North West,TOGETHER HOUSING GROUP LIMITED,14/10/2020,"9,000.00",,,Grants
"Ministry of Housing, Communities and Local Government",Homes England,CAPITAL GRANTS TO RPs (NOT LA),South West,MERLIN HOUSING SOCIETY LIMITED,13/10/2020,"11,000.00",,,Grants
"Ministry of Housing, Communities and Local Government",Homes England,CAPITAL GRANTS TO RPs (NOT LA),South West,MERLIN HOUSING SOCIETY LIMITED,28/10/2020,"11,000.00",,,Grants
"Ministry of Housing, Communities and Local Government",Homes England,CAPITAL GRANTS TO RPs (NOT LA),Midlands,CONNEXUS HOUSING LIMITED,27/10/2020,"81,250.00",,,Grants
"Ministry of Housing, Communities and Local Government",Homes England,CAPITAL GRANTS TO RPs (NOT LA),Midlands,CONNEXUS HOUSING LIMITED,27/10/2020,"81,250.00",,,Grants
"Ministry of Housing, Communities and Local Government",Homes England,CAPITAL GRANTS TO RPs (NOT LA),Midlands,CONNEXUS HOUSING LIMITED,27/10/2020,"16,250.00",,,Grants
"Ministry of Housing, Communities and Local Government",Homes England,CAPITAL GRANTS TO RPs (NOT LA),East & South East,WATFORD COMMUNITY HOUSING TRUST,29/10/2020,"80,000.00",,,Grants
"Ministry of Housing, Communities and Local Government",Homes England,CAPITAL GRANTS TO RPs (NOT LA),North West,SOUTHWAY HOUSING TRUST,,"261,250.00",,,Grants
"Ministry of Housing, Communities and Local Government",Homes England,CAPITAL GRANTS TO RPs (NOT LA),East & South East,GRAND UNION HOUSING GROUP LIMITED,20/10/2020,"30,000.00",,,Grants
"Ministry of Housing, Communities and Local Government",Homes England,CAPITAL GRANTS TO RPs (NOT LA),"North East, Yorkshire & the Humber",YORKSHIRE HOUSING LIMITED,29/10/2020,"124,500.00",,,Grants
"Ministry of Housing, Communities and Local Government",Homes England,CAPITAL GRANTS TO RPs (NOT LA),"North East, Yorkshire & the Humber",YORKSHIRE HOUSING LIMITED,29/10/2020,"31,125.00",,,Grants
"Ministry of Housing, Communities and Local Government",Homes England,CAPITAL GRANTS TO RPs (NOT LA),"North East, Yorkshire & the Humber",THIRTEEN GROUP LTD,15/10/2020,"9,000.00",,,Grants
"Ministry of Housing, Communities and Local Government",Homes England,REVENUE GRANTS TO RPs,East & South East,HEART OF ENGLAND HOUSING ASSOICATION,09/10/2020,"61,500.00",,,Grants
"Ministry of Housing, Communities and Local Government",Homes England,REVENUE GRANTS TO RPs,Midlands,HEART OF ENGLAND HOUSING ASSOICATION,23/10/2020,"82,900.00",,,Grants
"Ministry of Housing, Communities and Local Government",Homes England,CAPITAL GRANTS TO RPs (NOT LA),North West,ONE MANCHESTER,12/10/2020,"10,000.00",,,Grants
"Ministry of Housing, Communities and Local Government",Homes England,CAPITAL GRANTS TO RPs (NOT LA),North West,ONE MANCHESTER,12/10/2020,"9,000.00",,,Grants
"Ministry of Housing, Communities and Local Government",Homes England,CAPITAL GRANTS TO RPs (NOT LA),North West,ONE MANCHESTER,12/10/2020,"10,000.00",,,Grants
"Ministry of Housing, Communities and Local Government",Homes England,CAPITAL GRANTS TO RPs (NOT LA),North West,FAIROAK HOUSING ASSOCIATION,12/10/2020,"78,876.00",,,Grants
"Ministry of Housing, Communities and Local Government",Homes England,CAPITAL GRANTS TO RPs (NOT LA),East & South East,AMICUS HORIZON LIMITED,23/10/2020,"150,000.00",,,Grants
"Ministry of Housing, Communities and Local Government",Homes England,CAPITAL GRANTS TO RPs (NOT LA),East & South East,AMICUS HORIZON LIMITED,23/10/2020,"200,000.00",,,Grants
"Ministry of Housing, Communities and Local Government",Homes England,CAPITAL GRANTS TO RPs (NOT LA),"North East, Yorkshire & the Humber",LIVIN HOUSING LIMITED,23/10/2020,"9,000.00",,,Grants
"Ministry of Housing, Communities and Local Government",Homes England,CAPITAL GRANTS TO RPs (NOT LA),"North East, Yorkshire & the Humber",LIVIN HOUSING LIMITED,23/10/2020,"9,000.00",,,Grants
"Ministry of Housing, Communities and Local Government",Homes England,CAPITAL GRANTS TO RPs (NOT LA),East & South East,SOUTHERN HOUSING GROUP LIMITED,,"56,977.00",L,,Grants
"Ministry of Housing, Communities and Local Government",Homes England,CAPITAL GRANTS TO RPs (NOT LA),East & South East,SOUTHERN HOUSING GROUP LIMITED,,"68,750.00",L,,Grants
"Ministry of Housing, Communities and Local Government",Homes England,LEGAL FEES (ADMIN ONLY),Finance & Corporate Services,THE LAW SOCIETY,26/10/2020,"5,789.00",M,94101500,Business associations
"Ministry of Housing, Communities and Local Government",Homes England,BUILDINGS-ELECTRICITY,East And South East,EDF ENERGY,02/10/2020,678.49,L,83101800,Electric utilities
"Ministry of Housing, Communities and Local Government",Homes England,LIGHTING & HEATING,Finance & Corporate Services,EDF ENERGY,06/10/2020,"2,540.36",L,83101800,Electric utilities
"Ministry of Housing, Communities and Local Government",Homes England,BUILDINGS-ELECTRICITY,East And South East,EDF ENERGY,06/10/2020,939.18,L,83101800,Electric utilities
"Ministry of Housing, Communities and Local Government",Homes England,LIGHTING & HEATING,Finance & Corporate Services,EDF ENERGY,06/10/2020,"1,095.58",L,83101800,Electric utilities
"Ministry of Housing, Communities and Local Government",Homes England,BUILDINGS-ELECTRICITY,South West,EDF ENERGY,07/10/2020,"2,483.75",L,83101800,Electric utilities
"Ministry of Housing, Communities and Local Government",Homes England,BUILDINGS-ELECTRICITY,Midlands,EDF ENERGY,12/10/2020,406.56,L,83101800,Electric utilities
"Ministry of Housing, Communities and Local Government",Homes England,BUILDINGS-ELECTRICITY,Programmes,EDF ENERGY,12/10/2020,807.56,L,83101800,Electric utilities
"Ministry of Housing, Communities and Local Government",Homes England,BUILDINGS-ELECTRICITY,South West,EDF ENERGY,16/10/2020,"1,361.45",L,83101800,Electric utilities
"Ministry of Housing, Communities and Local Government",Homes England,BUILDINGS-ELECTRICITY,Programmes,EDF ENERGY,26/10/2020,"1,758.92",L,83101800,Electric utilities
"Ministry of Housing, Communities and Local Government",Homes England,CAPITAL GRANTS TO RPs (NOT LA),North West,ADACTUS HOUSING ASSOCIATION LTD,12/10/2020,"9,000.00",,,Grants
"Ministry of Housing, Communities and Local Government",Homes England,CAPITAL GRANTS TO RPs (NOT LA),North West,ADACTUS HOUSING ASSOCIATION LTD,12/10/2020,"10,000.00",,,Grants
"Ministry of Housing, Communities and Local Government",Homes England,CAPITAL GRANTS TO RPs (NOT LA),North West,ADACTUS HOUSING ASSOCIATION LTD,22/10/2020,"240,000.00",,,Grants
"Ministry of Housing, Communities and Local Government",Homes England,CAPITAL GRANTS TO RPs (NOT LA),North West,ADACTUS HOUSING ASSOCIATION LTD,,"210,000.00",,,Grants
"Ministry of Housing, Communities and Local Government",Homes England,CAPITAL GRANTS TO RPs (NOT LA),Midlands,EMH HOMES,,"145,584.00",L,,Grants
"Ministry of Housing, Communities and Local Government",Homes England,CAPITAL GRANTS TO RPs (NOT LA),Midlands,EMH HOMES,,"96,559.00",L,,Grants
"Ministry of Housing, Communities and Local Government",Homes England,Homebuy Agents Fees,Programmes,BPHA LIMITED,02/10/2020,"86,797.20",L,84121600,Funds transfer and clearance and exchange services
"Ministry of Housing, Communities and Local Government",Homes England,CAPITAL GRANTS TO RPs (NOT LA),East & South East,BPHA LIMITED,12/10/2020,"14,175.00",,,Grants
"Ministry of Housing, Communities and Local Government",Homes England,CAPITAL GRANTS TO RPs (NOT LA),Midlands,ACCORD HOUSING ASSOCIATION LIMITED,22/10/2020,"590,625.00",,,Grants
"Ministry of Housing, Communities and Local Government",Homes England,CAPITAL GRANTS TO RPs (NOT LA),North West,AKSA HOMES,30/10/2020,"9,000.00",,,Grants
"Ministry of Housing, Communities and Local Government",Homes England,CAPITAL GRANTS TO RPs (NOT LA),North West,AKSA HOMES,30/10/2020,"9,000.00",,,Grants
"Ministry of Housing, Communities and Local Government",Homes England,CAPITAL GRANTS TO RPs (NOT LA),"North East, Yorkshire & the Humber",BROADACRES HOUSING ASSOCIATION LIMITED,20/10/2020,"9,750.00",L,,Grants
"Ministry of Housing, Communities and Local Government",Homes England,CAPITAL GRANTS TO RPs (NOT LA),"North East, Yorkshire & the Humber",BROADACRES HOUSING ASSOCIATION LIMITED,22/10/2020,"29,250.00",L,,Grants
